Workbook

Sheet Cover
B6: Management information
B7: Policy area: | C7: Further education and skills inspections and outcomes
B8: Theme: | C8: Education, children's services and skills
B9: Published on: | C9: 8 October 2015
B10: Coverage: | C10: England
B11: Period covered: | C11: Inspections from 1 September 2014 to 31 August 2015 (published by 1 October 2015)
B12: Status: | C12: Provisional: Management Information
B13: Statistician: | C13: Sarah Pearce
B14: Public enquiries: | C14: enquiries@ofsted.gov.uk
B15: Press enquiries: | C15: pressenquiries@ofsted.gov.uk
B16: Link to FE and Skills management information web page including publication schedule: | C16: https://www.gov.uk/government/statistical-data-sets/monthly-management-information-ofsteds-further-education-and-skills-inspections-outcomes
B17: Link to official statistics release web page: | C17: https://www.gov.uk/government/collections/further-education-and-skills-inspection-outcomes
B20: © Crown copyright 2015
B22: You may use and re-use this information (not including logos) free of charge in any format or medium,
B23: under the terms of the Open Government Licence.
B24: To view this licence, visit:
B25: http://www.nationalarchives.gov.uk/doc/open-government-licence/
B26: Or write to the Information Policy Team, The National Archives, Kew, London, TW9 4DU
B27: Or email:
B28: psi@nationalarchives.gsi.gov.uk

Sheet Notes
B1: MANAGEMENT INFORMATION - INSPECTION OUTCOMES
B2: Data show inspection judgements for further education and skills providers for the reporting year 2014/15.
B3: The data cover outcomes for inspections which have taken place between 1 September 2014 and 31 August 2015, and where the inspection report has been published by 1 October 2015.
B4: This is the final set of data for 2014/15 and represents the complete picture of inspections this reporting year.
B5: Adult and community learning providers are now known as community learning and skills providers.
B7: INDEX OF TABLES
B8: To access the tables you can either click on the links below or on the tabs at the bottom of the spreadsheet:
B10: Summary of judgements | D10: Summary of latest inspection judgements for providers
B11: Inspection data | D11: Inspection data at provider level
B12: Sector subject area data | D12: Sector subject area data at provider level
B15: Key to judgements: grade 1 is outstanding, grade 2 good, grade 3 satisfactory/requires improvement, and grade 4 inadequate.
B16: The 2014/15 reporting year refers to the dates between 01/09/2014 - 31/08/2015 inclusive.

Sheet Summary of judgements
A1: Summary of latest judgements
B3: Overall effectiveness of providers inspected since 1 September 2014
D4: 1 | E4: 2 | F4: 3 | G4: 4
B5: Provider type | C5: Total number of inspections | D5: Overall effectiveness
D6: Outstanding | E6: Good | F6: Requires improvement | G6: Inadequate | J6: Outstanding | K6: Good | L6: Requires improvement | M6: Inadequate
B7: Academy Converter | C7: =SUM(D7:G7) -> 1 | D7: =IFERROR(GETPIVOTDATA("Provider Name",'Pivot FE&S'!$A$5,"Provider type",$B7,"Overall Effectiveness",D$4),0) -> 0 | E7: =IFERROR(GETPIVOTDATA("Provider Name",'Pivot FE&S'!$A$5,"Provider type",$B7,"Overall Effectiveness",E$4),0) -> 0 | F7: =IFERROR(GETPIVOTDATA("Provider Name",'Pivot FE&S'!$A$5,"Provider type",$B7,"Overall Effectiveness",F$4),0) -> 1 | G7: =IFERROR(GETPIVOTDATA("Provider Name",'Pivot FE&S'!$A$5,"Provider type",$B7,"Overall Effectiveness",G$4),0) -> 0 | I7: =B7&" "&"("&C7&")" -> Academy Converter (1) | J7: =D7/$C7*100 -> 0 | K7: =E7/$C7*100 -> 0 | L7: 100 | M7: 0
B8: Community Learning and Skills | C8: =SUM(D8:G8) -> 60 | D8: =IFERROR(GETPIVOTDATA("Provider Name",'Pivot FE&S'!$A$5,"Provider type","Community Learning and Skills","Overall Effectiveness",1),0) -> 2 | E8: =IFERROR(GETPIVOTDATA("Provider Name",'Pivot FE&S'!$A$5,"Provider type","Community Learning and Skills","Overall Effectiveness",2),0) -> 32 | F8: =IFERROR(GETPIVOTDATA("Provider Name",'Pivot FE&S'!$A$5,"Provider type","Community Learning and Skills","Overall Effectiveness",3),0) -> 19 | G8: =IFERROR(GETPIVOTDATA("Provider Name",'Pivot FE&S'!$A$5,"Provider type","Community Learning and Skills","Overall Effectiveness",4),0) -> 7 | I8: =B8&" "&"("&C8&")" -> Community Learning and Skills (60) | J8: =D8/$C8*100 -> 3.333333333 | K8: 53.33333333 | L8: 31.66666667 | M8: 11.66666667
B9: Employer | C9: =SUM(D9:G9) -> 13 | D9: =IFERROR(GETPIVOTDATA("Provider Name",'Pivot FE&S'!$A$5,"Provider type","Employer","Overall Effectiveness",1),0) -> 3 | E9: =IFERROR(GETPIVOTDATA("Provider Name",'Pivot FE&S'!$A$5,"Provider type","Employer","Overall Effectiveness",2),0) -> 4 | F9: =IFERROR(GETPIVOTDATA("Provider Name",'Pivot FE&S'!$A$5,"Provider type","Employer","Overall Effectiveness",3),0) -> 4 | G9: =IFERROR(GETPIVOTDATA("Provider Name",'Pivot FE&S'!$A$5,"Provider type","Employer","Overall Effectiveness",4),0) -> 2 | I9: =B9&" "&"("&C9&")" -> Employer (13) | J9: 23.07692308 | K9: 30.76923077 | L9: 30.76923077 | M9: 15.38461538
B10: Free School - 16-19 | C10: =SUM(D10:G10) -> 5 | D10: =IFERROR(GETPIVOTDATA("Provider Name",'Pivot FE&S'!$A$5,"Provider type",$B10,"Overall Effectiveness",D$4),0) -> 0 | E10: =IFERROR(GETPIVOTDATA("Provider Name",'Pivot FE&S'!$A$5,"Provider type","Free School - 16-19","Overall Effectiveness",2),0) -> 1 | F10: =IFERROR(GETPIVOTDATA("Provider Name",'Pivot FE&S'!$A$5,"Provider type","Free School - 16-19","Overall Effectiveness",3),0) -> 2 | G10: =IFERROR(GETPIVOTDATA("Provider Name",'Pivot FE&S'!$A$5,"Provider type","Free School - 16-19","Overall Effectiveness",4),0) -> 2 | I10: =B10&" "&"("&C10&")" -> Free School - 16-19 (5) | J10: 0 | K10: 20 | L10: 40 | M10: 40
B11: General Further Education/Tertiary College | C11: =SUM(D11:G11) -> 48 | D11: =IFERROR(GETPIVOTDATA("Provider Name",'Pivot FE&S'!$A$5,"Provider type","General Further Education/Tertiary College","Overall Effectiveness",1),0) -> 2 | E11: =IFERROR(GETPIVOTDATA("Provider Name",'Pivot FE&S'!$A$5,"Provider type","General Further Education/Tertiary College","Overall Effectiveness",2),0) -> 15 | F11: =IFERROR(GETPIVOTDATA("Provider Name",'Pivot FE&S'!$A$5,"Provider type","General Further Education/Tertiary College","Overall Effectiveness",3),0) -> 26 | G11: =IFERROR(GETPIVOTDATA("Provider Name",'Pivot FE&S'!$A$5,"Provider type","General Further Education/Tertiary College","Overall Effectiveness",4),0) -> 5 | I11: General Further Education/Tertiary College (48) | J11: =D11/$C11*100 -> 4.166666667 | K11: =E11/$C11*100 -> 31.25 | L11: =F11/$C11*100 -> 54.16666667 | M11: =G11/$C11*100 -> 10.41666667
B12: Specialist Further Education | C12: =SUM(D12:G12) -> 3 | D12: =IFERROR(GETPIVOTDATA("Provider Name",'Pivot FE&S'!$A$5,"Provider type",$B12,"Overall Effectiveness",D$4),0) -> 0 | E12: =IFERROR(GETPIVOTDATA("Provider Name",'Pivot FE&S'!$A$5,"Provider type","Specialist Further Education","Overall Effectiveness",2),0) -> 3 | F12: =IFERROR(GETPIVOTDATA("Provider Name",'Pivot FE&S'!$A$5,"Provider type",$B12,"Overall Effectiveness",F$6),0) -> 0 | G12: =IFERROR(GETPIVOTDATA("Provider Name",'Pivot FE&S'!$A$5,"Provider type",$B12,"Overall Effectiveness",G$4),0) -> 0 | I12: =B12&" "&"("&C12&")" -> Specialist Further Education (3) | J12: =D12/$C12*100 -> 0 | K12: =E12/$C12*100 -> 100 | L12: =F12/$C12*100 -> 0 | M12: =G12/$C12*100 -> 0
B13: Higher Education Institution | C13: 2 | D13: =IFERROR(GETPIVOTDATA("Provider Name",'Pivot FE&S'!$A$5,"Provider type","Higher Education Institution","Overall Effectiveness",1),0) -> 2 | E13: =IFERROR(GETPIVOTDATA("Provider Name",'Pivot FE&S'!$A$5,"Provider type",$B13,"Overall Effectiveness",E$6),0) -> 0 | F13: =IFERROR(GETPIVOTDATA("Provider Name",'Pivot FE&S'!$A$5,"Provider type",$B13,"Overall Effectiveness",F$6),0) -> 0 | G13: =IFERROR(GETPIVOTDATA("Provider Name",'Pivot FE&S'!$A$5,"Provider type",$B13,"Overall Effectiveness",G$4),0) -> 0 | I13: =B13&" "&"("&C13&")" -> Higher Education Institution (2) | J13: =D13/$C13*100 -> 100 | K13: =E13/$C13*100 -> 0 | L13: =F13/$C13*100 -> 0 | M13: =G13/$C13*100 -> 0
B14: Independent Learning Provider | C14: 114 | D14: =IFERROR(GETPIVOTDATA("Provider Name",'Pivot FE&S'!$A$5,"Provider type","Independent Learning Provider","Overall Effectiveness",1),0) -> 4 | E14: =IFERROR(GETPIVOTDATA("Provider Name",'Pivot FE&S'!$A$5,"Provider type","Independent Learning Provider","Overall Effectiveness",2),0) -> 53 | F14: =IFERROR(GETPIVOTDATA("Provider Name",'Pivot FE&S'!$A$5,"Provider type","Independent Learning Provider","Overall Effectiveness",3),0) -> 45 | G14: =IFERROR(GETPIVOTDATA("Provider Name",'Pivot FE&S'!$A$5,"Provider type","Independent Learning Provider","Overall Effectiveness",4),0) -> 12 | I14: Independent Learning Provider (114) | J14: 3.50877193 | K14: 46.49122807 | L14: 39.47368421 | M14: 10.52631579
B15: National Careers Service | C15: 0 | D15: =IFERROR(GETPIVOTDATA("Provider Name",'Pivot FE&S'!$A$5,"Provider type",$B15,"Overall Effectiveness",D$4),0) -> 0 | E15: =IFERROR(GETPIVOTDATA("Provider Name",'Pivot FE&S'!$A$5,"Provider type",$B15,"Overall Effectiveness",E$6),0) -> 0 | F15: =IFERROR(GETPIVOTDATA("Provider Name",'Pivot FE&S'!$A$5,"Provider type",$B15,"Overall Effectiveness",F$6),0) -> 0 | G15: =IFERROR(GETPIVOTDATA("Provider Name",'Pivot FE&S'!$A$5,"Provider type",$B15,"Overall Effectiveness",G$4),0) -> 0 | I15: =B15&" "&"("&C15&")" -> National Careers Service (0) | J15: =D15/$C15*100 ->  | K15: =E15/$C15*100 ->  | L15: =F15/$C15*100 ->  | M15: =G15/$C15*100 -> 
B16: Independent Specialist College | C16: 11 | D16: =IFERROR(GETPIVOTDATA("Provider Name",'Pivot FE&S'!$A$5,"Provider type",$B16,"Overall Effectiveness",D$4),0) -> 0 | E16: =IFERROR(GETPIVOTDATA("Provider Name",'Pivot FE&S'!$A$5,"Provider type","Independent Specialist College","Overall Effectiveness",2),0) -> 5 | F16: =IFERROR(GETPIVOTDATA("Provider Name",'Pivot FE&S'!$A$5,"Provider type","Independent Specialist College","Overall Effectiveness",3),0) -> 4 | G16: =IFERROR(GETPIVOTDATA("Provider Name",'Pivot FE&S'!$A$5,"Provider type","Independent Specialist College","Overall Effectiveness",4),0) -> 2 | I16: Independent Specialist College (11) | J16: 0 | K16: 45.45454545 | L16: 36.36363636 | M16: 18.18181818
B17: Sixth Form College | C17: 15 | D17: =IFERROR(GETPIVOTDATA("Provider Name",'Pivot FE&S'!$A$5,"Provider type",$B17,"Overall Effectiveness",D$4),0) -> 0 | E17: =IFERROR(GETPIVOTDATA("Provider Name",'Pivot FE&S'!$A$5,"Provider type","Sixth Form College","Overall Effectiveness",2),0) -> 7 | F17: =IFERROR(GETPIVOTDATA("Provider Name",'Pivot FE&S'!$A$5,"Provider type","Sixth Form College","Overall Effectiveness",3),0) -> 5 | G17: =IFERROR(GETPIVOTDATA("Provider Name",'Pivot FE&S'!$A$5,"Provider type","Sixth Form College","Overall Effectiveness",4),0) -> 3 | I17: Sixth Form College (15) | J17: 0 | K17: 46.66666667 | L17: 33.33333333 | M17: 20
B18: Total | C18: =SUM(C7:C17) -> 272 | D18: =SUM(D7:D17) -> 13 | E18: =SUM(E7:E17) -> 120 | F18: =SUM(F7:F17) -> 106 | G18: =SUM(G7:G17) -> 33 | I18: =B18&" "&"("&C18&")" -> Total (272) | J18: =D18/$C18*100 -> 4.779411765 | K18: =E18/$C18*100 -> 44.11764706 | L18: =F18/$C18*100 -> 38.97058824 | M18: =G18/$C18*100 -> 12.13235294
N21: Where the number of inspections is small, percentages should be viewed with caution.
N22: Percentages are rounded and may not add to 100.
T23: Source: Ofsted inspection data
B27: Outcomes for learners for providers inspected since 1 September 2014
B29: Provider type | C29: Total number of inspections | D29: Outcomes for learners
D30: Outstanding | E30: Good | F30: Requires improvement | G30: Inadequate | J30: Outstanding | K30: Good | L30: Requires improvement | M30: Inadequate
B31: Academy Converter | C31: =SUM(D31:G31) -> 1 | D31: =IFERROR(GETPIVOTDATA("Provider Name",'Pivot FE&S'!$A$23,"Provider type",$B31,"Outcome for learners",D$4),0) -> 0 | E31: =IFERROR(GETPIVOTDATA("Provider Name",'Pivot FE&S'!$A$23,"Provider type",$B31,"Outcome for learners",E$4),0) -> 0 | F31: =IFERROR(GETPIVOTDATA("Provider Name",'Pivot FE&S'!$A$23,"Provider type",$B31,"Outcome for learners",F$4),0) -> 1 | G31: =IFERROR(GETPIVOTDATA("Provider Name",'Pivot FE&S'!$A$23,"Provider type",$B31,"Outcome for learners",G$4),0) -> 0 | I31: =B31&" "&"("&C31&")" -> Academy Converter (1) | J31: =D31/$C31*100 -> 0 | K31: =E31/$C31*100 -> 0 | L31: 100 | M31: 0
B32: Community Learning and Skills | C32: =SUM(D32:G32) -> 60 | D32: =IFERROR(GETPIVOTDATA("Provider Name",'Pivot FE&S'!$A$21,"Provider type","Community Learning and Skills","Outcome for Learners",1),0) -> 2 | E32: =IFERROR(GETPIVOTDATA("Provider Name",'Pivot FE&S'!$A$21,"Provider type","Community Learning and Skills","Outcome for Learners",2),0) -> 32 | F32: =IFERROR(GETPIVOTDATA("Provider Name",'Pivot FE&S'!$A$21,"Provider type","Community Learning and Skills","Outcome for Learners",3),0) -> 22 | G32: =IFERROR(GETPIVOTDATA("Provider Name",'Pivot FE&S'!$A$21,"Provider type","Community Learning and Skills","Outcome for Learners",4),0) -> 4 | I32: =B32&" "&"("&C32&")" -> Community Learning and Skills (60) | J32: =D32/$C32*100 -> 3.333333333 | K32: 53.33333333 | L32: 36.66666667 | M32: 6.666666667
B33: Employer | C33: =SUM(D33:G33) -> 13 | D33: =IFERROR(GETPIVOTDATA("Provider Name",'Pivot FE&S'!$A$21,"Provider type","Employer","Outcome for Learners",1),0) -> 3 | E33: =IFERROR(GETPIVOTDATA("Provider Name",'Pivot FE&S'!$A$21,"Provider type","Employer","Outcome for Learners",2),0) -> 2 | F33: =IFERROR(GETPIVOTDATA("Provider Name",'Pivot FE&S'!$A$21,"Provider type","Employer","Outcome for Learners",3),0) -> 6 | G33: =IFERROR(GETPIVOTDATA("Provider Name",'Pivot FE&S'!$A$21,"Provider type","Employer","Outcome for Learners",4),0) -> 2 | I33: =B33&" "&"("&C33&")" -> Employer (13) | J33: 23.07692308 | K33: 15.38461538 | L33: 46.15384615 | M33: 15.38461538
B34: Free School - 16-19 | C34: =SUM(D34:G34) -> 5 | D34: =IFERROR(GETPIVOTDATA("Provider Name",'Pivot FE&S'!$A$21,"Provider type",B$32,"Outcome for Learners",D$6),0) -> 0 | E34: =IFERROR(GETPIVOTDATA("Provider Name",'Pivot FE&S'!$A$21,"Provider type","Free School - 16-19","Outcome for Learners",2),0) -> 1 | F34: =IFERROR(GETPIVOTDATA("Provider Name",'Pivot FE&S'!$A$21,"Provider type","Free School - 16-19","Outcome for Learners",3),0) -> 2 | G34: =IFERROR(GETPIVOTDATA("Provider Name",'Pivot FE&S'!$A$21,"Provider type","Free School - 16-19","Outcome for Learners",4),0) -> 2 | I34: =B34&" "&"("&C34&")" -> Free School - 16-19 (5) | J34: 0 | K34: 20 | L34: 40 | M34: 40
B35: General Further Education/Tertiary College | C35: 48 | D35: =IFERROR(GETPIVOTDATA("Provider Name",'Pivot FE&S'!$A$21,"Provider type","General Further Education/Tertiary College","Outcome for Learners",1),0) -> 2 | E35: =IFERROR(GETPIVOTDATA("Provider Name",'Pivot FE&S'!$A$21,"Provider type","General Further Education/Tertiary College","Outcome for Learners",2),0) -> 11 | F35: =IFERROR(GETPIVOTDATA("Provider Name",'Pivot FE&S'!$A$21,"Provider type","General Further Education/Tertiary College","Outcome for Learners",3),0) -> 30 | G35: =IFERROR(GETPIVOTDATA("Provider Name",'Pivot FE&S'!$A$21,"Provider type","General Further Education/Tertiary College","Outcome for Learners",4),0) -> 5 | I35: General Further Education/Tertiary College (48) | J35: =D35/$C35*100 -> 4.166666667 | K35: =E35/$C35*100 -> 22.91666667 | L35: =F35/$C35*100 -> 62.5 | M35: =G35/$C35*100 -> 10.41666667
B36: Specialist Further Education | C36: 3 | D36: =IFERROR(GETPIVOTDATA("Provider Name",'Pivot FE&S'!$A$23,"Provider type",$B36,"Outcome for learners",D$4),0) -> 0 | E36: =IFERROR(GETPIVOTDATA("Provider Name",'Pivot FE&S'!$A$21,"Provider type","Specialist Further Education","Outcome for Learners",2),0) -> 3 | F36: =IFERROR(GETPIVOTDATA("Provider Name",'Pivot FE&S'!$A$23,"Provider type",$B36,"Outcome for learners",F$4),0) -> 0 | G36: =IFERROR(GETPIVOTDATA("Provider Name",'Pivot FE&S'!$A$23,"Provider type",$B36,"Outcome for learners",G$4),0) -> 0 | I36: =B36&" "&"("&C36&")" -> Specialist Further Education (3) | J36: =D36/$C36*100 -> 0 | K36: =E36/$C36*100 -> 100 | L36: =F36/$C36*100 -> 0 | M36: =G36/$C36*100 -> 0
B37: Higher Education Institution | C37: 2 | D37: =IFERROR(GETPIVOTDATA("Provider Name",'Pivot FE&S'!$A$21,"Provider type","Higher Education Institution","Outcome for Learners",1),0) -> 2 | E37: =IFERROR(GETPIVOTDATA("Provider Name",'Pivot FE&S'!$A$23,"Provider type",$B37,"Outcome for learners",E$4),0) -> 0 | F37: =IFERROR(GETPIVOTDATA("Provider Name",'Pivot FE&S'!$A$23,"Provider type",$B37,"Outcome for learners",F$4),0) -> 0 | G37: =IFERROR(GETPIVOTDATA("Provider Name",'Pivot FE&S'!$A$23,"Provider type",$B37,"Outcome for learners",G$4),0) -> 0 | I37: =B37&" "&"("&C37&")" -> Higher Education Institution (2) | J37: =D37/$C37*100 -> 100 | K37: =E37/$C37*100 -> 0 | L37: =F37/$C37*100 -> 0 | M37: =G37/$C37*100 -> 0
B38: Independent Learning Provider | C38: 114 | D38: =IFERROR(GETPIVOTDATA("Provider Name",'Pivot FE&S'!$A$21,"Provider type","Independent Learning Provider","Outcome for Learners",1),0) -> 4 | E38: =IFERROR(GETPIVOTDATA("Provider Name",'Pivot FE&S'!$A$21,"Provider type","Independent Learning Provider","Outcome for Learners",2),0) -> 58 | F38: =IFERROR(GETPIVOTDATA("Provider Name",'Pivot FE&S'!$A$21,"Provider type","Independent Learning Provider","Outcome for Learners",3),0) -> 41 | G38: =IFERROR(GETPIVOTDATA("Provider Name",'Pivot FE&S'!$A$21,"Provider type","Independent Learning Provider","Outcome for Learners",4),0) -> 11 | I38: Independent Learning Provider (114) | J38: 3.50877193 | K38: 50.87719298 | L38: 35.96491228 | M38: 9.649122807
B39: National Careers Service | C39: 0 | D39: =IFERROR(GETPIVOTDATA("Provider Name",'Pivot FE&S'!$A$23,"Provider type",$B39,"Outcome for learners",D$4),0) -> 0 | E39: =IFERROR(GETPIVOTDATA("Provider Name",'Pivot FE&S'!$A$23,"Provider type",$B39,"Outcome for learners",E$4),0) -> 0 | F39: =IFERROR(GETPIVOTDATA("Provider Name",'Pivot FE&S'!$A$23,"Provider type",$B39,"Outcome for learners",F$4),0) -> 0 | G39: =IFERROR(GETPIVOTDATA("Provider Name",'Pivot FE&S'!$A$23,"Provider type",$B39,"Outcome for learners",G$4),0) -> 0 | I39: =B39&" "&"("&C39&")" -> National Careers Service (0) | J39: =D39/$C39*100 ->  | K39: =E39/$C39*100 ->  | L39: =F39/$C39*100 ->  | M39: =G39/$C39*100 -> 
B40: Independent Specialist College | C40: 11 | D40: =IFERROR(GETPIVOTDATA("Provider Name",'Pivot FE&S'!$A$23,"Provider type","Independent Specialist College","Outcome for learners",D$4),0) -> 1 | E40: =IFERROR(GETPIVOTDATA("Provider Name",'Pivot FE&S'!$A$21,"Provider type","Independent Specialist College","Outcome for Learners",2),0) -> 5 | F40: =IFERROR(GETPIVOTDATA("Provider Name",'Pivot FE&S'!$A$21,"Provider type","Independent Specialist College","Outcome for Learners",3),0) -> 4 | G40: =IFERROR(GETPIVOTDATA("Provider Name",'Pivot FE&S'!$A$23,"Provider type",$B40,"Outcome for learners",G$4),0) -> 1 | I40: Independent Specialist College (11) | J40: 9.090909091 | K40: 45.45454545 | L40: 36.36363636 | M40: 9.090909091
B41: Sixth Form College | C41: =SUM(D41:G41) -> 15 | D41: =IFERROR(GETPIVOTDATA("Provider Name",'Pivot FE&S'!$A$23,"Provider type",$B41,"Outcome for learners",D$4),0) -> 0 | E41: =IFERROR(GETPIVOTDATA("Provider Name",'Pivot FE&S'!$A$21,"Provider type","Sixth Form College","Outcome for Learners",2),0) -> 7 | F41: =IFERROR(GETPIVOTDATA("Provider Name",'Pivot FE&S'!$A$21,"Provider type","Sixth Form College","Outcome for Learners",3),0) -> 5 | G41: =IFERROR(GETPIVOTDATA("Provider Name",'Pivot FE&S'!$A$21,"Provider type","Sixth Form College","Outcome for Learners",4),0) -> 3 | I41: Sixth Form College (15) | J41: =D41/$C41*100 -> 0 | K41: =E41/$C41*100 -> 46.66666667 | L41: 33.33333333 | M41: 20
B42: Total | C42: =SUM(C31:C41) -> 272 | D42: =SUM(D31:D41) -> 14 | E42: =SUM(E31:E41) -> 119 | F42: 111 | G42: 28 | I42: =B42&" "&"("&C42&")" -> Total (272) | J42: =D42/$C42*100 -> 5.147058824 | K42: =E42/$C42*100 -> 43.75 | L42: =F42/$C42*100 -> 40.80882353 | M42: =G42/$C42*100 -> 10.29411765
N46: Where the number of inspections is small, percentages should be viewed with caution.
N47: Percentages are rounded and may not add to 100.
T48: Source: Ofsted inspection data
B52: Teaching, learning and assessment for providers inspected since 1 September 2014
B54: Provider type | C54: Total number of inspections | D54: Teaching, learning and assessment
D55: Outstanding | E55: Good | F55: Requires improvement | G55: Inadequate | J55: Outstanding | K55: Good | L55: Requires improvement | M55: Inadequate
B56: Academy Converter | C56: =SUM(D56:G56) -> 1 | D56: =IFERROR(GETPIVOTDATA("Provider Name",'Pivot FE&S'!$A$45,"Provider type",$B56,"Teaching",D$4),0) -> 0 | E56: =IFERROR(GETPIVOTDATA("Provider Name",'Pivot FE&S'!$A$45,"Provider type",$B56,"Teaching",E$4),0) -> 0 | F56: =IFERROR(GETPIVOTDATA("Provider Name",'Pivot FE&S'!$A$45,"Provider type",$B56,"Teaching",F$4),0) -> 1 | G56: =IFERROR(GETPIVOTDATA("Provider Name",'Pivot FE&S'!$A$45,"Provider type",$B56,"Teaching",G$4),0) -> 0 | I56: =B56&" "&"("&C56&")" -> Academy Converter (1) | J56: =D56/$C56*100 -> 0 | K56: =E56/$C56*100 -> 0 | L56: 100 | M56: 0
B57: Community Learning and Skills | C57: =SUM(D57:G57) -> 60 | D57: =IFERROR(GETPIVOTDATA("Provider Name",'Pivot FE&S'!$A$42,"Provider type","Community Learning and Skills","Teaching",1),0) -> 2 | E57: =IFERROR(GETPIVOTDATA("Provider Name",'Pivot FE&S'!$A$42,"Provider type","Community Learning and Skills","Teaching",2),0) -> 35 | F57: =IFERROR(GETPIVOTDATA("Provider Name",'Pivot FE&S'!$A$42,"Provider type","Community Learning and Skills","Teaching",3),0) -> 20 | G57: =IFERROR(GETPIVOTDATA("Provider Name",'Pivot FE&S'!$A$42,"Provider type","Community Learning and Skills","Teaching",4),0) -> 3 | I57: Community Learning and Skills (60) | J57: =D57/$C57*100 -> 3.333333333 | K57: 58.33333333 | L57: 33.33333333 | M57: 5
B58: Employer | C58: =SUM(D58:G58) -> 13 | D58: =IFERROR(GETPIVOTDATA("Provider Name",'Pivot FE&S'!$A$42,"Provider type","Employer","Teaching",1),0) -> 3 | E58: =IFERROR(GETPIVOTDATA("Provider Name",'Pivot FE&S'!$A$42,"Provider type","Employer","Teaching",2),0) -> 4 | F58: =IFERROR(GETPIVOTDATA("Provider Name",'Pivot FE&S'!$A$42,"Provider type","Employer","Teaching",3),0) -> 4 | G58: =IFERROR(GETPIVOTDATA("Provider Name",'Pivot FE&S'!$A$42,"Provider type","Employer","Teaching",4),0) -> 2 | I58: Employer (13) | J58: 23.07692308 | K58: 30.76923077 | L58: 30.76923077 | M58: 15.38461538
B59: Free School - 16-19 | C59: =SUM(D59:G59) -> 5 | D59: =IFERROR(GETPIVOTDATA("Provider Name",'Pivot FE&S'!$A$45,"Provider type",$B59,"Teaching",D$4),0) -> 0 | E59: =IFERROR(GETPIVOTDATA("Provider Name",'Pivot FE&S'!$A$42,"Provider type","Free School - 16-19","Teaching",2),0) -> 1 | F59: =IFERROR(GETPIVOTDATA("Provider Name",'Pivot FE&S'!$A$42,"Provider type","Free School - 16-19","Teaching",3),0) -> 2 | G59: =IFERROR(GETPIVOTDATA("Provider Name",'Pivot FE&S'!$A$42,"Provider type","Free School - 16-19","Teaching",4),0) -> 2 | I59: Free School - 16-19 (5) | J59: 0 | K59: 20 | L59: 40 | M59: 40
B60: General Further Education/Tertiary College | C60: 48 | D60: =IFERROR(GETPIVOTDATA("Provider Name",'Pivot FE&S'!$A$42,"Provider type","General Further Education/Tertiary College","Teaching",1),0) -> 2 | E60: =IFERROR(GETPIVOTDATA("Provider Name",'Pivot FE&S'!$A$42,"Provider type","General Further Education/Tertiary College","Teaching",2),0) -> 17 | F60: =IFERROR(GETPIVOTDATA("Provider Name",'Pivot FE&S'!$A$42,"Provider type","General Further Education/Tertiary College","Teaching",3),0) -> 25 | G60: =IFERROR(GETPIVOTDATA("Provider Name",'Pivot FE&S'!$A$42,"Provider type","General Further Education/Tertiary College","Teaching",4),0) -> 4 | I60: General Further Education/Tertiary College (48) | J60: =D60/$C60*100 -> 4.166666667 | K60: 35.41666667 | L60: =F60/$C60*100 -> 52.08333333 | M60: 8.333333333
B61: Specialist Further Education | C61: 3 | D61: =IFERROR(GETPIVOTDATA("Provider Name",'Pivot FE&S'!$A$45,"Provider type",$B61,"Teaching",D$4),0) -> 0 | E61: =IFERROR(GETPIVOTDATA("Provider Name",'Pivot FE&S'!$A$42,"Provider type","Specialist Further Education","Teaching",2),0) -> 3 | F61: =IFERROR(GETPIVOTDATA("Provider Name",'Pivot FE&S'!$A$45,"Provider type",$B61,"Teaching",F$4),0) -> 0 | G61: =IFERROR(GETPIVOTDATA("Provider Name",'Pivot FE&S'!$A$45,"Provider type",$B61,"Teaching",G$4),0) -> 0 | I61: =B61&" "&"("&C61&")" -> Specialist Further Education (3) | J61: =D61/$C61*100 -> 0 | K61: =E61/$C61*100 -> 100 | L61: =F61/$C61*100 -> 0 | M61: =G61/$C61*100 -> 0
B62: Higher Education Institution | C62: 2 | D62: =IFERROR(GETPIVOTDATA("Provider Name",'Pivot FE&S'!$A$42,"Provider type","Higher Education Institution","Teaching",1),0) -> 2 | E62: =IFERROR(GETPIVOTDATA("Provider Name",'Pivot FE&S'!$A$45,"Provider type",$B62,"Teaching",E$4),0) -> 0 | F62: =IFERROR(GETPIVOTDATA("Provider Name",'Pivot FE&S'!$A$45,"Provider type",$B62,"Teaching",F$4),0) -> 0 | G62: =IFERROR(GETPIVOTDATA("Provider Name",'Pivot FE&S'!$A$45,"Provider type",$B62,"Teaching",G$4),0) -> 0 | I62: =B62&" "&"("&C62&")" -> Higher Education Institution (2) | J62: =D62/$C62*100 -> 100 | K62: =E62/$C62*100 -> 0 | L62: =F62/$C62*100 -> 0 | M62: =G62/$C62*100 -> 0
B63: Independent Learning Provider | C63: 114 | D63: =IFERROR(GETPIVOTDATA("Provider Name",'Pivot FE&S'!$A$42,"Provider type","Independent Learning Provider","Teaching",1),0) -> 4 | E63: =IFERROR(GETPIVOTDATA("Provider Name",'Pivot FE&S'!$A$42,"Provider type","Independent Learning Provider","Teaching",2),0) -> 59 | F63: =IFERROR(GETPIVOTDATA("Provider Name",'Pivot FE&S'!$A$42,"Provider type","Independent Learning Provider","Teaching",3),0) -> 40 | G63: =IFERROR(GETPIVOTDATA("Provider Name",'Pivot FE&S'!$A$42,"Provider type","Independent Learning Provider","Teaching",4),0) -> 11 | I63: Independent Learning Provider (114) | J63: 3.50877193 | K63: 51.75438596 | L63: 35.0877193 | M63: 9.649122807
B64: National Careers Service | C64: 0 | D64: =IFERROR(GETPIVOTDATA("Provider Name",'Pivot FE&S'!$A$45,"Provider type",$B64,"Teaching",D$4),0) -> 0 | E64: =IFERROR(GETPIVOTDATA("Provider Name",'Pivot FE&S'!$A$45,"Provider type",$B64,"Teaching",E$4),0) -> 0 | F64: =IFERROR(GETPIVOTDATA("Provider Name",'Pivot FE&S'!$A$45,"Provider type",$B64,"Teaching",F$4),0) -> 0 | G64: =IFERROR(GETPIVOTDATA("Provider Name",'Pivot FE&S'!$A$45,"Provider type",$B64,"Teaching",G$4),0) -> 0 | I64: =B64&" "&"("&C64&")" -> National Careers Service (0) | J64: =D64/$C64*100 ->  | K64: =E64/$C64*100 ->  | L64: =F64/$C64*100 ->  | M64: =G64/$C64*100 -> 
B65: Independent Specialist College | C65: 11 | D65: =IFERROR(GETPIVOTDATA("Provider Name",'Pivot FE&S'!$A$45,"Provider type",$B65,"Teaching",D$4),0) -> 0 | E65: =IFERROR(GETPIVOTDATA("Provider Name",'Pivot FE&S'!$A$42,"Provider type","Independent Specialist College","Teaching",2),0) -> 5 | F65: =IFERROR(GETPIVOTDATA("Provider Name",'Pivot FE&S'!$A$42,"Provider type","Independent Specialist College","Teaching",3),0) -> 4 | G65: =IFERROR(GETPIVOTDATA("Provider Name",'Pivot FE&S'!$A$42,"Provider type","Independent Specialist College","Teaching",4),0) -> 2 | I65: Independent Specialist College (11) | J65: 0 | K65: 45.45454545 | L65: 36.36363636 | M65: 18.18181818
B66: Sixth Form College | C66: 15 | D66: =IFERROR(GETPIVOTDATA("Provider Name",'Pivot FE&S'!$A$45,"Provider type",$B66,"Teaching",D$4),0) -> 0 | E66: =IFERROR(GETPIVOTDATA("Provider Name",'Pivot FE&S'!$A$42,"Provider type","Sixth Form College","Teaching",2),0) -> 7 | F66: =IFERROR(GETPIVOTDATA("Provider Name",'Pivot FE&S'!$A$42,"Provider type","Sixth Form College","Teaching",3),0) -> 6 | G66: =IFERROR(GETPIVOTDATA("Provider Name",'Pivot FE&S'!$A$42,"Provider type","Sixth Form College","Teaching",4),0) -> 2 | I66: Sixth Form College (15) | J66: 0 | K66: 46.66666667 | L66: 40 | M66: 13.33333333
B67: Total | C67: =SUM(C56:C66) -> 272 | D67: =SUM(D56:D66) -> 13 | E67: 131 | F67: 102 | G67: 26 | I67: Total (272) | J67: =D67/$C67*100 -> 4.779411765 | K67: 48.16176471 | L67: 37.5 | M67: 9.558823529
N71: Where the number of inspections is small, percentages should be viewed with caution.
N72: Percentages are rounded and may not add to 100.
T73: Source: Ofsted inspection data
B76: Leadership and management for providers inspected since 1 September 2014
B78: Provider type | C78: Total number of inspections | D78: Leadership and management
D79: Outstanding | E79: Good | F79: Requires improvement | G79: Inadequate | J79: Outstanding | K79: Good | L79: Requires improvement | M79: Inadequate
B80: Academy Converter | C80: =SUM(D80:G80) -> 1 | D80: =IFERROR(GETPIVOTDATA("Provider Name",'Pivot FE&S'!$A$63,"Provider type",$B80,"Leadership and management",D$4),0) -> 0 | E80: =IFERROR(GETPIVOTDATA("Provider Name",'Pivot FE&S'!$A$63,"Provider type",$B80,"Leadership and management",E$4),0) -> 0 | F80: =IFERROR(GETPIVOTDATA("Provider Name",'Pivot FE&S'!$A$63,"Provider type",$B80,"Leadership and management",F$4),0) -> 1 | G80: =IFERROR(GETPIVOTDATA("Provider Name",'Pivot FE&S'!$A$63,"Provider type",$B80,"Leadership and management",G$4),0) -> 0 | I80: =B80&" "&"("&C80&")" -> Academy Converter (1) | J80: =D80/$C80*100 -> 0 | K80: =E80/$C80*100 -> 0 | L80: =F80/$C80*100 -> 100 | M80: =G80/$C80*100 -> 0
B81: Community Learning and Skills | C81: =SUM(D81:G81) -> 60 | D81: =IFERROR(GETPIVOTDATA("Provider Name",'Pivot FE&S'!$A$63,"Provider type","Community Learning and Skills","Leadership and Management",1),0) -> 4 | E81: =IFERROR(GETPIVOTDATA("Provider Name",'Pivot FE&S'!$A$63,"Provider type","Community Learning and Skills","Leadership and Management",2),0) -> 31 | F81: =IFERROR(GETPIVOTDATA("Provider Name",'Pivot FE&S'!$A$63,"Provider type","Community Learning and Skills","Leadership and Management",3),0) -> 18 | G81: =IFERROR(GETPIVOTDATA("Provider Name",'Pivot FE&S'!$A$63,"Provider type","Community Learning and Skills","Leadership and Management",4),0) -> 7 | I81: Community Learning and Skills (60) | J81: 6.666666667 | K81: 51.66666667 | L81: 30 | M81: 11.66666667
B82: Employer | C82: =SUM(D82:G82) -> 13 | D82: =IFERROR(GETPIVOTDATA("Provider Name",'Pivot FE&S'!$A$63,"Provider type","Employer","Leadership and Management",1),0) -> 3 | E82: =IFERROR(GETPIVOTDATA("Provider Name",'Pivot FE&S'!$A$63,"Provider type","Employer","Leadership and Management",2),0) -> 4 | F82: =IFERROR(GETPIVOTDATA("Provider Name",'Pivot FE&S'!$A$63,"Provider type","Employer","Leadership and Management",3),0) -> 4 | G82: =IFERROR(GETPIVOTDATA("Provider Name",'Pivot FE&S'!$A$63,"Provider type","Employer","Leadership and Management",4),0) -> 2 | I82: Employer (13) | J82: 23.07692308 | K82: 30.76923077 | L82: 30.76923077 | M82: 15.38461538
B83: Free School - 16-19 | C83: =SUM(D83:G83) -> 5 | D83: =IFERROR(GETPIVOTDATA("Provider Name",'Pivot FE&S'!$A$63,"Provider type",$B83,"Leadership and management",D$4),0) -> 0 | E83: =IFERROR(GETPIVOTDATA("Provider Name",'Pivot FE&S'!$A$63,"Provider type","Free School - 16-19","Leadership and Management",2),0) -> 1 | F83: =IFERROR(GETPIVOTDATA("Provider Name",'Pivot FE&S'!$A$63,"Provider type","Free School - 16-19","Leadership and Management",3),0) -> 2 | G83: =IFERROR(GETPIVOTDATA("Provider Name",'Pivot FE&S'!$A$63,"Provider type","Free School - 16-19","Leadership and Management",4),0) -> 2 | I83: Free School - 16-19 (5) | J83: 0 | K83: 20 | L83: 40 | M83: 40
B84: General Further Education/Tertiary College | C84: 48 | D84: =IFERROR(GETPIVOTDATA("Provider Name",'Pivot FE&S'!$A$63,"Provider type","General Further Education/Tertiary College","Leadership and Management",1),0) -> 3 | E84: =IFERROR(GETPIVOTDATA("Provider Name",'Pivot FE&S'!$A$63,"Provider type","General Further Education/Tertiary College","Leadership and Management",2),0) -> 18 | F84: =IFERROR(GETPIVOTDATA("Provider Name",'Pivot FE&S'!$A$63,"Provider type","General Further Education/Tertiary College","Leadership and Management",3),0) -> 22 | G84: =IFERROR(GETPIVOTDATA("Provider Name",'Pivot FE&S'!$A$63,"Provider type","General Further Education/Tertiary College","Leadership and Management",4),0) -> 5 | I84: General Further Education/Tertiary College (48) | J84: 6.25 | K84: 37.5 | L84: 45.83333333 | M84: 10.41666667
B85: Specialist Further Education | C85: 3 | D85: =IFERROR(GETPIVOTDATA("Provider Name",'Pivot FE&S'!$A$63,"Provider type",$B85,"Leadership and management",D$4),0) -> 0 | E85: =IFERROR(GETPIVOTDATA("Provider Name",'Pivot FE&S'!$A$63,"Provider type","Specialist Further Education","Leadership and Management",2),0) -> 2 | F85: =IFERROR(GETPIVOTDATA("Provider Name",'Pivot FE&S'!$A$63,"Provider type","Specialist Further Education","Leadership and Management",3),0) -> 1 | G85: =IFERROR(GETPIVOTDATA("Provider Name",'Pivot FE&S'!$A$63,"Provider type","Specialist Further Education","Leadership and Management",4),0) -> 0 | I85: Specialist Further Education (3) | J85: 0 | K85: 66.66666667 | L85: 33.33333333 | M85: 0
B86: Higher Education Institution | C86: 2 | D86: =IFERROR(GETPIVOTDATA("Provider Name",'Pivot FE&S'!$A$63,"Provider type","Higher Education Institution","Leadership and Management",1),0) -> 2 | E86: =IFERROR(GETPIVOTDATA("Provider Name",'Pivot FE&S'!$A$63,"Provider type",$B86,"Leadership and management",E$4),0) -> 0 | F86: =IFERROR(GETPIVOTDATA("Provider Name",'Pivot FE&S'!$A$63,"Provider type",$B86,"Leadership and management",F$4),0) -> 0 | G86: =IFERROR(GETPIVOTDATA("Provider Name",'Pivot FE&S'!$A$63,"Provider type",$B86,"Leadership and management",G$4),0) -> 0 | I86: Higher Education Institution (2) | J86: 100 | K86: 0 | L86: 0 | M86: 0
B87: Independent Learning Provider | C87: 114 | D87: =IFERROR(GETPIVOTDATA("Provider Name",'Pivot FE&S'!$A$63,"Provider type","Independent Learning Provider","Leadership and Management",1),0) -> 5 | E87: =IFERROR(GETPIVOTDATA("Provider Name",'Pivot FE&S'!$A$63,"Provider type","Independent Learning Provider","Leadership and Management",2),0) -> 52 | F87: =IFERROR(GETPIVOTDATA("Provider Name",'Pivot FE&S'!$A$63,"Provider type","Independent Learning Provider","Leadership and Management",3),0) -> 45 | G87: =IFERROR(GETPIVOTDATA("Provider Name",'Pivot FE&S'!$A$63,"Provider type","Independent Learning Provider","Leadership and Management",4),0) -> 12 | I87: Independent Learning Provider (114) | J87: 4.385964912 | K87: 45.61403509 | L87: 39.47368421 | M87: 10.52631579
B88: National Careers Service | C88: 0 | D88: =IFERROR(GETPIVOTDATA("Provider Name",'Pivot FE&S'!$A$63,"Provider type",$B88,"Leadership and management",D$4),0) -> 0 | E88: =IFERROR(GETPIVOTDATA("Provider Name",'Pivot FE&S'!$A$63,"Provider type",$B88,"Leadership and management",E$4),0) -> 0 | F88: =IFERROR(GETPIVOTDATA("Provider Name",'Pivot FE&S'!$A$63,"Provider type",$B88,"Leadership and management",F$4),0) -> 0 | G88: =IFERROR(GETPIVOTDATA("Provider Name",'Pivot FE&S'!$A$63,"Provider type",$B88,"Leadership and management",G$4),0) -> 0 | I88: =B88&" "&"("&C88&")" -> National Careers Service (0) | J88: =D88/$C88*100 -> 
B89: Independent Specialist College | C89: 11 | D89: =IFERROR(GETPIVOTDATA("Provider Name",'Pivot FE&S'!$A$63,"Provider type",$B89,"Leadership and management",D$4),0) -> 0 | E89: =IFERROR(GETPIVOTDATA("Provider Name",'Pivot FE&S'!$A$63,"Provider type","Independent Specialist College","Leadership and Management",2),0) -> 5 | F89: =IFERROR(GETPIVOTDATA("Provider Name",'Pivot FE&S'!$A$63,"Provider type","Independent Specialist College","Leadership and Management",3),0) -> 4 | G89: =IFERROR(GETPIVOTDATA("Provider Name",'Pivot FE&S'!$A$63,"Provider type","Independent Specialist College","Leadership and Management",4),0) -> 2 | I89: =B89&" "&"("&C89&")" -> Independent Specialist College (11) | J89: 0 | K89: 45.45454545 | L89: 36.36363636 | M89: 18.18181818
B90: Sixth Form College | C90: 15 | D90: =IFERROR(GETPIVOTDATA("Provider Name",'Pivot FE&S'!$A$63,"Provider type","Sixth Form College","Leadership and Management",1),0) -> 1 | E90: =IFERROR(GETPIVOTDATA("Provider Name",'Pivot FE&S'!$A$63,"Provider type","Sixth Form College","Leadership and Management",2),0) -> 6 | F90: =IFERROR(GETPIVOTDATA("Provider Name",'Pivot FE&S'!$A$63,"Provider type","Sixth Form College","Leadership and Management",3),0) -> 5 | G90: =IFERROR(GETPIVOTDATA("Provider Name",'Pivot FE&S'!$A$63,"Provider type","Sixth Form College","Leadership and Management",4),0) -> 3 | I90: =B90&" "&"("&C90&")" -> Sixth Form College (15) | J90: 6.666666667 | K90: 40 | L90: 33.33333333 | M90: 20
B91: Total | C91: =SUM(C80:C90) -> 272 | D91: =SUM(D80:D90) -> 18 | E91: =SUM(E80:E90) -> 119 | F91: =SUM(F80:F90) -> 102 | G91: =SUM(G80:G90) -> 33 | I91: =B91&" "&"("&C91&")" -> Total (272) | J91: 6.617647059 | K91: 43.75 | L91: 37.5 | M91: 12.13235294
N97: Where the number of inspections is small, percentages should be viewed with caution.
N98: Percentages are rounded and may not add to 100. | T98: Source: Ofsted inspection data
B100: Sector subject area judgements for providers inspected since 1 September 2014
B102: Sector subject area | C102: Total number of judgements made | D102: Overall sector subject area judgements
D103: Outstanding | E103: Good | F103: Requires improvement | G103: Inadequate
B104: Accounting and Finance | C104: =SUM(D104:G104) -> 19 | D104: =IFERROR(GETPIVOTDATA("URN",'Pivot FE&S'!$A$107,"SSA 2 descriptor",$B104,"Outcome",1),0) -> 2 | E104: =IFERROR(GETPIVOTDATA("URN",'Pivot FE&S'!$A$107,"SSA 2 descriptor",$B104,"Outcome",2),0) -> 8 | F104: =IFERROR(GETPIVOTDATA("URN",'Pivot FE&S'!$A$107,"SSA 2 descriptor",$B104,"Outcome",3),0) -> 8 | G104: =IFERROR(GETPIVOTDATA("URN",'Pivot FE&S'!$A$107,"SSA 2 descriptor",$B104,"Outcome",4),0) -> 1 | I104: =H104-C104 -> -19
B105: Administration | C105: =SUM(D105:G105) -> 84 | D105: =IFERROR(GETPIVOTDATA("URN",'Pivot FE&S'!$A$107,"SSA 2 descriptor",$B105,"Outcome",1),0) -> 1 | E105: =IFERROR(GETPIVOTDATA("URN",'Pivot FE&S'!$A$107,"SSA 2 descriptor",$B105,"Outcome",2),0) -> 47 | F105: =IFERROR(GETPIVOTDATA("URN",'Pivot FE&S'!$A$107,"SSA 2 descriptor",$B105,"Outcome",3),0) -> 34 | G105: =IFERROR(GETPIVOTDATA("URN",'Pivot FE&S'!$A$107,"SSA 2 descriptor",$B105,"Outcome",4),0) -> 2 | I105: -84
B106: Agriculture | C106: 4 | D106: =IFERROR(GETPIVOTDATA("URN",'Pivot FE&S'!$A$107,"SSA 2 descriptor",$B106,"Outcome",1),0) -> 0 | E106: =IFERROR(GETPIVOTDATA("URN",'Pivot FE&S'!$A$107,"SSA 2 descriptor",$B106,"Outcome",2),0) -> 2 | F106: =IFERROR(GETPIVOTDATA("URN",'Pivot FE&S'!$A$107,"SSA 2 descriptor",$B106,"Outcome",3),0) -> 2 | G106: =IFERROR(GETPIVOTDATA("URN",'Pivot FE&S'!$A$107,"SSA 2 descriptor",$B106,"Outcome",4),0) -> 0 | I106: -4
B107: Animal care | C107: 2 | D107: =IFERROR(GETPIVOTDATA("URN",'Pivot FE&S'!$A$107,"SSA 2 descriptor",$B107,"Outcome",1),0) -> 0 | E107: =IFERROR(GETPIVOTDATA("URN",'Pivot FE&S'!$A$107,"SSA 2 descriptor",$B107,"Outcome",2),0) -> 2 | F107: =IFERROR(GETPIVOTDATA("URN",'Pivot FE&S'!$A$107,"SSA 2 descriptor",$B107,"Outcome",3),0) -> 0 | G107: =IFERROR(GETPIVOTDATA("URN",'Pivot FE&S'!$A$107,"SSA 2 descriptor",$B107,"Outcome",4),0) -> 0 | I107: -2
B108: Animal Care and Veterinary Science | C108: 5 | D108: =IFERROR(GETPIVOTDATA("URN",'Pivot FE&S'!$A$107,"SSA 2 descriptor",$B108,"Outcome",1),0) -> 0 | E108: =IFERROR(GETPIVOTDATA("URN",'Pivot FE&S'!$A$107,"SSA 2 descriptor",$B108,"Outcome",2),0) -> 5 | F108: =IFERROR(GETPIVOTDATA("URN",'Pivot FE&S'!$A$107,"SSA 2 descriptor",$B108,"Outcome",3),0) -> 0 | G108: =IFERROR(GETPIVOTDATA("URN",'Pivot FE&S'!$A$107,"SSA 2 descriptor",$B108,"Outcome",4),0) -> 0 | I108: -5
B109: Beauty Therapy | C109: 2 | D109: =IFERROR(GETPIVOTDATA("URN",'Pivot FE&S'!$A$107,"SSA 2 descriptor",$B109,"Outcome",1),0) -> 0 | E109: =IFERROR(GETPIVOTDATA("URN",'Pivot FE&S'!$A$107,"SSA 2 descriptor",$B109,"Outcome",2),0) -> 2 | F109: =IFERROR(GETPIVOTDATA("URN",'Pivot FE&S'!$A$107,"SSA 2 descriptor",$B109,"Outcome",3),0) -> 0 | G109: =IFERROR(GETPIVOTDATA("URN",'Pivot FE&S'!$A$107,"SSA 2 descriptor",$B109,"Outcome",4),0) -> 0 | I109: -2
B110: Building and Construction | C110: 16 | D110: =IFERROR(GETPIVOTDATA("URN",'Pivot FE&S'!$A$107,"SSA 2 descriptor",$B110,"Outcome",1),0) -> 0 | E110: =IFERROR(GETPIVOTDATA("URN",'Pivot FE&S'!$A$107,"SSA 2 descriptor",$B110,"Outcome",2),0) -> 6 | F110: =IFERROR(GETPIVOTDATA("URN",'Pivot FE&S'!$A$107,"SSA 2 descriptor",$B110,"Outcome",3),0) -> 7 | G110: =IFERROR(GETPIVOTDATA("URN",'Pivot FE&S'!$A$107,"SSA 2 descriptor",$B110,"Outcome",4),0) -> 3 | I110: -16
B111: Building Services | C111: 6 | D111: =IFERROR(GETPIVOTDATA("URN",'Pivot FE&S'!$A$107,"SSA 2 descriptor",$B111,"Outcome",1),0) -> 0 | E111: =IFERROR(GETPIVOTDATA("URN",'Pivot FE&S'!$A$107,"SSA 2 descriptor",$B111,"Outcome",2),0) -> 4 | F111: =IFERROR(GETPIVOTDATA("URN",'Pivot FE&S'!$A$107,"SSA 2 descriptor",$B111,"Outcome",3),0) -> 1 | G111: =IFERROR(GETPIVOTDATA("URN",'Pivot FE&S'!$A$107,"SSA 2 descriptor",$B111,"Outcome",4),0) -> 1 | I111: -6
B112: Business | C112: 9 | D112: =IFERROR(GETPIVOTDATA("URN",'Pivot FE&S'!$A$107,"SSA 2 descriptor",$B112,"Outcome",1),0) -> 1 | E112: =IFERROR(GETPIVOTDATA("URN",'Pivot FE&S'!$A$107,"SSA 2 descriptor",$B112,"Outcome",2),0) -> 4 | F112: =IFERROR(GETPIVOTDATA("URN",'Pivot FE&S'!$A$107,"SSA 2 descriptor",$B112,"Outcome",3),0) -> 4 | G112: =IFERROR(GETPIVOTDATA("URN",'Pivot FE&S'!$A$107,"SSA 2 descriptor",$B112,"Outcome",4),0) -> 0 | I112: -9
B113: Business Management | C113: 56 | D113: =IFERROR(GETPIVOTDATA("URN",'Pivot FE&S'!$A$107,"SSA 2 descriptor",$B113,"Outcome",1),0) -> 0 | E113: =IFERROR(GETPIVOTDATA("URN",'Pivot FE&S'!$A$107,"SSA 2 descriptor",$B113,"Outcome",2),0) -> 30 | F113: =IFERROR(GETPIVOTDATA("URN",'Pivot FE&S'!$A$107,"SSA 2 descriptor",$B113,"Outcome",3),0) -> 23 | G113: =IFERROR(GETPIVOTDATA("URN",'Pivot FE&S'!$A$107,"SSA 2 descriptor",$B113,"Outcome",4),0) -> 3 | I113: -56
B114: Call centre operations | C114: 1 | D114: =IFERROR(GETPIVOTDATA("URN",'Pivot FE&S'!$A$107,"SSA 2 descriptor",$B114,"Outcome",1),0) -> 0 | E114: =IFERROR(GETPIVOTDATA("URN",'Pivot FE&S'!$A$107,"SSA 2 descriptor",$B114,"Outcome",2),0) -> 0 | F114: =IFERROR(GETPIVOTDATA("URN",'Pivot FE&S'!$A$107,"SSA 2 descriptor",$B114,"Outcome",3),0) -> 0 | G114: =IFERROR(GETPIVOTDATA("URN",'Pivot FE&S'!$A$107,"SSA 2 descriptor",$B114,"Outcome",4),0) -> 1 | I114: -1
B115: Communications Technology | C115: 1 | D115: =IFERROR(GETPIVOTDATA("URN",'Pivot FE&S'!$A$107,"SSA 2 descriptor",$B115,"Outcome",1),0) -> 0 | E115: =IFERROR(GETPIVOTDATA("URN",'Pivot FE&S'!$A$107,"SSA 2 descriptor",$B115,"Outcome",2),0) -> 1 | F115: =IFERROR(GETPIVOTDATA("URN",'Pivot FE&S'!$A$107,"SSA 2 descriptor",$B115,"Outcome",3),0) -> 0 | G115: =IFERROR(GETPIVOTDATA("URN",'Pivot FE&S'!$A$107,"SSA 2 descriptor",$B115,"Outcome",4),0) -> 0 | I115: -1
B116: Community Development | C116: 1 | D116: =IFERROR(GETPIVOTDATA("URN",'Pivot FE&S'!$A$107,"SSA 2 descriptor",$B116,"Outcome",1),0) -> 0 | E116: =IFERROR(GETPIVOTDATA("URN",'Pivot FE&S'!$A$107,"SSA 2 descriptor",$B116,"Outcome",2),0) -> 0 | F116: =IFERROR(GETPIVOTDATA("URN",'Pivot FE&S'!$A$107,"SSA 2 descriptor",$B116,"Outcome",3),0) -> 1 | G116: =IFERROR(GETPIVOTDATA("URN",'Pivot FE&S'!$A$107,"SSA 2 descriptor",$B116,"Outcome",4),0) -> 0 | I116: -1
B117: Community Learning | C117: 11 | D117: =IFERROR(GETPIVOTDATA("URN",'Pivot FE&S'!$A$107,"SSA 2 descriptor",$B117,"Outcome",1),0) -> 0 | E117: =IFERROR(GETPIVOTDATA("URN",'Pivot FE&S'!$A$107,"SSA 2 descriptor",$B117,"Outcome",2),0) -> 7 | F117: =IFERROR(GETPIVOTDATA("URN",'Pivot FE&S'!$A$107,"SSA 2 descriptor",$B117,"Outcome",3),0) -> 3 | G117: =IFERROR(GETPIVOTDATA("URN",'Pivot FE&S'!$A$107,"SSA 2 descriptor",$B117,"Outcome",4),0) -> 1 | I117: -11
B118: Construction Crafts | C118: 10 | D118: =IFERROR(GETPIVOTDATA("URN",'Pivot FE&S'!$A$107,"SSA 2 descriptor",$B118,"Outcome",1),0) -> 0 | E118: =IFERROR(GETPIVOTDATA("URN",'Pivot FE&S'!$A$107,"SSA 2 descriptor",$B118,"Outcome",2),0) -> 5 | F118: =IFERROR(GETPIVOTDATA("URN",'Pivot FE&S'!$A$107,"SSA 2 descriptor",$B118,"Outcome",3),0) -> 5 | G118: =IFERROR(GETPIVOTDATA("URN",'Pivot FE&S'!$A$107,"SSA 2 descriptor",$B118,"Outcome",4),0) -> 0 | I118: -10
B119: Customer service | C119: 12 | D119: =IFERROR(GETPIVOTDATA("URN",'Pivot FE&S'!$A$107,"SSA 2 descriptor",$B119,"Outcome",1),0) -> 0 | E119: =IFERROR(GETPIVOTDATA("URN",'Pivot FE&S'!$A$107,"SSA 2 descriptor",$B119,"Outcome",2),0) -> 6 | F119: =IFERROR(GETPIVOTDATA("URN",'Pivot FE&S'!$A$107,"SSA 2 descriptor",$B119,"Outcome",3),0) -> 2 | G119: =IFERROR(GETPIVOTDATA("URN",'Pivot FE&S'!$A$107,"SSA 2 descriptor",$B119,"Outcome",4),0) -> 4 | I119: -12
B120: Early Years and Playwork | C120: 41 | D120: =IFERROR(GETPIVOTDATA("URN",'Pivot FE&S'!$A$107,"SSA 2 descriptor",$B120,"Outcome",1),0) -> 5 | E120: =IFERROR(GETPIVOTDATA("URN",'Pivot FE&S'!$A$107,"SSA 2 descriptor",$B120,"Outcome",2),0) -> 20 | F120: =IFERROR(GETPIVOTDATA("URN",'Pivot FE&S'!$A$107,"SSA 2 descriptor",$B120,"Outcome",3),0) -> 16 | G120: =IFERROR(GETPIVOTDATA("URN",'Pivot FE&S'!$A$107,"SSA 2 descriptor",$B120,"Outcome",4),0) -> 0 | I120: -41
B121: Employability Training | C121: 46 | D121: =IFERROR(GETPIVOTDATA("URN",'Pivot FE&S'!$A$107,"SSA 2 descriptor",$B121,"Outcome",1),0) -> 2 | E121: =IFERROR(GETPIVOTDATA("URN",'Pivot FE&S'!$A$107,"SSA 2 descriptor",$B121,"Outcome",2),0) -> 23 | F121: =IFERROR(GETPIVOTDATA("URN",'Pivot FE&S'!$A$107,"SSA 2 descriptor",$B121,"Outcome",3),0) -> 17 | G121: =IFERROR(GETPIVOTDATA("URN",'Pivot FE&S'!$A$107,"SSA 2 descriptor",$B121,"Outcome",4),0) -> 4 | I121: -46
B122: Engineering | C122: 30 | D122: =IFERROR(GETPIVOTDATA("URN",'Pivot FE&S'!$A$107,"SSA 2 descriptor",$B122,"Outcome",1),0) -> 5 | E122: =IFERROR(GETPIVOTDATA("URN",'Pivot FE&S'!$A$107,"SSA 2 descriptor",$B122,"Outcome",2),0) -> 13 | F122: =IFERROR(GETPIVOTDATA("URN",'Pivot FE&S'!$A$107,"SSA 2 descriptor",$B122,"Outcome",3),0) -> 12 | G122: =IFERROR(GETPIVOTDATA("URN",'Pivot FE&S'!$A$107,"SSA 2 descriptor",$B122,"Outcome",4),0) -> 0 | I122: -30
B123: English | C123: 16 | D123: =IFERROR(GETPIVOTDATA("URN",'Pivot FE&S'!$A$107,"SSA 2 descriptor",$B123,"Outcome",1),0) -> 1 | E123: =IFERROR(GETPIVOTDATA("URN",'Pivot FE&S'!$A$107,"SSA 2 descriptor",$B123,"Outcome",2),0) -> 6 | F123: =IFERROR(GETPIVOTDATA("URN",'Pivot FE&S'!$A$107,"SSA 2 descriptor",$B123,"Outcome",3),0) -> 8 | G123: =IFERROR(GETPIVOTDATA("URN",'Pivot FE&S'!$A$107,"SSA 2 descriptor",$B123,"Outcome",4),0) -> 1 | I123: -16
B124: Environmental Conservation | C124: 1 | D124: =IFERROR(GETPIVOTDATA("URN",'Pivot FE&S'!$A$107,"SSA 2 descriptor",$B124,"Outcome",1),0) -> 0 | E124: =IFERROR(GETPIVOTDATA("URN",'Pivot FE&S'!$A$107,"SSA 2 descriptor",$B124,"Outcome",2),0) -> 0 | F124: =IFERROR(GETPIVOTDATA("URN",'Pivot FE&S'!$A$107,"SSA 2 descriptor",$B124,"Outcome",3),0) -> 1 | G124: =IFERROR(GETPIVOTDATA("URN",'Pivot FE&S'!$A$107,"SSA 2 descriptor",$B124,"Outcome",4),0) -> 0 | I124: -1
B125: Equine Studies | C125: 2 | D125: =IFERROR(GETPIVOTDATA("URN",'Pivot FE&S'!$A$107,"SSA 2 descriptor",$B125,"Outcome",1),0) -> 0 | E125: =IFERROR(GETPIVOTDATA("URN",'Pivot FE&S'!$A$107,"SSA 2 descriptor",$B125,"Outcome",2),0) -> 1 | F125: =IFERROR(GETPIVOTDATA("URN",'Pivot FE&S'!$A$107,"SSA 2 descriptor",$B125,"Outcome",3),0) -> 1 | G125: =IFERROR(GETPIVOTDATA("URN",'Pivot FE&S'!$A$107,"SSA 2 descriptor",$B125,"Outcome",4),0) -> 0 | I125: -2
B126: ESOL | C126: 15 | D126: =IFERROR(GETPIVOTDATA("URN",'Pivot FE&S'!$A$107,"SSA 2 descriptor",$B126,"Outcome",1),0) -> 1 | E126: =IFERROR(GETPIVOTDATA("URN",'Pivot FE&S'!$A$107,"SSA 2 descriptor",$B126,"Outcome",2),0) -> 11 | F126: =IFERROR(GETPIVOTDATA("URN",'Pivot FE&S'!$A$107,"SSA 2 descriptor",$B126,"Outcome",3),0) -> 2 | G126: =IFERROR(GETPIVOTDATA("URN",'Pivot FE&S'!$A$107,"SSA 2 descriptor",$B126,"Outcome",4),0) -> 1 | I126: -15
B127: Family Learning | C127: 4 | D127: =IFERROR(GETPIVOTDATA("URN",'Pivot FE&S'!$A$107,"SSA 2 descriptor",$B127,"Outcome",1),0) -> 1 | E127: =IFERROR(GETPIVOTDATA("URN",'Pivot FE&S'!$A$107,"SSA 2 descriptor",$B127,"Outcome",2),0) -> 2 | F127: =IFERROR(GETPIVOTDATA("URN",'Pivot FE&S'!$A$107,"SSA 2 descriptor",$B127,"Outcome",3),0) -> 1 | G127: =IFERROR(GETPIVOTDATA("URN",'Pivot FE&S'!$A$107,"SSA 2 descriptor",$B127,"Outcome",4),0) -> 0 | I127: -4
B128: Forestry | C128: 1 | D128: =IFERROR(GETPIVOTDATA("URN",'Pivot FE&S'!$A$107,"SSA 2 descriptor",$B128,"Outcome",1),0) -> 0 | E128: =IFERROR(GETPIVOTDATA("URN",'Pivot FE&S'!$A$107,"SSA 2 descriptor",$B128,"Outcome",2),0) -> 1 | F128: =IFERROR(GETPIVOTDATA("URN",'Pivot FE&S'!$A$107,"SSA 2 descriptor",$B128,"Outcome",3),0) -> 0 | G128: =IFERROR(GETPIVOTDATA("URN",'Pivot FE&S'!$A$107,"SSA 2 descriptor",$B128,"Outcome",4),0) -> 0 | I128: -1
B129: Foundation English | C129: 41 | D129: =IFERROR(GETPIVOTDATA("URN",'Pivot FE&S'!$A$107,"SSA 2 descriptor",$B129,"Outcome",1),0) -> 0 | E129: =IFERROR(GETPIVOTDATA("URN",'Pivot FE&S'!$A$107,"SSA 2 descriptor",$B129,"Outcome",2),0) -> 15 | F129: =IFERROR(GETPIVOTDATA("URN",'Pivot FE&S'!$A$107,"SSA 2 descriptor",$B129,"Outcome",3),0) -> 21 | G129: =IFERROR(GETPIVOTDATA("URN",'Pivot FE&S'!$A$107,"SSA 2 descriptor",$B129,"Outcome",4),0) -> 5 | I129: -41
B130: Foundation English and Mathematics | C130: 20 | D130: =IFERROR(GETPIVOTDATA("URN",'Pivot FE&S'!$A$107,"SSA 2 descriptor",$B130,"Outcome",1),0) -> 0 | E130: =IFERROR(GETPIVOTDATA("URN",'Pivot FE&S'!$A$107,"SSA 2 descriptor",$B130,"Outcome",2),0) -> 13 | F130: =IFERROR(GETPIVOTDATA("URN",'Pivot FE&S'!$A$107,"SSA 2 descriptor",$B130,"Outcome",3),0) -> 7 | G130: =IFERROR(GETPIVOTDATA("URN",'Pivot FE&S'!$A$107,"SSA 2 descriptor",$B130,"Outcome",4),0) -> 0 | I130: -20
B131: Foundation mathematics | C131: 32 | D131: =IFERROR(GETPIVOTDATA("URN",'Pivot FE&S'!$A$107,"SSA 2 descriptor",$B131,"Outcome",1),0) -> 0 | E131: =IFERROR(GETPIVOTDATA("URN",'Pivot FE&S'!$A$107,"SSA 2 descriptor",$B131,"Outcome",2),0) -> 10 | F131: =IFERROR(GETPIVOTDATA("URN",'Pivot FE&S'!$A$107,"SSA 2 descriptor",$B131,"Outcome",3),0) -> 17 | G131: =IFERROR(GETPIVOTDATA("URN",'Pivot FE&S'!$A$107,"SSA 2 descriptor",$B131,"Outcome",4),0) -> 5 | I131: -32
B132: Hairdressing | C132: 11 | D132: =IFERROR(GETPIVOTDATA("URN",'Pivot FE&S'!$A$107,"SSA 2 descriptor",$B132,"Outcome",1),0) -> 1 | E132: =IFERROR(GETPIVOTDATA("URN",'Pivot FE&S'!$A$107,"SSA 2 descriptor",$B132,"Outcome",2),0) -> 5 | F132: =IFERROR(GETPIVOTDATA("URN",'Pivot FE&S'!$A$107,"SSA 2 descriptor",$B132,"Outcome",3),0) -> 2 | G132: =IFERROR(GETPIVOTDATA("URN",'Pivot FE&S'!$A$107,"SSA 2 descriptor",$B132,"Outcome",4),0) -> 3 | I132: -11
B133: Hairdressing and beauty therapy | C133: 21 | D133: =IFERROR(GETPIVOTDATA("URN",'Pivot FE&S'!$A$107,"SSA 2 descriptor",$B133,"Outcome",1),0) -> 1 | E133: =IFERROR(GETPIVOTDATA("URN",'Pivot FE&S'!$A$107,"SSA 2 descriptor",$B133,"Outcome",2),0) -> 10 | F133: =IFERROR(GETPIVOTDATA("URN",'Pivot FE&S'!$A$107,"SSA 2 descriptor",$B133,"Outcome",3),0) -> 9 | G133: =IFERROR(GETPIVOTDATA("URN",'Pivot FE&S'!$A$107,"SSA 2 descriptor",$B133,"Outcome",4),0) -> 1 | I133: -21
B134: Health and Social Care | C134: 78 | D134: =IFERROR(GETPIVOTDATA("URN",'Pivot FE&S'!$A$107,"SSA 2 descriptor",$B134,"Outcome",1),0) -> 5 | E134: =IFERROR(GETPIVOTDATA("URN",'Pivot FE&S'!$A$107,"SSA 2 descriptor",$B134,"Outcome",2),0) -> 41 | F134: =IFERROR(GETPIVOTDATA("URN",'Pivot FE&S'!$A$107,"SSA 2 descriptor",$B134,"Outcome",3),0) -> 30 | G134: =IFERROR(GETPIVOTDATA("URN",'Pivot FE&S'!$A$107,"SSA 2 descriptor",$B134,"Outcome",4),0) -> 2 | I134: -78
B135: Health, Public Services and Care | C135: 1 | D135: =IFERROR(GETPIVOTDATA("URN",'Pivot FE&S'!$A$107,"SSA 2 descriptor",$B135,"Outcome",1),0) -> 0 | E135: =IFERROR(GETPIVOTDATA("URN",'Pivot FE&S'!$A$107,"SSA 2 descriptor",$B135,"Outcome",2),0) -> 1 | F135: =IFERROR(GETPIVOTDATA("URN",'Pivot FE&S'!$A$107,"SSA 2 descriptor",$B135,"Outcome",3),0) -> 0 | G135: =IFERROR(GETPIVOTDATA("URN",'Pivot FE&S'!$A$107,"SSA 2 descriptor",$B135,"Outcome",4),0) -> 0 | I135: -1
B136: History | C136: 2 | D136: =IFERROR(GETPIVOTDATA("URN",'Pivot FE&S'!$A$107,"SSA 2 descriptor",$B136,"Outcome",1),0) -> 1 | E136: =IFERROR(GETPIVOTDATA("URN",'Pivot FE&S'!$A$107,"SSA 2 descriptor",$B136,"Outcome",2),0) -> 1 | F136: =IFERROR(GETPIVOTDATA("URN",'Pivot FE&S'!$A$107,"SSA 2 descriptor",$B136,"Outcome",3),0) -> 0 | G136: =IFERROR(GETPIVOTDATA("URN",'Pivot FE&S'!$A$107,"SSA 2 descriptor",$B136,"Outcome",4),0) -> 0 | I136: =H136-C136 -> -2
B137: Horticulture | C137: 1 | D137: =IFERROR(GETPIVOTDATA("URN",'Pivot FE&S'!$A$107,"SSA 2 descriptor",$B137,"Outcome",1),0) -> 0 | E137: =IFERROR(GETPIVOTDATA("URN",'Pivot FE&S'!$A$107,"SSA 2 descriptor",$B137,"Outcome",2),0) -> 1 | F137: =IFERROR(GETPIVOTDATA("URN",'Pivot FE&S'!$A$107,"SSA 2 descriptor",$B137,"Outcome",3),0) -> 0 | G137: =IFERROR(GETPIVOTDATA("URN",'Pivot FE&S'!$A$107,"SSA 2 descriptor",$B137,"Outcome",4),0) -> 0 | I137: -1
B138: Horticulture and Forestry | C138: 2 | D138: =IFERROR(GETPIVOTDATA("URN",'Pivot FE&S'!$A$107,"SSA 2 descriptor",$B138,"Outcome",1),0) -> 0 | E138: =IFERROR(GETPIVOTDATA("URN",'Pivot FE&S'!$A$107,"SSA 2 descriptor",$B138,"Outcome",2),0) -> 1 | F138: =IFERROR(GETPIVOTDATA("URN",'Pivot FE&S'!$A$107,"SSA 2 descriptor",$B138,"Outcome",3),0) -> 1 | G138: =IFERROR(GETPIVOTDATA("URN",'Pivot FE&S'!$A$107,"SSA 2 descriptor",$B138,"Outcome",4),0) -> 0 | I138: -2
B139: Hospitality and Catering | C139: 17 | D139: =IFERROR(GETPIVOTDATA("URN",'Pivot FE&S'!$A$107,"SSA 2 descriptor",$B139,"Outcome",1),0) -> 0 | E139: =IFERROR(GETPIVOTDATA("URN",'Pivot FE&S'!$A$107,"SSA 2 descriptor",$B139,"Outcome",2),0) -> 13 | F139: =IFERROR(GETPIVOTDATA("URN",'Pivot FE&S'!$A$107,"SSA 2 descriptor",$B139,"Outcome",3),0) -> 2 | G139: =IFERROR(GETPIVOTDATA("URN",'Pivot FE&S'!$A$107,"SSA 2 descriptor",$B139,"Outcome",4),0) -> 2 | I139: -17
B140: ICT for practitioners | C140: 21 | D140: =IFERROR(GETPIVOTDATA("URN",'Pivot FE&S'!$A$107,"SSA 2 descriptor",$B140,"Outcome",1),0) -> 3 | E140: =IFERROR(GETPIVOTDATA("URN",'Pivot FE&S'!$A$107,"SSA 2 descriptor",$B140,"Outcome",2),0) -> 12 | F140: =IFERROR(GETPIVOTDATA("URN",'Pivot FE&S'!$A$107,"SSA 2 descriptor",$B140,"Outcome",3),0) -> 3 | G140: =IFERROR(GETPIVOTDATA("URN",'Pivot FE&S'!$A$107,"SSA 2 descriptor",$B140,"Outcome",4),0) -> 3 | I140: -21
B141: ICT for Users | C141: 22 | D141: =IFERROR(GETPIVOTDATA("URN",'Pivot FE&S'!$A$107,"SSA 2 descriptor",$B141,"Outcome",1),0) -> 1 | E141: =IFERROR(GETPIVOTDATA("URN",'Pivot FE&S'!$A$107,"SSA 2 descriptor",$B141,"Outcome",2),0) -> 15 | F141: =IFERROR(GETPIVOTDATA("URN",'Pivot FE&S'!$A$107,"SSA 2 descriptor",$B141,"Outcome",3),0) -> 4 | G141: =IFERROR(GETPIVOTDATA("URN",'Pivot FE&S'!$A$107,"SSA 2 descriptor",$B141,"Outcome",4),0) -> 2 | I141: -22
B142: Independent living and leisure skills | C142: 23 | D142: =IFERROR(GETPIVOTDATA("URN",'Pivot FE&S'!$A$107,"SSA 2 descriptor",$B142,"Outcome",1),0) -> 3 | E142: =IFERROR(GETPIVOTDATA("URN",'Pivot FE&S'!$A$107,"SSA 2 descriptor",$B142,"Outcome",2),0) -> 12 | F142: =IFERROR(GETPIVOTDATA("URN",'Pivot FE&S'!$A$107,"SSA 2 descriptor",$B142,"Outcome",3),0) -> 6 | G142: =IFERROR(GETPIVOTDATA("URN",'Pivot FE&S'!$A$107,"SSA 2 descriptor",$B142,"Outcome",4),0) -> 2 | I142: -23
B143: Law and Legal Services | C143: 8 | D143: =IFERROR(GETPIVOTDATA("URN",'Pivot FE&S'!$A$107,"SSA 2 descriptor",$B143,"Outcome",1),0) -> 1 | E143: =IFERROR(GETPIVOTDATA("URN",'Pivot FE&S'!$A$107,"SSA 2 descriptor",$B143,"Outcome",2),0) -> 4 | F143: =IFERROR(GETPIVOTDATA("URN",'Pivot FE&S'!$A$107,"SSA 2 descriptor",$B143,"Outcome",3),0) -> 2 | G143: =IFERROR(GETPIVOTDATA("URN",'Pivot FE&S'!$A$107,"SSA 2 descriptor",$B143,"Outcome",4),0) -> 1 | I143: -8
B144: Leisure, Travel and Tourism | C144: 1 | D144: =IFERROR(GETPIVOTDATA("URN",'Pivot FE&S'!$A$107,"SSA 2 descriptor",$B144,"Outcome",1),0) -> 1 | E144: =IFERROR(GETPIVOTDATA("URN",'Pivot FE&S'!$A$107,"SSA 2 descriptor",$B144,"Outcome",2),0) -> 0 | F144: =IFERROR(GETPIVOTDATA("URN",'Pivot FE&S'!$A$107,"SSA 2 descriptor",$B144,"Outcome",3),0) -> 0 | G144: =IFERROR(GETPIVOTDATA("URN",'Pivot FE&S'!$A$107,"SSA 2 descriptor",$B144,"Outcome",4),0) -> 0 | I144: -1
B145: Manufacturing Technologies | C145: 23 | D145: =IFERROR(GETPIVOTDATA("URN",'Pivot FE&S'!$A$107,"SSA 2 descriptor",$B145,"Outcome",1),0) -> 3 | E145: =IFERROR(GETPIVOTDATA("URN",'Pivot FE&S'!$A$107,"SSA 2 descriptor",$B145,"Outcome",2),0) -> 13 | F145: =IFERROR(GETPIVOTDATA("URN",'Pivot FE&S'!$A$107,"SSA 2 descriptor",$B145,"Outcome",3),0) -> 7 | G145: =IFERROR(GETPIVOTDATA("URN",'Pivot FE&S'!$A$107,"SSA 2 descriptor",$B145,"Outcome",4),0) -> 0 | I145: -23
B146: Marketing and Sales | C146: =SUM(D146:G146) -> 3 | D146: =IFERROR(GETPIVOTDATA("URN",'Pivot FE&S'!$A$107,"SSA 2 descriptor",$B146,"Outcome",1),0) -> 0 | E146: =IFERROR(GETPIVOTDATA("URN",'Pivot FE&S'!$A$107,"SSA 2 descriptor",$B146,"Outcome",2),0) -> 2 | F146: =IFERROR(GETPIVOTDATA("URN",'Pivot FE&S'!$A$107,"SSA 2 descriptor",$B146,"Outcome",3),0) -> 1 | G146: =IFERROR(GETPIVOTDATA("URN",'Pivot FE&S'!$A$107,"SSA 2 descriptor",$B146,"Outcome",4),0) -> 0 | I146: -3
B147: Mathematics and Statistics | C147: 21 | D147: =IFERROR(GETPIVOTDATA("URN",'Pivot FE&S'!$A$107,"SSA 2 descriptor",$B147,"Outcome",1),0) -> 1 | E147: =IFERROR(GETPIVOTDATA("URN",'Pivot FE&S'!$A$107,"SSA 2 descriptor",$B147,"Outcome",2),0) -> 4 | F147: =IFERROR(GETPIVOTDATA("URN",'Pivot FE&S'!$A$107,"SSA 2 descriptor",$B147,"Outcome",3),0) -> 15 | G147: =IFERROR(GETPIVOTDATA("URN",'Pivot FE&S'!$A$107,"SSA 2 descriptor",$B147,"Outcome",4),0) -> 1 | I147: -21
B148: Media and Communication | C148: 13 | D148: =IFERROR(GETPIVOTDATA("URN",'Pivot FE&S'!$A$107,"SSA 2 descriptor",$B148,"Outcome",1),0) -> 1 | E148: =IFERROR(GETPIVOTDATA("URN",'Pivot FE&S'!$A$107,"SSA 2 descriptor",$B148,"Outcome",2),0) -> 6 | F148: =IFERROR(GETPIVOTDATA("URN",'Pivot FE&S'!$A$107,"SSA 2 descriptor",$B148,"Outcome",3),0) -> 6 | G148: =IFERROR(GETPIVOTDATA("URN",'Pivot FE&S'!$A$107,"SSA 2 descriptor",$B148,"Outcome",4),0) -> 0 | I148: -13
B149: Modern foreign languages | C149: 5 | D149: =IFERROR(GETPIVOTDATA("URN",'Pivot FE&S'!$A$107,"SSA 2 descriptor",$B149,"Outcome",1),0) -> 0 | E149: =IFERROR(GETPIVOTDATA("URN",'Pivot FE&S'!$A$107,"SSA 2 descriptor",$B149,"Outcome",2),0) -> 3 | F149: =IFERROR(GETPIVOTDATA("URN",'Pivot FE&S'!$A$107,"SSA 2 descriptor",$B149,"Outcome",3),0) -> 1 | G149: =IFERROR(GETPIVOTDATA("URN",'Pivot FE&S'!$A$107,"SSA 2 descriptor",$B149,"Outcome",4),0) -> 1 | I149: -5
B150: Motor vehicle | C150: 17 | D150: =IFERROR(GETPIVOTDATA("URN",'Pivot FE&S'!$A$107,"SSA 2 descriptor",$B150,"Outcome",1),0) -> 1 | E150: =IFERROR(GETPIVOTDATA("URN",'Pivot FE&S'!$A$107,"SSA 2 descriptor",$B150,"Outcome",2),0) -> 6 | F150: =IFERROR(GETPIVOTDATA("URN",'Pivot FE&S'!$A$107,"SSA 2 descriptor",$B150,"Outcome",3),0) -> 10 | G150: =IFERROR(GETPIVOTDATA("URN",'Pivot FE&S'!$A$107,"SSA 2 descriptor",$B150,"Outcome",4),0) -> 0 | I150: -17
B151: Nursing and Dental Health | C151: 4 | D151: =IFERROR(GETPIVOTDATA("URN",'Pivot FE&S'!$A$107,"SSA 2 descriptor",$B151,"Outcome",1),0) -> 1 | E151: =IFERROR(GETPIVOTDATA("URN",'Pivot FE&S'!$A$107,"SSA 2 descriptor",$B151,"Outcome",2),0) -> 1 | F151: =IFERROR(GETPIVOTDATA("URN",'Pivot FE&S'!$A$107,"SSA 2 descriptor",$B151,"Outcome",3),0) -> 2 | G151: =IFERROR(GETPIVOTDATA("URN",'Pivot FE&S'!$A$107,"SSA 2 descriptor",$B151,"Outcome",4),0) -> 0 | I151: -4
B152: Performing Arts | C152: 19 | D152: =IFERROR(GETPIVOTDATA("URN",'Pivot FE&S'!$A$107,"SSA 2 descriptor",$B152,"Outcome",1),0) -> 3 | E152: =IFERROR(GETPIVOTDATA("URN",'Pivot FE&S'!$A$107,"SSA 2 descriptor",$B152,"Outcome",2),0) -> 13 | F152: =IFERROR(GETPIVOTDATA("URN",'Pivot FE&S'!$A$107,"SSA 2 descriptor",$B152,"Outcome",3),0) -> 3 | G152: =IFERROR(GETPIVOTDATA("URN",'Pivot FE&S'!$A$107,"SSA 2 descriptor",$B152,"Outcome",4),0) -> 0 | I152: -19
B153: Psychology | C153: 4 | D153: =IFERROR(GETPIVOTDATA("URN",'Pivot FE&S'!$A$107,"SSA 2 descriptor",$B153,"Outcome",1),0) -> 0 | E153: =IFERROR(GETPIVOTDATA("URN",'Pivot FE&S'!$A$107,"SSA 2 descriptor",$B153,"Outcome",2),0) -> 3 | F153: =IFERROR(GETPIVOTDATA("URN",'Pivot FE&S'!$A$107,"SSA 2 descriptor",$B153,"Outcome",3),0) -> 0 | G153: =IFERROR(GETPIVOTDATA("URN",'Pivot FE&S'!$A$107,"SSA 2 descriptor",$B153,"Outcome",4),0) -> 1 | I153: -4
B154: Public Services | C154: 13 | D154: =IFERROR(GETPIVOTDATA("URN",'Pivot FE&S'!$A$107,"SSA 2 descriptor",$B154,"Outcome",1),0) -> 3 | E154: =IFERROR(GETPIVOTDATA("URN",'Pivot FE&S'!$A$107,"SSA 2 descriptor",$B154,"Outcome",2),0) -> 7 | F154: =IFERROR(GETPIVOTDATA("URN",'Pivot FE&S'!$A$107,"SSA 2 descriptor",$B154,"Outcome",3),0) -> 3 | G154: =IFERROR(GETPIVOTDATA("URN",'Pivot FE&S'!$A$107,"SSA 2 descriptor",$B154,"Outcome",4),0) -> 0 | I154: -13
B155: Retailing and Wholesaling | C155: 8 | D155: =IFERROR(GETPIVOTDATA("URN",'Pivot FE&S'!$A$107,"SSA 2 descriptor",$B155,"Outcome",1),0) -> 0 | E155: =IFERROR(GETPIVOTDATA("URN",'Pivot FE&S'!$A$107,"SSA 2 descriptor",$B155,"Outcome",2),0) -> 5 | F155: =IFERROR(GETPIVOTDATA("URN",'Pivot FE&S'!$A$107,"SSA 2 descriptor",$B155,"Outcome",3),0) -> 2 | G155: =IFERROR(GETPIVOTDATA("URN",'Pivot FE&S'!$A$107,"SSA 2 descriptor",$B155,"Outcome",4),0) -> 1 | I155: -8
B156: Science | C156: 27 | D156: =IFERROR(GETPIVOTDATA("URN",'Pivot FE&S'!$A$107,"SSA 2 descriptor",$B156,"Outcome",1),0) -> 0 | E156: =IFERROR(GETPIVOTDATA("URN",'Pivot FE&S'!$A$107,"SSA 2 descriptor",$B156,"Outcome",2),0) -> 11 | F156: =IFERROR(GETPIVOTDATA("URN",'Pivot FE&S'!$A$107,"SSA 2 descriptor",$B156,"Outcome",3),0) -> 13 | G156: =IFERROR(GETPIVOTDATA("URN",'Pivot FE&S'!$A$107,"SSA 2 descriptor",$B156,"Outcome",4),0) -> 3 | I156: -27
B157: Science and Mathematics | C157: 1 | D157: =IFERROR(GETPIVOTDATA("URN",'Pivot FE&S'!$A$107,"SSA 2 descriptor",$B157,"Outcome",1),0) -> 0 | E157: =IFERROR(GETPIVOTDATA("URN",'Pivot FE&S'!$A$107,"SSA 2 descriptor",$B157,"Outcome",2),0) -> 0 | F157: =IFERROR(GETPIVOTDATA("URN",'Pivot FE&S'!$A$107,"SSA 2 descriptor",$B157,"Outcome",3),0) -> 0 | G157: =IFERROR(GETPIVOTDATA("URN",'Pivot FE&S'!$A$107,"SSA 2 descriptor",$B157,"Outcome",4),0) -> 1 | I157: -1
B158: Service Enterprises | C158: 2 | D158: =IFERROR(GETPIVOTDATA("URN",'Pivot FE&S'!$A$107,"SSA 2 descriptor",$B158,"Outcome",1),0) -> 0 | E158: =IFERROR(GETPIVOTDATA("URN",'Pivot FE&S'!$A$107,"SSA 2 descriptor",$B158,"Outcome",2),0) -> 1 | F158: =IFERROR(GETPIVOTDATA("URN",'Pivot FE&S'!$A$107,"SSA 2 descriptor",$B158,"Outcome",3),0) -> 0 | G158: =IFERROR(GETPIVOTDATA("URN",'Pivot FE&S'!$A$107,"SSA 2 descriptor",$B158,"Outcome",4),0) -> 1 | I158: -2
B159: Social Sciences | C159: 4 | D159: =IFERROR(GETPIVOTDATA("URN",'Pivot FE&S'!$A$107,"SSA 2 descriptor",$B159,"Outcome",1),0) -> 0 | E159: =IFERROR(GETPIVOTDATA("URN",'Pivot FE&S'!$A$107,"SSA 2 descriptor",$B159,"Outcome",2),0) -> 1 | F159: =IFERROR(GETPIVOTDATA("URN",'Pivot FE&S'!$A$107,"SSA 2 descriptor",$B159,"Outcome",3),0) -> 3 | G159: =IFERROR(GETPIVOTDATA("URN",'Pivot FE&S'!$A$107,"SSA 2 descriptor",$B159,"Outcome",4),0) -> 0 | I159: -4
B160: Sociology and Social Policy | C160: 2 | D160: =IFERROR(GETPIVOTDATA("URN",'Pivot FE&S'!$A$107,"SSA 2 descriptor",$B160,"Outcome",1),0) -> 0 | E160: =IFERROR(GETPIVOTDATA("URN",'Pivot FE&S'!$A$107,"SSA 2 descriptor",$B160,"Outcome",2),0) -> 1 | F160: =IFERROR(GETPIVOTDATA("URN",'Pivot FE&S'!$A$107,"SSA 2 descriptor",$B160,"Outcome",3),0) -> 0 | G160: =IFERROR(GETPIVOTDATA("URN",'Pivot FE&S'!$A$107,"SSA 2 descriptor",$B160,"Outcome",4),0) -> 1 | I160: -2
B161: Sport | C161: 17 | D161: =IFERROR(GETPIVOTDATA("URN",'Pivot FE&S'!$A$107,"SSA 2 descriptor",$B161,"Outcome",1),0) -> 4 | E161: =IFERROR(GETPIVOTDATA("URN",'Pivot FE&S'!$A$107,"SSA 2 descriptor",$B161,"Outcome",2),0) -> 11 | F161: =IFERROR(GETPIVOTDATA("URN",'Pivot FE&S'!$A$107,"SSA 2 descriptor",$B161,"Outcome",3),0) -> 2 | G161: =IFERROR(GETPIVOTDATA("URN",'Pivot FE&S'!$A$107,"SSA 2 descriptor",$B161,"Outcome",4),0) -> 0 | I161: -17
B162: Sport, Leisure and Recreation | C162: 8 | D162: =IFERROR(GETPIVOTDATA("URN",'Pivot FE&S'!$A$107,"SSA 2 descriptor",$B162,"Outcome",1),0) -> 2 | E162: =IFERROR(GETPIVOTDATA("URN",'Pivot FE&S'!$A$107,"SSA 2 descriptor",$B162,"Outcome",2),0) -> 6 | F162: =IFERROR(GETPIVOTDATA("URN",'Pivot FE&S'!$A$107,"SSA 2 descriptor",$B162,"Outcome",3),0) -> 0 | G162: =IFERROR(GETPIVOTDATA("URN",'Pivot FE&S'!$A$107,"SSA 2 descriptor",$B162,"Outcome",4),0) -> 0 | I162: -8
B163: Teaching and Lecturing | C163: 2 | D163: =IFERROR(GETPIVOTDATA("URN",'Pivot FE&S'!$A$107,"SSA 2 descriptor",$B163,"Outcome",1),0) -> 0 | E163: =IFERROR(GETPIVOTDATA("URN",'Pivot FE&S'!$A$107,"SSA 2 descriptor",$B163,"Outcome",2),0) -> 0 | F163: =IFERROR(GETPIVOTDATA("URN",'Pivot FE&S'!$A$107,"SSA 2 descriptor",$B163,"Outcome",3),0) -> 2 | G163: =IFERROR(GETPIVOTDATA("URN",'Pivot FE&S'!$A$107,"SSA 2 descriptor",$B163,"Outcome",4),0) -> 0 | I163: -2
B164: Theology and Religious Studies | C164: 2 | D164: =IFERROR(GETPIVOTDATA("URN",'Pivot FE&S'!$A$107,"SSA 2 descriptor",$B164,"Outcome",1),0) -> 1 | E164: =IFERROR(GETPIVOTDATA("URN",'Pivot FE&S'!$A$107,"SSA 2 descriptor",$B164,"Outcome",2),0) -> 1 | F164: =IFERROR(GETPIVOTDATA("URN",'Pivot FE&S'!$A$107,"SSA 2 descriptor",$B164,"Outcome",3),0) -> 0 | G164: =IFERROR(GETPIVOTDATA("URN",'Pivot FE&S'!$A$107,"SSA 2 descriptor",$B164,"Outcome",4),0) -> 0 | I164: -2
B165: Training to Provide Learning Support | C165: 1 | D165: =IFERROR(GETPIVOTDATA("URN",'Pivot FE&S'!$A$107,"SSA 2 descriptor",$B165,"Outcome",1),0) -> 0 | E165: =IFERROR(GETPIVOTDATA("URN",'Pivot FE&S'!$A$107,"SSA 2 descriptor",$B165,"Outcome",2),0) -> 0 | F165: =IFERROR(GETPIVOTDATA("URN",'Pivot FE&S'!$A$107,"SSA 2 descriptor",$B165,"Outcome",3),0) -> 1 | G165: =IFERROR(GETPIVOTDATA("URN",'Pivot FE&S'!$A$107,"SSA 2 descriptor",$B165,"Outcome",4),0) -> 0 | I165: -1
B166: Transportation operations and maintenance | C166: 10 | D166: =IFERROR(GETPIVOTDATA("URN",'Pivot FE&S'!$A$107,"SSA 2 descriptor",$B166,"Outcome",1),0) -> 2 | E166: =IFERROR(GETPIVOTDATA("URN",'Pivot FE&S'!$A$107,"SSA 2 descriptor",$B166,"Outcome",2),0) -> 2 | F166: =IFERROR(GETPIVOTDATA("URN",'Pivot FE&S'!$A$107,"SSA 2 descriptor",$B166,"Outcome",3),0) -> 4 | G166: =IFERROR(GETPIVOTDATA("URN",'Pivot FE&S'!$A$107,"SSA 2 descriptor",$B166,"Outcome",4),0) -> 2 | I166: -10
B167: Travel and Tourism | C167: 2 | D167: =IFERROR(GETPIVOTDATA("URN",'Pivot FE&S'!$A$107,"SSA 2 descriptor",$B167,"Outcome",1),0) -> 1 | E167: =IFERROR(GETPIVOTDATA("URN",'Pivot FE&S'!$A$107,"SSA 2 descriptor",$B167,"Outcome",2),0) -> 0 | F167: =IFERROR(GETPIVOTDATA("URN",'Pivot FE&S'!$A$107,"SSA 2 descriptor",$B167,"Outcome",3),0) -> 1 | G167: =IFERROR(GETPIVOTDATA("URN",'Pivot FE&S'!$A$107,"SSA 2 descriptor",$B167,"Outcome",4),0) -> 0 | I167: -2
B168: Visual Arts | C168: 37 | D168: =IFERROR(GETPIVOTDATA("URN",'Pivot FE&S'!$A$107,"SSA 2 descriptor",$B168,"Outcome",1),0) -> 7 | E168: =IFERROR(GETPIVOTDATA("URN",'Pivot FE&S'!$A$107,"SSA 2 descriptor",$B168,"Outcome",2),0) -> 24 | F168: =IFERROR(GETPIVOTDATA("URN",'Pivot FE&S'!$A$107,"SSA 2 descriptor",$B168,"Outcome",3),0) -> 6 | G168: =IFERROR(GETPIVOTDATA("URN",'Pivot FE&S'!$A$107,"SSA 2 descriptor",$B168,"Outcome",4),0) -> 0 | I168: =H168-C168 -> -37
B169: Warehousing and Distribution | C169: 10 | D169: =IFERROR(GETPIVOTDATA("URN",'Pivot FE&S'!$A$107,"SSA 2 descriptor",$B169,"Outcome",1),0) -> 2 | E169: =IFERROR(GETPIVOTDATA("URN",'Pivot FE&S'!$A$107,"SSA 2 descriptor",$B169,"Outcome",2),0) -> 4 | F169: =IFERROR(GETPIVOTDATA("URN",'Pivot FE&S'!$A$107,"SSA 2 descriptor",$B169,"Outcome",3),0) -> 4 | G169: =IFERROR(GETPIVOTDATA("URN",'Pivot FE&S'!$A$107,"SSA 2 descriptor",$B169,"Outcome",4),0) -> 0 | I169: -10
B170: Total | C170: =SUM(C104:C169) -> 951 | D170: =SUM(D104:D169) -> 68 | E170: =SUM(E104:E169) -> 485 | F170: =SUM(F104:F169) -> 338 | G170: =SUM(G104:G169) -> 60

Sheet Pivot FE&S (hidden)
A3: Overall effectiveness of providers inspected between 1 September 2014 and 31 August 2015
A5: Count of Provider Name | B5: Column Labels
A6: Row Labels | B6: 1 | C6: 2 | D6: 3 | E6: 4 | F6: Grand Total
A7: Academy Converter | D7: 1 | F7: 1
A8: Community Learning and Skills | B8: 2 | C8: 32 | D8: 19 | E8: 7 | F8: 60
A9: Employer | B9: 3 | C9: 4 | D9: 4 | E9: 2 | F9: 13
A10: Free School - 16-19 | C10: 1 | D10: 2 | E10: 2 | F10: 5
A11: General Further Education/Tertiary College | B11: 2 | C11: 15 | D11: 26 | E11: 5 | F11: 48
A12: Higher Education Institution | B12: 2 | F12: 2
A13: Independent Learning Provider | B13: 4 | C13: 53 | D13: 45 | E13: 12 | F13: 114
A14: Independent Specialist College | C14: 5 | D14: 4 | E14: 2 | F14: 11
A15: Sixth Form College | C15: 7 | D15: 5 | E15: 3 | F15: 15
A16: Specialist Further Education | C16: 3 | F16: 3
A17: Grand Total | B17: 13 | C17: 120 | D17: 106 | E17: 33 | F17: 272
A19: Outcomes for learners
A21: Count of Provider Name | B21: Column Labels
A22: Row Labels | B22: 1 | C22: 2 | D22: 3 | E22: 4 | F22: Grand Total
A23: Academy Converter | D23: 1 | F23: 1
A24: Community Learning and Skills | B24: 2 | C24: 32 | D24: 22 | E24: 4 | F24: 60
A25: Employer | B25: 3 | C25: 2 | D25: 6 | E25: 2 | F25: 13
A26: Free School - 16-19 | C26: 1 | D26: 2 | E26: 2 | F26: 5
A27: General Further Education/Tertiary College | B27: 2 | C27: 11 | D27: 30 | E27: 5 | F27: 48
A28: Higher Education Institution | B28: 2 | F28: 2
A29: Independent Learning Provider | B29: 4 | C29: 58 | D29: 41 | E29: 11 | F29: 114
A30: Independent Specialist College | B30: 1 | C30: 5 | D30: 4 | E30: 1 | F30: 11
A31: Sixth Form College | C31: 7 | D31: 5 | E31: 3 | F31: 15
A32: Specialist Further Education | C32: 3 | F32: 3
A33: Grand Total | B33: 14 | C33: 119 | D33: 111 | E33: 28 | F33: 272
A40: Teaching and learning
A42: Count of Provider Name | B42: Column Labels
A43: Row Labels | B43: 1 | C43: 2 | D43: 3 | E43: 4 | F43: Grand Total
A44: Academy Converter | D44: 1 | F44: 1
A45: Community Learning and Skills | B45: 2 | C45: 35 | D45: 20 | E45: 3 | F45: 60
A46: Employer | B46: 3 | C46: 4 | D46: 4 | E46: 2 | F46: 13
A47: Free School - 16-19 | C47: 1 | D47: 2 | E47: 2 | F47: 5
A48: General Further Education/Tertiary College | B48: 2 | C48: 17 | D48: 25 | E48: 4 | F48: 48
A49: Higher Education Institution | B49: 2 | F49: 2
A50: Independent Learning Provider | B50: 4 | C50: 59 | D50: 40 | E50: 11 | F50: 114
A51: Independent Specialist College | C51: 5 | D51: 4 | E51: 2 | F51: 11
A52: Sixth Form College | C52: 7 | D52: 6 | E52: 2 | F52: 15
A53: Specialist Further Education | C53: 3 | F53: 3
A54: Grand Total | B54: 13 | C54: 131 | D54: 102 | E54: 26 | F54: 272
A61: Leadership and management
A63: Count of Provider Name | B63: Column Labels
A64: Row Labels | B64: 1 | C64: 2 | D64: 3 | E64: 4 | F64: Grand Total
A65: Academy Converter | D65: 1 | F65: 1
A66: Community Learning and Skills | B66: 4 | C66: 31 | D66: 18 | E66: 7 | F66: 60
A67: Employer | B67: 3 | C67: 4 | D67: 4 | E67: 2 | F67: 13
A68: Free School - 16-19 | C68: 1 | D68: 2 | E68: 2 | F68: 5
A69: General Further Education/Tertiary College | B69: 3 | C69: 18 | D69: 22 | E69: 5 | F69: 48
A70: Higher Education Institution | B70: 2 | F70: 2
A71: Independent Learning Provider | B71: 5 | C71: 52 | D71: 45 | E71: 12 | F71: 114
A72: Independent Specialist College | C72: 5 | D72: 4 | E72: 2 | F72: 11
A73: Sixth Form College | B73: 1 | C73: 6 | D73: 5 | E73: 3 | F73: 15
A74: Specialist Further Education | C74: 2 | D74: 1 | F74: 3
A75: Grand Total | B75: 18 | C75: 119 | D75: 102 | E75: 33 | F75: 272
A82: SSA Descriptor 1
A84: Count of URN | B84: Column Labels
A85: Row Labels | B85: 1 | C85: 2 | D85: 3 | E85: 4 | F85: Grand Total
A86: Arts, Media and Publishing | B86: 11 | C86: 43 | D86: 15 | F86: 69
A87: Business, Administration and Law | B87: 5 | C87: 101 | D87: 74 | E87: 11 | F87: 191
A88: Construction, Planning and the Built Environment | C88: 15 | D88: 13 | E88: 4 | F88: 32
A89: Education and Training | D89: 3 | F89: 3
A90: Engineering and Manufacturing Technologies | B90: 11 | C90: 34 | D90: 33 | E90: 2 | F90: 80
A91: Health, Public Services and Care | B91: 12 | C91: 65 | D91: 51 | E91: 2 | F91: 130
A92: Information and Communication Technology | B92: 4 | C92: 28 | D92: 7 | E92: 5 | F92: 44
A93: Languages, Literature and Culture | B93: 1 | C93: 9 | D93: 9 | E93: 2 | F93: 21
A94: Preparation for Life and Work | B94: 6 | C94: 91 | D94: 73 | E94: 18 | F94: 188
A95: Retail and Commercial Enterprise | B95: 4 | C95: 40 | D95: 19 | E95: 9 | F95: 72
A96: Science and Mathematics | B96: 1 | C96: 17 | D96: 28 | E96: 5 | F96: 51
A97: Social Sciences | C97: 3 | D97: 3 | E97: 2 | F97: 8
A98: Leisure, Travel and Tourism | B98: 10 | C98: 22 | D98: 3 | F98: 35
A99: Family Learning | B99: 1 | C99: 2 | D99: 1 | F99: 4
A100: Agriculture, Horticulture and Animal Care | C100: 13 | D100: 5 | F100: 18
A101: Humanities | B101: 2 | C101: 2 | F101: 4
A102: Community Development | D102: 1 | F102: 1
A103: Grand Total | B103: 68 | C103: 485 | D103: 338 | E103: 60 | F103: 951
A105: SSA Descriptor 2
A107: Count of URN | B107: Column Labels
A108: Row Labels | B108: 1 | C108: 2 | D108: 3 | E108: 4 | F108: Grand Total
A109: Accounting and Finance | B109: 2 | C109: 8 | D109: 8 | E109: 1 | F109: 19
A110: Administration | B110: 1 | C110: 47 | D110: 34 | E110: 2 | F110: 84
A111: Agriculture | C111: 2 | D111: 2 | F111: 4
A112: Animal care | C112: 2 | F112: 2
A113: Animal Care and Veterinary Science | C113: 5 | F113: 5
A114: Beauty Therapy | C114: 2 | F114: 2
A115: Building and Construction | C115: 6 | D115: 7 | E115: 3 | F115: 16
A116: Building Services | C116: 4 | D116: 1 | E116: 1 | F116: 6
A117: Business | B117: 1 | C117: 4 | D117: 4 | F117: 9
A118: Business Management | C118: 30 | D118: 23 | E118: 3 | F118: 56
A119: Call centre operations | E119: 1 | F119: 1
A120: Communications Technology | C120: 1 | F120: 1
A121: Community Development | D121: 1 | F121: 1
A122: Community Learning | C122: 7 | D122: 3 | E122: 1 | F122: 11
A123: Construction Crafts | C123: 5 | D123: 5 | F123: 10
A124: Customer service | C124: 6 | D124: 2 | E124: 4 | F124: 12
A125: Early Years and Playwork | B125: 5 | C125: 20 | D125: 16 | F125: 41
A126: Employability Training | B126: 2 | C126: 23 | D126: 17 | E126: 4 | F126: 46
A127: Engineering | B127: 5 | C127: 13 | D127: 12 | F127: 30
A128: English | B128: 1 | C128: 6 | D128: 8 | E128: 1 | F128: 16
A129: Environmental Conservation | D129: 1 | F129: 1
A130: Equine Studies | C130: 1 | D130: 1 | F130: 2
A131: ESOL | B131: 1 | C131: 11 | D131: 2 | E131: 1 | F131: 15
A132: Family Learning | B132: 1 | C132: 2 | D132: 1 | F132: 4
A133: Forestry | C133: 1 | F133: 1
A134: Foundation English | C134: 15 | D134: 21 | E134: 5 | F134: 41
A135: Foundation English and Mathematics | C135: 13 | D135: 7 | F135: 20
A136: Foundation mathematics | C136: 10 | D136: 17 | E136: 5 | F136: 32
A137: Hairdressing | B137: 1 | C137: 5 | D137: 2 | E137: 3 | F137: 11
A138: Hairdressing and beauty therapy | B138: 1 | C138: 10 | D138: 9 | E138: 1 | F138: 21
A139: Health and Social Care | B139: 5 | C139: 41 | D139: 30 | E139: 2 | F139: 78
A140: Health, Public Services and Care | C140: 1 | F140: 1
A141: History | B141: 1 | C141: 1 | F141: 2
A142: Horticulture | C142: 1 | F142: 1
A143: Horticulture and Forestry | C143: 1 | D143: 1 | F143: 2
A144: Hospitality and Catering | C144: 13 | D144: 2 | E144: 2 | F144: 17
A145: ICT for practitioners | B145: 3 | C145: 12 | D145: 3 | E145: 3 | F145: 21
A146: ICT for Users | B146: 1 | C146: 15 | D146: 4 | E146: 2 | F146: 22
A147: Independent living and leisure skills | B147: 3 | C147: 12 | D147: 6 | E147: 2 | F147: 23
A148: Law and Legal Services | B148: 1 | C148: 4 | D148: 2 | E148: 1 | F148: 8
A149: Leisure, Travel and Tourism | B149: 1 | F149: 1
A150: Manufacturing Technologies | B150: 3 | C150: 13 | D150: 7 | F150: 23
A151: Marketing and Sales | C151: 2 | D151: 1 | F151: 3
A152: Mathematics and Statistics | B152: 1 | C152: 4 | D152: 15 | E152: 1 | F152: 21
A153: Media and Communication | B153: 1 | C153: 6 | D153: 6 | F153: 13
A154: Modern foreign languages | C154: 3 | D154: 1 | E154: 1 | F154: 5
A155: Motor vehicle | B155: 1 | C155: 6 | D155: 10 | F155: 17
A156: Nursing and Dental Health | B156: 1 | C156: 1 | D156: 2 | F156: 4
A157: Performing Arts | B157: 3 | C157: 13 | D157: 3 | F157: 19
A158: Psychology | C158: 3 | E158: 1 | F158: 4
A159: Public Services | B159: 3 | C159: 7 | D159: 3 | F159: 13
A160: Retailing and Wholesaling | C160: 5 | D160: 2 | E160: 1 | F160: 8
A161: Science | C161: 11 | D161: 13 | E161: 3 | F161: 27
A162: Science and Mathematics | E162: 1 | F162: 1
A163: Service Enterprises | C163: 1 | E163: 1 | F163: 2
A164: Social Sciences | C164: 1 | D164: 3 | F164: 4
A165: Sociology and Social Policy | C165: 1 | E165: 1 | F165: 2
A166: Sport | B166: 4 | C166: 11 | D166: 2 | F166: 17
A167: Sport, Leisure and Recreation | B167: 2 | C167: 6 | F167: 8
A168: Teaching and Lecturing | D168: 2 | F168: 2
A169: Theology and Religious Studies | B169: 1 | C169: 1 | F169: 2
A170: Training to Provide Learning Support | D170: 1 | F170: 1
A171: Transportation operations and maintenance | B171: 2 | C171: 2 | D171: 4 | E171: 2 | F171: 10
A172: Travel and Tourism | B172: 1 | D172: 1 | F172: 2
A173: Visual Arts | B173: 7 | C173: 24 | D173: 6 | F173: 37
A174: Warehousing and Distribution | B174: 2 | C174: 4 | D174: 4 | F174: 10
A175: Grand Total | B175: 68 | C175: 485 | D175: 338 | E175: 60 | F175: 951
A177: Count of URN | B177: Column Labels
A178: Row Labels | B178: Improved | C178: Same | D178: Declined | E178: No previous inspection | F178: Grand Total
A179: Community Learning and Skills | B179: 16 | C179: 20 | D179: 19 | E179: 5 | F179: 60
A180: Grand Total | B180: 16 | C180: 20 | D180: 19 | E180: 5 | F180: 60
A192: Provider type | B192: Community Learning and Skills
A194: Count of Inspection number | B194: Column Labels
A195: Row Labels | B195: 1 | C195: 2 | D195: 3 | E195: 4 | F195: Grand Total
A196: Improved | B196: 2 | C196: 14 | F196: 16
A197: 2 | B197: 2 | F197: 2
A198: 3 | C198: 14 | F198: 14
A199: Same | C199: 15 | D199: 5 | F199: 20
A200: 2 | C200: 15 | F200: 15
A201: 3 | D201: 5 | F201: 5
A202: Declined | C202: 2 | D202: 10 | E202: 7 | F202: 19
A203: 1 | C203: 2 | D203: 2 | F203: 4
A204: 2 | D204: 8 | E204: 6 | F204: 14
A205: 3 | E205: 1 | F205: 1
A206: No previous inspection | C206: 1 | D206: 4 | F206: 5
A207: NULL | C207: 1 | D207: 4 | F207: 5
A208: Grand Total | B208: 2 | C208: 32 | D208: 19 | E208: 7 | F208: 60

Sheet Inspection data
A1: Inspection outcomes for further education and skills providers inspected from 1 September 2014
A5: Report | B5: Provider Name | C5: URN | D5: Provider type | E5: Ofsted Region | F5: Local Authority | G5: REE Type of School | H5: Inspection type | I5: Inspection number | J5: Inspection start date | K5: Inspection end date | L5: Inspection status | M5: Inspection report published | N5: Previous inspection number | O5: Previous inspection date | P5: Previous overall effectiveness | Q5: Overall Effectiveness | R5: 14-16 Overall Effectiveness Part Time | S5: 14-16 Overall Effectiveness Full Time | T5: Traineeships Overall Effectiveness | U5: 16-19 study programmes Overall Effectiveness | V5: 19+ Overall Effectiveness | W5: Apprenticeships Overall Effectiveness | X5: Community Learning Overall Effectiveness | Y5: National Careers Services Overall Effectiveness | Z5: Employability Overall Effectiveness | AA5: Outcome for Learners | AB5: 14-16 Outcome for Learners Part Time | AC5: 14-16 Outcome for Learners Full Time | AD5: Traineeships Outcome for Learners | AE5: 16-19 study programmes Outcome for Learners | AF5: 19+ Outcome for Learners | AG5: Apprenticeships Outcome for Learners | AH5: Community Learning Outcome for Learners | AI5: National Careers Services Outcome for Learners | AJ5: Employability Outcome for Learners | AK5: Teaching | AL5: 14-16 Teaching Part Time | AM5: 14-16 Teaching Full Time | AN5: Traineeships Teaching | AO5: 16-19 study programmes Teaching | AP5: 19+ Teaching | AQ5: Apprenticeships Teaching | AR5: Community Learning Teaching | AS5: National Careers Services Teaching | AT5: Employability Teaching | AU5: Leadership and Management | AV5: 14-16 Leadership and Management Part Time | AW5: 14-16 Leadership and Management Full Time | AX5: Traineeships Leadership and Management | AY5: 16-19 study programmes Leadership and Management | AZ5: 19+ Leadership and Management | BA5: Apprenticeships Leadership and Management | BB5: Community Learning Leadership and Management | BC5: National Careers Services Leadership and Management | BD5: Employability Leadership and Management | BE5: How well all learners are safeguarded | BF5: 14-16 How well all learners are safeguarded Part Time | BG5: 14-16 How well all learners are safeguarded Full Time | BH5: Traineeships How well all learners are safeguarded | BI5: 16-19 study programmes How well all learners are safeguarded | BJ5: 19+ How well all learners are safeguarded | BK5: Apprenticeships How well all learners are safeguarded | BL5: Community Learning How well all learners are safeguarded | BM5: National Careers Services How well all learners are safeguarded | BN5: Employability How well all learners are safeguarded | BO5: Current overall effectiveness outcome against Previous overall effectiveness outcome
A6: =IF(C6 <> "", HYPERLINK(CONCATENATE("http://reports.ofsted.gov.uk/inspection-reports/find-inspection-report/provider/ELS/",C6),"Report"),"") -> Report | B6: Unique Training North East Limited | C6: 56817 | D6: Independent Learning Provider | E6: North East, Yorkshire & Humber | F6: Durham | G6: Independent Learning Provider | H6: WBL - requires improvement | I6: 429793 | J6: 2014-09-09 | K6: 2014-09-12 | L6: Published | M6: 2014-10-23 | N6: 410696 | O6: 2013-07-12 | P6: 3 | Q6: 3 | R6: - | S6: - | T6: - | U6: - | V6: - | W6: 3 | X6: - | Y6: - | Z6: - | AA6: 2 | AB6: - | AC6: - | AD6: - | AE6: - | AF6: - | AG6: 2 | AH6: - | AI6: - | AJ6: - | AK6: 2 | AL6: - | AM6: - | AN6: - | AO6: - | AP6: - | AQ6: 2 | AR6: - | AS6: - | AT6: - | AU6: 3 | AV6: - | AW6: - | AX6: - | AY6: - | AZ6: - | BA6: 3 | BB6: - | BC6: - | BD6: - | BE6: 3 | BF6: - | BG6: - | BH6: - | BI6: - | BJ6: - | BK6: 3 | BL6: - | BM6: - | BN6: - | BO6: =IF(P6="Null","No previous inspection",IF(Q6>P6,"Declined", IF(Q6=P6,"Same",IF(Q6<P6,"Improved")))) -> Same
A7: Report | B7: Midstream (West Lancs) Ltd | C7: 139245 | D7: Independent Specialist College | E7: North West | F7: Lancashire | G7: Special College | H7: ISC - full inspection | I7: 446689 | J7: 2014-09-16 | K7: 2014-09-18 | L7: Published | M7: 2014-10-21 | N7: NULL | O7: NULL | P7: NULL | Q7: 4 | R7: - | S7: - | T7: - | U7: 4 | V7: 4 | W7: - | X7: - | Y7: - | Z7: - | AA7: 3 | AB7: - | AC7: - | AD7: - | AE7: 3 | AF7: 3 | AG7: - | AH7: - | AI7: - | AJ7: - | AK7: 4 | AL7: - | AM7: - | AN7: - | AO7: 4 | AP7: 4 | AQ7: - | AR7: - | AS7: - | AT7: - | AU7: 4 | AV7: - | AW7: - | AX7: - | AY7: 4 | AZ7: 4 | BA7: - | BB7: - | BC7: - | BD7: - | BE7: 3 | BF7: - | BG7: - | BH7: - | BI7: 3 | BJ7: 3 | BK7: - | BL7: - | BM7: - | BN7: - | BO7: No previous inspection
A8: Report | B8: Newham Sixth Form College | C8: 130452 | D8: Sixth Form College | E8: London | F8: Newham | G8: Further Education | H8: SFC - full inspection | I8: 452156 | J8: 2014-09-15 | K8: 2014-09-19 | L8: Published | M8: 2014-10-24 | N8: 330823 | O8: 2009-02-06 | P8: 2 | Q8: 3 | R8: - | S8: - | T8: - | U8: 3 | V8: 3 | W8: - | X8: - | Y8: - | Z8: - | AA8: 3 | AB8: - | AC8: - | AD8: - | AE8: 3 | AF8: 3 | AG8: - | AH8: - | AI8: - | AJ8: - | AK8: 3 | AL8: - | AM8: - | AN8: - | AO8: 3 | AP8: 3 | AQ8: - | AR8: - | AS8: - | AT8: - | AU8: 3 | AV8: - | AW8: - | AX8: - | AY8: 3 | AZ8: 3 | BA8: - | BB8: - | BC8: - | BD8: - | BE8: 2 | BF8: - | BG8: - | BH8: - | BI8: 2 | BJ8: 2 | BK8: - | BL8: - | BM8: - | BN8: - | BO8: Declined
A9: Report | B9: King George V College | C9: 130492 | D9: Sixth Form College | E9: North West | F9: Sefton | G9: Further Education | H9: SFC - full inspection | I9: 446535 | J9: 2014-09-16 | K9: 2014-09-19 | L9: Published | M9: 2014-10-23 | N9: 385365 | O9: 2012-03-22 | P9: 2 | Q9: 4 | R9: - | S9: - | T9: - | U9: 4 | V9: 4 | W9: - | X9: - | Y9: - | Z9: - | AA9: 4 | AB9: - | AC9: - | AD9: - | AE9: 4 | AF9: 4 | AG9: - | AH9: - | AI9: - | AJ9: - | AK9: 4 | AL9: - | AM9: - | AN9: - | AO9: 4 | AP9: 4 | AQ9: - | AR9: - | AS9: - | AT9: - | AU9: 4 | AV9: - | AW9: - | AX9: - | AY9: 4 | AZ9: 4 | BA9: - | BB9: - | BC9: - | BD9: - | BE9: 2 | BF9: - | BG9: - | BH9: - | BI9: 2 | BJ9: 2 | BK9: - | BL9: - | BM9: - | BN9: - | BO9: Declined
A10: Report | B10: JBC Computer Training Limited | C10: 59153 | D10: Independent Learning Provider | E10: West Midlands | F10: Coventry | G10: Independent Learning Provider | H10: WBL - full (regional) | I10: 446618 | J10: 2014-09-17 | K10: 2014-09-19 | L10: Published | M10: 2014-10-23 | N10: NULL | O10: NULL | P10: NULL | Q10: 2 | R10: - | S10: - | T10: - | U10: - | V10: - | W10: 2 | X10: - | Y10: - | Z10: - | AA10: 2 | AB10: - | AC10: - | AD10: - | AE10: - | AF10: - | AG10: 2 | AH10: - | AI10: - | AJ10: - | AK10: 2 | AL10: - | AM10: - | AN10: - | AO10: - | AP10: - | AQ10: 2 | AR10: - | AS10: - | AT10: - | AU10: 2 | AV10: - | AW10: - | AX10: - | AY10: - | AZ10: - | BA10: 2 | BB10: - | BC10: - | BD10: - | BE10: 2 | BF10: - | BG10: - | BH10: - | BI10: - | BJ10: - | BK10: 2 | BL10: - | BM10: - | BN10: - | BO10: No previous inspection
A11: Report | B11: Joseph Chamberlain Sixth Form College | C11: 130468 | D11: Sixth Form College | E11: West Midlands | F11: Birmingham | G11: Further Education | H11: FE College - requires improvement | I11: 430285 | J11: 2014-09-16 | K11: 2014-09-19 | L11: Published | M11: 2014-10-23 | N11: 421160 | O11: 2013-04-19 | P11: 3 | Q11: 2 | R11: - | S11: - | T11: - | U11: 2 | V11: 2 | W11: - | X11: 2 | Y11: - | Z11: - | AA11: 2 | AB11: - | AC11: - | AD11: - | AE11: 2 | AF11: 2 | AG11: - | AH11: 2 | AI11: - | AJ11: - | AK11: 2 | AL11: - | AM11: - | AN11: - | AO11: 2 | AP11: 2 | AQ11: - | AR11: 2 | AS11: - | AT11: - | AU11: 1 | AV11: - | AW11: - | AX11: - | AY11: 1 | AZ11: 1 | BA11: - | BB11: 1 | BC11: - | BD11: - | BE11: 2 | BF11: - | BG11: - | BH11: - | BI11: 2 | BJ11: 2 | BK11: - | BL11: 2 | BM11: - | BN11: - | BO11: Improved
A12: Report | B12: The Learning Partnership for Cornwall and The Isles of Scilly Limited | C12: 59113 | D12: Independent Learning Provider | E12: South West | F12: Cornwall | G12: Independent Learning Provider | H12: WBL - full (regional) | I12: 434062 | J12: 2014-09-16 | K12: 2014-09-19 | L12: Published | M12: 2014-10-30 | N12: NULL | O12: NULL | P12: NULL | Q12: 3 | R12: - | S12: - | T12: - | U12: - | V12: 3 | W12: 3 | X12: - | Y12: - | Z12: 3 | AA12: 3 | AB12: - | AC12: - | AD12: - | AE12: - | AF12: 3 | AG12: 3 | AH12: - | AI12: - | AJ12: 3 | AK12: 3 | AL12: - | AM12: - | AN12: - | AO12: - | AP12: 3 | AQ12: 3 | AR12: - | AS12: - | AT12: 3 | AU12: 3 | AV12: - | AW12: - | AX12: - | AY12: - | AZ12: 3 | BA12: 3 | BB12: - | BC12: - | BD12: 3 | BE12: 3 | BF12: - | BG12: - | BH12: - | BI12: - | BJ12: 3 | BK12: 3 | BL12: - | BM12: - | BN12: 3 | BO12: No previous inspection
A13: Report | B13: Redcar & Cleveland Adult Learning Service | C13: 54087 | D13: Community Learning and Skills | E13: North East, Yorkshire & Humber | F13: Redcar and Cleveland | G13: ACL Local Authority | H13: Adult and Community - full (regional) | I13: 446665 | J13: 2014-09-23 | K13: 2014-09-26 | L13: Published | M13: 2014-10-29 | N13: 329358 | O13: 2008-11-28 | P13: 2 | Q13: 2 | R13: - | S13: - | T13: - | U13: 2 | V13: 2 | W13: 2 | X13: 2 | Y13: - | Z13: - | AA13: 2 | AB13: - | AC13: - | AD13: - | AE13: 2 | AF13: 2 | AG13: 2 | AH13: 2 | AI13: - | AJ13: - | AK13: 2 | AL13: - | AM13: - | AN13: - | AO13: 2 | AP13: 2 | AQ13: 2 | AR13: 2 | AS13: - | AT13: - | AU13: 2 | AV13: - | AW13: - | AX13: - | AY13: 2 | AZ13: 2 | BA13: 2 | BB13: 2 | BC13: - | BD13: - | BE13: 2 | BF13: - | BG13: - | BH13: - | BI13: 2 | BJ13: 2 | BK13: 2 | BL13: 2 | BM13: - | BN13: - | BO13: Same
A14: Report | B14: Hartlepool Sixth Form College | C14: 130568 | D14: Sixth Form College | E14: North East, Yorkshire & Humber | F14: Hartlepool | G14: Further Education | H14: SFC - full inspection | I14: 446538 | J14: 2014-09-23 | K14: 2014-09-26 | L14: Published | M14: 2014-11-13 | N14: 345834 | O14: 2010-05-21 | P14: 2 | Q14: 4 | R14: - | S14: - | T14: - | U14: 4 | V14: 4 | W14: - | X14: - | Y14: - | Z14: - | AA14: 4 | AB14: - | AC14: - | AD14: - | AE14: 4 | AF14: 4 | AG14: - | AH14: - | AI14: - | AJ14: - | AK14: 3 | AL14: - | AM14: - | AN14: - | AO14: 3 | AP14: 3 | AQ14: - | AR14: - | AS14: - | AT14: - | AU14: 4 | AV14: - | AW14: - | AX14: - | AY14: 4 | AZ14: 4 | BA14: - | BB14: - | BC14: - | BD14: - | BE14: 2 | BF14: - | BG14: - | BH14: - | BI14: 2 | BJ14: 2 | BK14: - | BL14: - | BM14: - | BN14: - | BO14: Declined
A15: Report | B15: Strode College | C15: 130806 | D15: General Further Education/Tertiary College | E15: South West | F15: Somerset | G15: Further Education | H15: FE College - full inspection | I15: 446539 | J15: 2014-09-23 | K15: 2014-09-26 | L15: Published | M15: 2014-10-31 | N15: 330974 | O15: 2008-10-02 | P15: 2 | Q15: 1 | R15: - | S15: - | T15: 1 | U15: 1 | V15: 1 | W15: 2 | X15: - | Y15: - | Z15: - | AA15: 1 | AB15: - | AC15: - | AD15: 1 | AE15: 1 | AF15: 2 | AG15: 2 | AH15: - | AI15: - | AJ15: - | AK15: 1 | AL15: - | AM15: - | AN15: 1 | AO15: 1 | AP15: 1 | AQ15: 1 | AR15: - | AS15: - | AT15: - | AU15: 1 | AV15: - | AW15: - | AX15: 1 | AY15: 1 | AZ15: 1 | BA15: 1 | BB15: - | BC15: - | BD15: - | BE15: 2 | BF15: - | BG15: - | BH15: 2 | BI15: 2 | BJ15: 2 | BK15: 2 | BL15: - | BM15: - | BN15: - | BO15: Improved
A16: Report | B16: Skills for Security Limited | C16: 50192 | D16: Independent Learning Provider | E16: West Midlands | F16: Worcestershire | G16: Independent Learning Provider | H16: WBL - requires improvement | I16: 430258 | J16: 2014-09-22 | K16: 2014-09-26 | L16: Published | M16: 2014-10-28 | N16: 410652 | O16: 2013-06-28 | P16: 3 | Q16: 3 | R16: - | S16: - | T16: - | U16: - | V16: - | W16: 3 | X16: - | Y16: - | Z16: - | AA16: 3 | AB16: - | AC16: - | AD16: - | AE16: - | AF16: - | AG16: 3 | AH16: - | AI16: - | AJ16: - | AK16: 3 | AL16: - | AM16: - | AN16: - | AO16: - | AP16: - | AQ16: 3 | AR16: - | AS16: - | AT16: - | AU16: 3 | AV16: - | AW16: - | AX16: - | AY16: - | AZ16: - | BA16: 3 | BB16: - | BC16: - | BD16: - | BE16: 2 | BF16: - | BG16: - | BH16: - | BI16: - | BJ16: - | BK16: 2 | BL16: - | BM16: - | BN16: - | BO16: Same
A17: Report | B17: Bradford College | C17: 130532 | D17: General Further Education/Tertiary College | E17: North East, Yorkshire & Humber | F17: Bradford | G17: Further Education | H17: FE College - full inspection | I17: 446537 | J17: 2014-09-22 | K17: 2014-09-26 | L17: Published | M17: 2014-10-29 | N17: 329315 | O17: 2008-10-10 | P17: 2 | Q17: 2 | R17: - | S17: - | T17: - | U17: 2 | V17: 2 | W17: 2 | X17: 2 | Y17: - | Z17: - | AA17: 2 | AB17: - | AC17: - | AD17: - | AE17: 2 | AF17: 2 | AG17: 2 | AH17: 2 | AI17: - | AJ17: - | AK17: 2 | AL17: - | AM17: - | AN17: - | AO17: 2 | AP17: 2 | AQ17: 2 | AR17: 2 | AS17: - | AT17: - | AU17: 2 | AV17: - | AW17: - | AX17: - | AY17: 2 | AZ17: 2 | BA17: 2 | BB17: 2 | BC17: - | BD17: - | BE17: 1 | BF17: - | BG17: - | BH17: - | BI17: 1 | BJ17: 1 | BK17: 1 | BL17: 1 | BM17: - | BN17: - | BO17: Same
A18: Report | B18: Beacon Employment | C18: 59072 | D18: Community Learning and Skills | E18: West Midlands | F18: Worcestershire | G18: ACL Voluntary organisation | H18: WBL - full (regional) | I18: 434036 | J18: 2014-09-23 | K18: 2014-09-26 | L18: Published | M18: 2014-10-29 | N18: 385726 | O18: 2012-02-17 | P18: 3 | Q18: 4 | R18: - | S18: - | T18: - | U18: 4 | V18: - | W18: - | X18: - | Y18: - | Z18: 4 | AA18: 4 | AB18: - | AC18: - | AD18: - | AE18: 4 | AF18: - | AG18: - | AH18: - | AI18: - | AJ18: 4 | AK18: 4 | AL18: - | AM18: - | AN18: - | AO18: 4 | AP18: - | AQ18: - | AR18: - | AS18: - | AT18: 4 | AU18: 4 | AV18: - | AW18: - | AX18: - | AY18: 4 | AZ18: - | BA18: - | BB18: - | BC18: - | BD18: 4 | BE18: 4 | BF18: - | BG18: - | BH18: - | BI18: 4 | BJ18: - | BK18: - | BL18: - | BM18: - | BN18: 4 | BO18: Declined
A19: Report | B19: Trans-plant Training Limited | C19: 59164 | D19: Independent Learning Provider | E19: South West | F19: Devon | G19: Independent Learning Provider | H19: WBL - full (regional) | I19: 446619 | J19: 2014-09-30 | K19: 2014-10-03 | L19: Published | M19: 2014-11-07 | N19: NULL | O19: NULL | P19: NULL | Q19: 3 | R19: - | S19: - | T19: - | U19: - | V19: - | W19: 3 | X19: - | Y19: - | Z19: - | AA19: 3 | AB19: - | AC19: - | AD19: - | AE19: - | AF19: - | AG19: 3 | AH19: - | AI19: - | AJ19: - | AK19: 3 | AL19: - | AM19: - | AN19: - | AO19: - | AP19: - | AQ19: 3 | AR19: - | AS19: - | AT19: - | AU19: 3 | AV19: - | AW19: - | AX19: - | AY19: - | AZ19: - | BA19: 3 | BB19: - | BC19: - | BD19: - | BE19: 2 | BF19: - | BG19: - | BH19: - | BI19: - | BJ19: - | BK19: 2 | BL19: - | BM19: - | BN19: - | BO19: No previous inspection
A20: Report | B20: Luton Borough Council | C20: 53201 | D20: Community Learning and Skills | E20: East of England | F20: Luton | G20: ACL Local Authority | H20: Adult and community - full (national) | I20: 434069 | J20: 2014-09-29 | K20: 2014-10-03 | L20: Published | M20: 2014-11-07 | N20: 387972 | O20: 2012-06-15 | P20: 3 | Q20: 2 | R20: - | S20: - | T20: - | U20: - | V20: - | W20: 2 | X20: 2 | Y20: - | Z20: - | AA20: 2 | AB20: - | AC20: - | AD20: - | AE20: - | AF20: - | AG20: 2 | AH20: 2 | AI20: - | AJ20: - | AK20: 2 | AL20: - | AM20: - | AN20: - | AO20: - | AP20: - | AQ20: 2 | AR20: 2 | AS20: - | AT20: - | AU20: 2 | AV20: - | AW20: - | AX20: - | AY20: - | AZ20: - | BA20: 2 | BB20: 2 | BC20: - | BD20: - | BE20: 2 | BF20: - | BG20: - | BH20: - | BI20: - | BJ20: - | BK20: 2 | BL20: 2 | BM20: - | BN20: - | BO20: Improved
A21: Report | B21: TQ Workforce Development Limited | C21: 58168 | D21: Independent Learning Provider | E21: East Midlands | F21: Northamptonshire | G21: Independent Learning Provider | H21: WBL - requires improvement | I21: 430261 | J21: 2014-09-29 | K21: 2014-10-03 | L21: Published | M21: 2014-11-07 | N21: 408546 | O21: 2013-06-07 | P21: 3 | Q21: 2 | R21: - | S21: - | T21: - | U21: - | V21: 2 | W21: 2 | X21: - | Y21: - | Z21: 2 | AA21: 2 | AB21: - | AC21: - | AD21: - | AE21: - | AF21: 2 | AG21: 2 | AH21: - | AI21: - | AJ21: 2 | AK21: 2 | AL21: - | AM21: - | AN21: - | AO21: - | AP21: 2 | AQ21: 2 | AR21: - | AS21: - | AT21: 2 | AU21: 2 | AV21: - | AW21: - | AX21: - | AY21: - | AZ21: 2 | BA21: 2 | BB21: - | BC21: - | BD21: 2 | BE21: 2 | BF21: - | BG21: - | BH21: - | BI21: - | BJ21: 2 | BK21: 2 | BL21: - | BM21: - | BN21: 2 | BO21: Improved
A22: Report | B22: Acacia Training Limited | C22: 50304 | D22: Independent Learning Provider | E22: West Midlands | F22: Stoke-On-Trent | G22: Independent Learning Provider | H22: WBL - requires improvement | I22: 430249 | J22: 2014-09-29 | K22: 2014-10-03 | L22: Published | M22: 2014-11-04 | N22: 410640 | O22: 2013-04-19 | P22: 3 | Q22: 3 | R22: - | S22: - | T22: - | U22: - | V22: - | W22: 3 | X22: - | Y22: - | Z22: - | AA22: 3 | AB22: - | AC22: - | AD22: - | AE22: - | AF22: - | AG22: 3 | AH22: - | AI22: - | AJ22: - | AK22: 3 | AL22: - | AM22: - | AN22: - | AO22: - | AP22: - | AQ22: 3 | AR22: - | AS22: - | AT22: - | AU22: 3 | AV22: - | AW22: - | AX22: - | AY22: - | AZ22: - | BA22: 3 | BB22: - | BC22: - | BD22: - | BE22: 2 | BF22: - | BG22: - | BH22: - | BI22: - | BJ22: - | BK22: 2 | BL22: - | BM22: - | BN22: - | BO22: Same
A23: Report | B23: SEEVIC College | C23: 130681 | D23: Sixth Form College | E23: East of England | F23: Essex | G23: Further Education | H23: FE College - requires improvement | I23: 430276 | J23: 2014-09-29 | K23: 2014-10-03 | L23: Published | M23: 2014-11-04 | N23: 409324 | O23: 2013-04-19 | P23: 3 | Q23: 3 | R23: - | S23: - | T23: 2 | U23: 3 | V23: 3 | W23: 2 | X23: - | Y23: - | Z23: - | AA23: 3 | AB23: - | AC23: - | AD23: 2 | AE23: 3 | AF23: 3 | AG23: 2 | AH23: - | AI23: - | AJ23: - | AK23: 3 | AL23: - | AM23: - | AN23: 2 | AO23: 3 | AP23: 3 | AQ23: 2 | AR23: - | AS23: - | AT23: - | AU23: 3 | AV23: - | AW23: - | AX23: 2 | AY23: 3 | AZ23: 3 | BA23: 2 | BB23: - | BC23: - | BD23: - | BE23: 3 | BF23: - | BG23: - | BH23: 3 | BI23: 3 | BJ23: 3 | BK23: 3 | BL23: - | BM23: - | BN23: - | BO23: Same
A24: Report | B24: Kingston Maurward College | C24: 130655 | D24: Specialist Further Education | E24: South West | F24: Dorset | G24: Further Education | H24: FE College - requires improvement | I24: 430267 | J24: 2014-09-30 | K24: 2014-10-03 | L24: Published | M24: 2014-11-07 | N24: 410603 | O24: 2013-05-03 | P24: 3 | Q24: 2 | R24: - | S24: - | T24: - | U24: 2 | V24: 2 | W24: 2 | X24: - | Y24: - | Z24: - | AA24: 2 | AB24: - | AC24: - | AD24: - | AE24: 2 | AF24: 2 | AG24: 2 | AH24: - | AI24: - | AJ24: - | AK24: 2 | AL24: - | AM24: - | AN24: - | AO24: 2 | AP24: 2 | AQ24: 2 | AR24: - | AS24: - | AT24: - | AU24: 3 | AV24: - | AW24: - | AX24: - | AY24: 3 | AZ24: 3 | BA24: 2 | BB24: - | BC24: - | BD24: - | BE24: 2 | BF24: - | BG24: - | BH24: - | BI24: 2 | BJ24: 2 | BK24: 2 | BL24: - | BM24: - | BN24: - | BO24: Improved
A25: Report | B25: Lawn Tennis Association Limited | C25: 58182 | D25: Independent Learning Provider | E25: London | F25: Wandsworth | G25: Independent Learning Provider | H25: Work Based Learning - full (national) | I25: 446609 | J25: 2014-10-06 | K25: 2014-10-10 | L25: Published | M25: 2014-11-17 | N25: 321537 | O25: 2008-11-13 | P25: 2 | Q25: 1 | R25: - | S25: - | T25: - | U25: - | V25: - | W25: 1 | X25: - | Y25: - | Z25: - | AA25: 1 | AB25: - | AC25: - | AD25: - | AE25: - | AF25: - | AG25: 1 | AH25: - | AI25: - | AJ25: - | AK25: 1 | AL25: - | AM25: - | AN25: - | AO25: - | AP25: - | AQ25: 1 | AR25: - | AS25: - | AT25: - | AU25: 1 | AV25: - | AW25: - | AX25: - | AY25: - | AZ25: - | BA25: 1 | BB25: - | BC25: - | BD25: - | BE25: 2 | BF25: - | BG25: - | BH25: - | BI25: - | BJ25: - | BK25: 2 | BL25: - | BM25: - | BN25: - | BO25: Improved
A26: Report | B26: The Marine Society College of the Sea | C26: 130414 | D26: Community Learning and Skills | E26: London | F26: Lambeth | G26: ACL Specialist Designated Institute | H26: Adult and Community - full (regional) | I26: 446670 | J26: 2014-10-08 | K26: 2014-10-10 | L26: Published | M26: 2014-11-24 | N26: 330817 | O26: 2009-02-06 | P26: 2 | Q26: 4 | R26: - | S26: - | T26: - | U26: - | V26: - | W26: - | X26: 4 | Y26: - | Z26: - | AA26: 4 | AB26: - | AC26: - | AD26: - | AE26: - | AF26: - | AG26: - | AH26: 4 | AI26: - | AJ26: - | AK26: 4 | AL26: - | AM26: - | AN26: - | AO26: - | AP26: - | AQ26: - | AR26: 4 | AS26: - | AT26: - | AU26: 4 | AV26: - | AW26: - | AX26: - | AY26: - | AZ26: - | BA26: - | BB26: 4 | BC26: - | BD26: - | BE26: 3 | BF26: - | BG26: - | BH26: - | BI26: - | BJ26: - | BK26: - | BL26: 3 | BM26: - | BN26: - | BO26: Declined
A27: Report | B27: Southend-on-Sea Borough Council | C27: 54519 | D27: Community Learning and Skills | E27: East of England | F27: Southend-On-Sea | G27: ACL Local Authority | H27: Adult and Community - full (regional) | I27: 446666 | J27: 2014-10-06 | K27: 2014-10-10 | L27: Published | M27: 2014-11-12 | N27: 329818 | O27: 2008-11-07 | P27: 2 | Q27: 2 | R27: - | S27: - | T27: - | U27: 2 | V27: 2 | W27: 2 | X27: 2 | Y27: - | Z27: 2 | AA27: 2 | AB27: - | AC27: - | AD27: - | AE27: 2 | AF27: 2 | AG27: 2 | AH27: 2 | AI27: - | AJ27: 2 | AK27: 2 | AL27: - | AM27: - | AN27: - | AO27: 2 | AP27: 2 | AQ27: 2 | AR27: 2 | AS27: - | AT27: 2 | AU27: 2 | AV27: - | AW27: - | AX27: - | AY27: 2 | AZ27: 2 | BA27: 2 | BB27: 2 | BC27: - | BD27: 2 | BE27: 3 | BF27: - | BG27: - | BH27: - | BI27: 3 | BJ27: 3 | BK27: 3 | BL27: 3 | BM27: - | BN27: 3 | BO27: Same
A28: Report | B28: Worthing College | C28: 130845 | D28: General Further Education/Tertiary College | E28: South East | F28: West Sussex | G28: Further Education | H28: FE College - requires improvement | I28: 430283 | J28: 2014-10-07 | K28: 2014-10-10 | L28: Published | M28: 2014-11-14 | N28: 409328 | O28: 2013-04-26 | P28: 3 | Q28: 3 | R28: - | S28: - | T28: - | U28: 3 | V28: 3 | W28: - | X28: - | Y28: - | Z28: - | AA28: 3 | AB28: - | AC28: - | AD28: - | AE28: 3 | AF28: 3 | AG28: - | AH28: - | AI28: - | AJ28: - | AK28: 3 | AL28: - | AM28: - | AN28: - | AO28: 3 | AP28: 3 | AQ28: - | AR28: - | AS28: - | AT28: - | AU28: 3 | AV28: - | AW28: - | AX28: - | AY28: 3 | AZ28: 3 | BA28: - | BB28: - | BC28: - | BD28: - | BE28: 2 | BF28: - | BG28: - | BH28: - | BI28: 2 | BJ28: 2 | BK28: - | BL28: - | BM28: - | BN28: - | BO28: Same
A29: Report | B29: Stafford College | C29: 130813 | D29: General Further Education/Tertiary College | E29: West Midlands | F29: Staffordshire | G29: Further Education | H29: FE College - requires improvement | I29: 430279 | J29: 2014-10-06 | K29: 2014-10-10 | L29: Published | M29: 2014-11-18 | N29: 410716 | O29: 2013-04-19 | P29: 3 | Q29: 3 | R29: - | S29: - | T29: - | U29: 3 | V29: 3 | W29: 3 | X29: - | Y29: - | Z29: - | AA29: 3 | AB29: - | AC29: - | AD29: - | AE29: 3 | AF29: 3 | AG29: 2 | AH29: - | AI29: - | AJ29: - | AK29: 3 | AL29: - | AM29: - | AN29: - | AO29: 3 | AP29: 3 | AQ29: 3 | AR29: - | AS29: - | AT29: - | AU29: 3 | AV29: - | AW29: - | AX29: - | AY29: 3 | AZ29: 3 | BA29: 3 | BB29: - | BC29: - | BD29: - | BE29: 3 | BF29: - | BG29: - | BH29: - | BI29: 3 | BJ29: 3 | BK29: 3 | BL29: - | BM29: - | BN29: - | BO29: Same
A30: Report | B30: Waverley Training Services | C30: 55287 | D30: Community Learning and Skills | E30: South East | F30: Surrey | G30: ACL Local Authority | H30: WBL - requires improvement | I30: 430262 | J30: 2014-10-06 | K30: 2014-10-10 | L30: Published | M30: 2014-11-18 | N30: 410697 | O30: 2013-04-26 | P30: 3 | Q30: 3 | R30: - | S30: - | T30: - | U30: 3 | V30: - | W30: 3 | X30: - | Y30: - | Z30: 3 | AA30: 3 | AB30: - | AC30: - | AD30: - | AE30: 2 | AF30: - | AG30: 3 | AH30: - | AI30: - | AJ30: 3 | AK30: 3 | AL30: - | AM30: - | AN30: - | AO30: 3 | AP30: - | AQ30: 3 | AR30: - | AS30: - | AT30: 3 | AU30: 3 | AV30: - | AW30: - | AX30: - | AY30: 3 | AZ30: - | BA30: 3 | BB30: - | BC30: - | BD30: 3 | BE30: 3 | BF30: - | BG30: - | BH30: - | BI30: 3 | BJ30: - | BK30: 3 | BL30: - | BM30: - | BN30: 3 | BO30: Same
A31: Report | B31: Matrix Training and Development Limited | C31: 53268 | D31: Independent Learning Provider | E31: West Midlands | F31: Telford and Wrekin | G31: Independent Learning Provider | H31: WBL - full (regional) | I31: 446602 | J31: 2014-10-14 | K31: 2014-10-16 | L31: Published | M31: 2014-11-12 | N31: 318303 | O31: 2008-01-18 | P31: 2 | Q31: 2 | R31: - | S31: - | T31: - | U31: - | V31: - | W31: 2 | X31: - | Y31: - | Z31: - | AA31: 2 | AB31: - | AC31: - | AD31: - | AE31: - | AF31: - | AG31: 2 | AH31: - | AI31: - | AJ31: - | AK31: 2 | AL31: - | AM31: - | AN31: - | AO31: - | AP31: - | AQ31: 2 | AR31: - | AS31: - | AT31: - | AU31: 2 | AV31: - | AW31: - | AX31: - | AY31: - | AZ31: - | BA31: 2 | BB31: - | BC31: - | BD31: - | BE31: 2 | BF31: - | BG31: - | BH31: - | BI31: - | BJ31: - | BK31: 2 | BL31: - | BM31: - | BN31: - | BO31: Same
A32: Report | B32: Safe in Tees Valley Limited | C32: 54245 | D32: Community Learning and Skills | E32: North East, Yorkshire & Humber | F32: Stockton-on-Tees | G32: ACL Voluntary organisation | H32: WBL - full (regional) | I32: 451617 | J32: 2014-10-15 | K32: 2014-10-17 | L32: Published | M32: 2014-11-19 | N32: 409409 | O32: 2012-11-28 | P32: 2 | Q32: 4 | R32: - | S32: - | T32: - | U32: 4 | V32: - | W32: - | X32: - | Y32: - | Z32: - | AA32: 4 | AB32: - | AC32: - | AD32: - | AE32: 4 | AF32: - | AG32: - | AH32: - | AI32: - | AJ32: - | AK32: 4 | AL32: - | AM32: - | AN32: - | AO32: 4 | AP32: - | AQ32: - | AR32: - | AS32: - | AT32: - | AU32: 4 | AV32: - | AW32: - | AX32: - | AY32: 4 | AZ32: - | BA32: - | BB32: - | BC32: - | BD32: - | BE32: 4 | BF32: - | BG32: - | BH32: - | BI32: 4 | BJ32: - | BK32: - | BL32: - | BM32: - | BN32: - | BO32: Declined
A33: Report | B33: Waltham Forest College | C33: 130456 | D33: General Further Education/Tertiary College | E33: London | F33: Waltham Forest | G33: Further Education | H33: FE College - requires improvement | I33: 430281 | J33: 2014-10-13 | K33: 2014-10-17 | L33: Published | M33: 2014-11-21 | N33: 410622 | O33: 2013-05-17 | P33: 3 | Q33: 3 | R33: - | S33: - | T33: - | U33: 3 | V33: 3 | W33: - | X33: - | Y33: - | Z33: - | AA33: 3 | AB33: - | AC33: - | AD33: - | AE33: 3 | AF33: 2 | AG33: - | AH33: - | AI33: - | AJ33: - | AK33: 3 | AL33: - | AM33: - | AN33: - | AO33: 3 | AP33: 3 | AQ33: - | AR33: - | AS33: - | AT33: - | AU33: 3 | AV33: - | AW33: - | AX33: - | AY33: 3 | AZ33: 3 | BA33: - | BB33: - | BC33: - | BD33: - | BE33: 2 | BF33: - | BG33: - | BH33: - | BI33: 2 | BJ33: 2 | BK33: - | BL33: - | BM33: - | BN33: - | BO33: Same
A34: Report | B34: North Shropshire College | C34: 130797 | D34: General Further Education/Tertiary College | E34: West Midlands | F34: Shropshire | G34: Further Education | H34: FE College - requires improvement | I34: 430280 | J34: 2014-10-14 | K34: 2014-10-17 | L34: Published | M34: 2014-11-21 | N34: 410621 | O34: 2013-05-03 | P34: 3 | Q34: 3 | R34: - | S34: - | T34: - | U34: 3 | V34: 3 | W34: 3 | X34: - | Y34: - | Z34: - | AA34: 3 | AB34: - | AC34: - | AD34: - | AE34: 3 | AF34: 3 | AG34: 3 | AH34: - | AI34: - | AJ34: - | AK34: 3 | AL34: - | AM34: - | AN34: - | AO34: 3 | AP34: 3 | AQ34: 3 | AR34: - | AS34: - | AT34: - | AU34: 3 | AV34: - | AW34: - | AX34: - | AY34: 3 | AZ34: 3 | BA34: 3 | BB34: - | BC34: - | BD34: - | BE34: 3 | BF34: - | BG34: - | BH34: - | BI34: 3 | BJ34: 3 | BK34: 3 | BL34: - | BM34: - | BN34: - | BO34: Same
A35: =IF(C35 <> "", HYPERLINK(CONCATENATE("http://reports.ofsted.gov.uk/inspection-reports/find-inspection-report/provider/ELS/",C35),"Report"),"") -> Report | B35: Havering London Borough Council | C35: 53127 | D35: Community Learning and Skills | E35: London | F35: Havering | G35: ACL Local Authority | H35: Adult and community - full (national) | I35: 434068 | J35: 2014-10-13 | K35: 2014-10-17 | L35: Published | M35: 2014-12-04 | N35: 387987 | O35: 2012-05-04 | P35: 3 | Q35: 2 | R35: - | S35: - | T35: - | U35: - | V35: 2 | W35: 3 | X35: 2 | Y35: - | Z35: 2 | AA35: 2 | AB35: - | AC35: - | AD35: - | AE35: - | AF35: 2 | AG35: 3 | AH35: 2 | AI35: - | AJ35: 2 | AK35: 2 | AL35: - | AM35: - | AN35: - | AO35: - | AP35: 2 | AQ35: 3 | AR35: 2 | AS35: - | AT35: 2 | AU35: 2 | AV35: - | AW35: - | AX35: - | AY35: - | AZ35: 2 | BA35: 2 | BB35: 2 | BC35: - | BD35: 2 | BE35: 2 | BF35: - | BG35: - | BH35: - | BI35: - | BJ35: 2 | BK35: 2 | BL35: 2 | BM35: - | BN35: 2 | BO35: =IF(P35="Null","No previous inspection",IF(Q35>P35,"Declined", IF(Q35=P35,"Same",IF(Q35<P35,"Improved")))) -> Improved
A36: Report | B36: Warrington Borough Council | C36: 55268 | D36: Community Learning and Skills | E36: North West | F36: Warrington | G36: ACL Local Authority | H36: Adult and Community - full (regional) | I36: 446668 | J36: 2014-10-14 | K36: 2014-10-17 | L36: Published | M36: 2014-12-16 | N36: 354472 | O36: 2010-10-15 | P36: 2 | Q36: 4 | R36: - | S36: - | T36: - | U36: - | V36: - | W36: 4 | X36: 3 | Y36: - | Z36: - | AA36: 4 | AB36: - | AC36: - | AD36: - | AE36: - | AF36: - | AG36: 4 | AH36: 3 | AI36: - | AJ36: - | AK36: 3 | AL36: - | AM36: - | AN36: - | AO36: - | AP36: - | AQ36: 4 | AR36: 3 | AS36: - | AT36: - | AU36: 4 | AV36: - | AW36: - | AX36: - | AY36: - | AZ36: - | BA36: 4 | BB36: 3 | BC36: - | BD36: - | BE36: 3 | BF36: - | BG36: - | BH36: - | BI36: - | BJ36: - | BK36: 3 | BL36: 3 | BM36: - | BN36: - | BO36: Declined
A37: Report | B37: Woodspeen Training Limited | C37: 50262 | D37: Independent Learning Provider | E37: North East, Yorkshire & Humber | F37: Kirklees | G37: Independent Learning Provider | H37: WBL - requires improvement | I37: 446598 | J37: 2014-10-13 | K37: 2014-10-17 | L37: Published | M37: 2014-11-19 | N37: 410699 | O37: 2013-05-24 | P37: 3 | Q37: 2 | R37: - | S37: - | T37: - | U37: - | V37: - | W37: 2 | X37: - | Y37: - | Z37: 2 | AA37: 2 | AB37: - | AC37: - | AD37: - | AE37: - | AF37: - | AG37: 2 | AH37: - | AI37: - | AJ37: 2 | AK37: 2 | AL37: - | AM37: - | AN37: - | AO37: - | AP37: - | AQ37: 2 | AR37: - | AS37: - | AT37: 2 | AU37: 2 | AV37: - | AW37: - | AX37: - | AY37: - | AZ37: - | BA37: 2 | BB37: - | BC37: - | BD37: 2 | BE37: 2 | BF37: - | BG37: - | BH37: - | BI37: - | BJ37: - | BK37: 2 | BL37: - | BM37: - | BN37: 2 | BO37: Improved
A38: Report | B38: Skills Team Ltd | C38: 58340 | D38: Independent Learning Provider | E38: London | F38: Ealing | G38: Independent Learning Provider | H38: WBL - requires improvement | I38: 430259 | J38: 2014-10-13 | K38: 2014-10-17 | L38: Published | M38: 2014-11-27 | N38: 410653 | O38: 2013-06-21 | P38: 3 | Q38: 3 | R38: - | S38: - | T38: - | U38: - | V38: - | W38: 3 | X38: - | Y38: - | Z38: - | AA38: 3 | AB38: - | AC38: - | AD38: - | AE38: - | AF38: - | AG38: 3 | AH38: - | AI38: - | AJ38: - | AK38: 3 | AL38: - | AM38: - | AN38: - | AO38: - | AP38: - | AQ38: 3 | AR38: - | AS38: - | AT38: - | AU38: 3 | AV38: - | AW38: - | AX38: - | AY38: - | AZ38: - | BA38: 3 | BB38: - | BC38: - | BD38: - | BE38: 3 | BF38: - | BG38: - | BH38: - | BI38: - | BJ38: - | BK38: 3 | BL38: - | BM38: - | BN38: - | BO38: Same
A39: Report | B39: Morthyng Group Limited | C39: 53422 | D39: Community Learning and Skills | E39: North East, Yorkshire & Humber | F39: Rotherham | G39: ACL Voluntary organisation | H39: WBL - full (regional) | I39: 452205 | J39: 2014-10-13 | K39: 2014-10-17 | L39: Published | M39: 2014-11-19 | N39: 363209 | O39: 2011-11-25 | P39: 2 | Q39: 2 | R39: - | S39: - | T39: - | U39: 2 | V39: - | W39: - | X39: - | Y39: - | Z39: - | AA39: 2 | AB39: - | AC39: - | AD39: - | AE39: 2 | AF39: - | AG39: - | AH39: - | AI39: - | AJ39: - | AK39: 2 | AL39: - | AM39: - | AN39: - | AO39: 2 | AP39: - | AQ39: - | AR39: - | AS39: - | AT39: - | AU39: 2 | AV39: - | AW39: - | AX39: - | AY39: 2 | AZ39: - | BA39: - | BB39: - | BC39: - | BD39: - | BE39: 1 | BF39: - | BG39: - | BH39: - | BI39: 1 | BJ39: - | BK39: - | BL39: - | BM39: - | BN39: - | BO39: Same
A40: Report | B40: Orpheus Centre | C40: 131950 | D40: Independent Specialist College | E40: South East | F40: Surrey | G40: Special College | H40: ISC - full inspection | I40: 446687 | J40: 2014-10-21 | K40: 2014-10-22 | L40: Published | M40: 2014-12-03 | N40: 317375 | O40: 2007-06-08 | P40: 4 | Q40: 3 | R40: - | S40: - | T40: - | U40: 3 | V40: 3 | W40: - | X40: - | Y40: - | Z40: - | AA40: 3 | AB40: - | AC40: - | AD40: - | AE40: 3 | AF40: 3 | AG40: - | AH40: - | AI40: - | AJ40: - | AK40: 3 | AL40: - | AM40: - | AN40: - | AO40: 3 | AP40: 3 | AQ40: - | AR40: - | AS40: - | AT40: - | AU40: 3 | AV40: - | AW40: - | AX40: - | AY40: 3 | AZ40: 3 | BA40: - | BB40: - | BC40: - | BD40: - | BE40: 3 | BF40: - | BG40: - | BH40: - | BI40: 3 | BJ40: 3 | BK40: - | BL40: - | BM40: - | BN40: - | BO40: Improved
A41: Report | B41: CCP GRADUATE SCHOOL LTD | C41: 51090 | D41: Independent Learning Provider | E41: London | F41: Brent | G41: Independent Learning Provider | H41: WBL - requires improvement | I41: 430251 | J41: 2014-10-20 | K41: 2014-10-23 | L41: Published | M41: 2014-12-15 | N41: 422425 | O41: 2013-06-21 | P41: 3 | Q41: 3 | R41: - | S41: - | T41: - | U41: 3 | V41: - | W41: - | X41: - | Y41: - | Z41: - | AA41: 3 | AB41: - | AC41: - | AD41: - | AE41: 3 | AF41: - | AG41: - | AH41: - | AI41: - | AJ41: - | AK41: 2 | AL41: - | AM41: - | AN41: - | AO41: 2 | AP41: - | AQ41: - | AR41: - | AS41: - | AT41: - | AU41: 3 | AV41: - | AW41: - | AX41: - | AY41: 3 | AZ41: - | BA41: - | BB41: - | BC41: - | BD41: - | BE41: 2 | BF41: - | BG41: - | BH41: - | BI41: 1 | BJ41: - | BK41: - | BL41: - | BM41: - | BN41: - | BO41: Same
A42: Report | B42: Central Sussex College | C42: 129383 | D42: General Further Education/Tertiary College | E42: South East | F42: West Sussex | G42: Further Education | H42: FE College - requires improvement | I42: 430269 | J42: 2014-10-20 | K42: 2014-10-24 | L42: Published | M42: 2014-11-28 | N42: 409298 | O42: 2013-04-26 | P42: 3 | Q42: 3 | R42: - | S42: - | T42: - | U42: 3 | V42: 3 | W42: 3 | X42: - | Y42: - | Z42: - | AA42: 3 | AB42: - | AC42: - | AD42: - | AE42: 3 | AF42: 3 | AG42: 4 | AH42: - | AI42: - | AJ42: - | AK42: 3 | AL42: - | AM42: - | AN42: - | AO42: 3 | AP42: 3 | AQ42: 3 | AR42: - | AS42: - | AT42: - | AU42: 3 | AV42: - | AW42: - | AX42: - | AY42: 3 | AZ42: 3 | BA42: 3 | BB42: - | BC42: - | BD42: - | BE42: 2 | BF42: - | BG42: - | BH42: - | BI42: 2 | BJ42: 2 | BK42: 2 | BL42: - | BM42: - | BN42: - | BO42: Same
A43: Report | B43: Skills for Health Limited | C43: 58437 | D43: Community Learning and Skills | E43: South West | F43: Bristol City of | G43: ACL Voluntary organisation | H43: WBL - requires improvement | I43: 430257 | J43: 2014-10-20 | K43: 2014-10-24 | L43: Published | M43: 2014-11-28 | N43: 410651 | O43: 2013-04-26 | P43: 3 | Q43: 2 | R43: - | S43: - | T43: - | U43: - | V43: 2 | W43: 2 | X43: - | Y43: - | Z43: - | AA43: 2 | AB43: - | AC43: - | AD43: - | AE43: - | AF43: 2 | AG43: 2 | AH43: - | AI43: - | AJ43: - | AK43: 2 | AL43: - | AM43: - | AN43: - | AO43: - | AP43: 2 | AQ43: 2 | AR43: - | AS43: - | AT43: - | AU43: 2 | AV43: - | AW43: - | AX43: - | AY43: - | AZ43: 2 | BA43: 2 | BB43: - | BC43: - | BD43: - | BE43: 2 | BF43: - | BG43: - | BH43: - | BI43: - | BJ43: 2 | BK43: 2 | BL43: - | BM43: - | BN43: - | BO43: Improved
A44: Report | B44: Epping Forest College | C44: 130677 | D44: General Further Education/Tertiary College | E44: East of England | F44: Essex | G44: Further Education | H44: FE College - requires improvement | I44: 430271 | J44: 2014-10-20 | K44: 2014-10-24 | L44: Published | M44: 2014-11-28 | N44: 410611 | O44: 2013-05-17 | P44: 3 | Q44: 3 | R44: - | S44: - | T44: - | U44: 3 | V44: 3 | W44: - | X44: - | Y44: - | Z44: - | AA44: 3 | AB44: - | AC44: - | AD44: - | AE44: 3 | AF44: 3 | AG44: - | AH44: - | AI44: - | AJ44: - | AK44: 3 | AL44: - | AM44: - | AN44: - | AO44: 3 | AP44: 3 | AQ44: - | AR44: - | AS44: - | AT44: - | AU44: 2 | AV44: - | AW44: - | AX44: - | AY44: 2 | AZ44: 2 | BA44: - | BB44: - | BC44: - | BD44: - | BE44: 2 | BF44: - | BG44: - | BH44: - | BI44: 2 | BJ44: 2 | BK44: - | BL44: - | BM44: - | BN44: - | BO44: Same
A45: Report | B45: Aspire Achieve Advance Limited | C45: 59185 | D45: Independent Learning Provider | E45: East Midlands | F45: Derbyshire | G45: Independent Learning Provider | H45: WBL - full (regional) | I45: 451933 | J45: 2014-10-20 | K45: 2014-10-24 | L45: Published | M45: 2014-11-19 | N45: NULL | O45: NULL | P45: NULL | Q45: 1 | R45: - | S45: - | T45: - | U45: - | V45: - | W45: 1 | X45: - | Y45: - | Z45: - | AA45: 1 | AB45: - | AC45: - | AD45: - | AE45: - | AF45: - | AG45: 1 | AH45: - | AI45: - | AJ45: - | AK45: 1 | AL45: - | AM45: - | AN45: - | AO45: - | AP45: - | AQ45: 1 | AR45: - | AS45: - | AT45: - | AU45: 1 | AV45: - | AW45: - | AX45: - | AY45: - | AZ45: - | BA45: 1 | BB45: - | BC45: - | BD45: - | BE45: 2 | BF45: - | BG45: - | BH45: - | BI45: - | BJ45: - | BK45: 2 | BL45: - | BM45: - | BN45: - | BO45: No previous inspection
A46: Report | B46: Manor Training and Resource Centre Limited | C46: 53239 | D46: Community Learning and Skills | E46: North East, Yorkshire & Humber | F46: Sheffield | G46: ACL Voluntary organisation | H46: Adult and Community - full (regional) | I46: 446664 | J46: 2014-10-22 | K46: 2014-10-24 | L46: Published | M46: 2014-11-28 | N46: 363486 | O46: 2010-11-12 | P46: 2 | Q46: 3 | R46: - | S46: - | T46: - | U46: 3 | V46: - | W46: - | X46: - | Y46: - | Z46: - | AA46: 3 | AB46: - | AC46: - | AD46: - | AE46: 3 | AF46: - | AG46: - | AH46: - | AI46: - | AJ46: - | AK46: 3 | AL46: - | AM46: - | AN46: - | AO46: 3 | AP46: - | AQ46: - | AR46: - | AS46: - | AT46: - | AU46: 3 | AV46: - | AW46: - | AX46: - | AY46: 3 | AZ46: - | BA46: - | BB46: - | BC46: - | BD46: - | BE46: 3 | BF46: - | BG46: - | BH46: - | BI46: 3 | BJ46: - | BK46: - | BL46: - | BM46: - | BN46: - | BO46: Declined
A47: Report | B47: Warrington Collegiate | C47: 130617 | D47: General Further Education/Tertiary College | E47: North West | F47: Warrington | G47: Further Education | H47: FE College - full inspection | I47: 447146 | J47: 2014-10-20 | K47: 2014-10-24 | L47: Published | M47: 2014-11-28 | N47: 354448 | O47: 2010-10-22 | P47: 2 | Q47: 3 | R47: - | S47: - | T47: - | U47: 3 | V47: 3 | W47: 3 | X47: - | Y47: - | Z47: - | AA47: 3 | AB47: - | AC47: - | AD47: - | AE47: 3 | AF47: 3 | AG47: 3 | AH47: - | AI47: - | AJ47: - | AK47: 3 | AL47: - | AM47: - | AN47: - | AO47: 3 | AP47: 3 | AQ47: 3 | AR47: - | AS47: - | AT47: - | AU47: 3 | AV47: - | AW47: - | AX47: - | AY47: 3 | AZ47: 3 | BA47: 3 | BB47: - | BC47: - | BD47: - | BE47: 2 | BF47: - | BG47: - | BH47: - | BI47: 2 | BJ47: 2 | BK47: 2 | BL47: - | BM47: - | BN47: - | BO47: Declined
A48: Report | B48: City of Wolverhampton College | C48: 130484 | D48: General Further Education/Tertiary College | E48: West Midlands | F48: Wolverhampton | G48: Further Education | H48: FE College - requires improvement | I48: 430270 | J48: 2014-10-20 | K48: 2014-10-24 | L48: Published | M48: 2014-11-28 | N48: 397446 | O48: 2013-05-03 | P48: 3 | Q48: 2 | R48: - | S48: - | T48: - | U48: 2 | V48: 2 | W48: 2 | X48: - | Y48: - | Z48: - | AA48: 3 | AB48: - | AC48: - | AD48: - | AE48: 3 | AF48: 3 | AG48: 2 | AH48: - | AI48: - | AJ48: - | AK48: 2 | AL48: - | AM48: - | AN48: - | AO48: 2 | AP48: 2 | AQ48: 2 | AR48: - | AS48: - | AT48: - | AU48: 2 | AV48: - | AW48: - | AX48: - | AY48: 2 | AZ48: 2 | BA48: 2 | BB48: - | BC48: - | BD48: - | BE48: 2 | BF48: - | BG48: - | BH48: - | BI48: 2 | BJ48: 2 | BK48: 2 | BL48: - | BM48: - | BN48: - | BO48: Improved
A49: Report | B49: Succead Limited | C49: 59159 | D49: Independent Learning Provider | E49: West Midlands | F49: Birmingham | G49: Independent Learning Provider | H49: Work Based Learning - full (national) | I49: 452693 | J49: 2014-10-27 | K49: 2014-10-31 | L49: Published | M49: 2014-11-21 | N49: NULL | O49: NULL | P49: NULL | Q49: 3 | R49: - | S49: - | T49: - | U49: - | V49: - | W49: 3 | X49: - | Y49: - | Z49: - | AA49: 3 | AB49: - | AC49: - | AD49: - | AE49: - | AF49: - | AG49: 3 | AH49: - | AI49: - | AJ49: - | AK49: 3 | AL49: - | AM49: - | AN49: - | AO49: - | AP49: - | AQ49: 3 | AR49: - | AS49: - | AT49: - | AU49: 3 | AV49: - | AW49: - | AX49: - | AY49: - | AZ49: - | BA49: 3 | BB49: - | BC49: - | BD49: - | BE49: 3 | BF49: - | BG49: - | BH49: - | BI49: - | BJ49: - | BK49: 3 | BL49: - | BM49: - | BN49: - | BO49: No previous inspection
A50: Report | B50: Team Enterprises Limited | C50: 58515 | D50: Independent Learning Provider | E50: North West | F50: St. Helens | G50: Independent Learning Provider | H50: WBL - full (regional) | I50: 445777 | J50: 2014-10-27 | K50: 2014-10-31 | L50: Published | M50: 2014-12-09 | N50: 364590 | O50: 2011-05-06 | P50: 2 | Q50: 3 | R50: - | S50: - | T50: 3 | U50: 3 | V50: 3 | W50: 3 | X50: - | Y50: - | Z50: - | AA50: 3 | AB50: - | AC50: - | AD50: 3 | AE50: 3 | AF50: 3 | AG50: 3 | AH50: - | AI50: - | AJ50: - | AK50: 3 | AL50: - | AM50: - | AN50: 3 | AO50: 3 | AP50: 3 | AQ50: 3 | AR50: - | AS50: - | AT50: - | AU50: 3 | AV50: - | AW50: - | AX50: 3 | AY50: 3 | AZ50: 3 | BA50: 3 | BB50: - | BC50: - | BD50: - | BE50: 3 | BF50: - | BG50: - | BH50: 3 | BI50: 3 | BJ50: 3 | BK50: 3 | BL50: - | BM50: - | BN50: - | BO50: Declined
A51: Report | B51: MI ComputSolutions Incorporated | C51: 58370 | D51: Independent Learning Provider | E51: London | F51: Lambeth | G51: Independent Learning Provider | H51: WBL - full (regional) | I51: 451598 | J51: 2014-10-27 | K51: 2014-10-31 | L51: Published | M51: 2014-12-05 | N51: 333284 | O51: 2009-08-14 | P51: 2 | Q51: 2 | R51: - | S51: - | T51: - | U51: - | V51: 2 | W51: 3 | X51: - | Y51: - | Z51: - | AA51: 2 | AB51: - | AC51: - | AD51: - | AE51: - | AF51: 2 | AG51: 3 | AH51: - | AI51: - | AJ51: - | AK51: 2 | AL51: - | AM51: - | AN51: - | AO51: - | AP51: 2 | AQ51: 3 | AR51: - | AS51: - | AT51: - | AU51: 2 | AV51: - | AW51: - | AX51: - | AY51: - | AZ51: 2 | BA51: 3 | BB51: - | BC51: - | BD51: - | BE51: 2 | BF51: - | BG51: - | BH51: - | BI51: - | BJ51: 2 | BK51: 2 | BL51: - | BM51: - | BN51: - | BO51: Same
A52: Report | B52: Lancashire Adult Learning | C52: 52911 | D52: Community Learning and Skills | E52: North West | F52: Lancashire | G52: ACL Local Authority | H52: Adult and community - full (national) | I52: 446661 | J52: 2014-11-03 | K52: 2014-11-07 | L52: Published | M52: 2014-12-10 | N52: 330961 | O52: 2009-02-06 | P52: 2 | Q52: 4 | R52: - | S52: - | T52: 4 | U52: - | V52: 4 | W52: 4 | X52: 4 | Y52: - | Z52: 4 | AA52: 3 | AB52: - | AC52: - | AD52: 3 | AE52: - | AF52: 3 | AG52: 3 | AH52: 3 | AI52: - | AJ52: 3 | AK52: 3 | AL52: - | AM52: - | AN52: 3 | AO52: - | AP52: 3 | AQ52: 3 | AR52: 3 | AS52: - | AT52: 3 | AU52: 4 | AV52: - | AW52: - | AX52: 4 | AY52: - | AZ52: 4 | BA52: 4 | BB52: 4 | BC52: - | BD52: 4 | BE52: 3 | BF52: - | BG52: - | BH52: 3 | BI52: - | BJ52: 3 | BK52: 3 | BL52: 3 | BM52: - | BN52: 3 | BO52: Declined
A53: Report | B53: Amersham and Wycombe College | C53: 130608 | D53: General Further Education/Tertiary College | E53: South East | F53: Buckinghamshire | G53: Further Education | H53: FE College - requires improvement | I53: 430268 | J53: 2014-11-03 | K53: 2014-11-07 | L53: Published | M53: 2014-12-12 | N53: 409443 | O53: 2013-06-07 | P53: 3 | Q53: 3 | R53: 2 | S53: - | T53: - | U53: 3 | V53: 3 | W53: 3 | X53: - | Y53: - | Z53: - | AA53: 3 | AB53: 1 | AC53: - | AD53: - | AE53: 3 | AF53: 3 | AG53: 3 | AH53: - | AI53: - | AJ53: - | AK53: 3 | AL53: 2 | AM53: - | AN53: - | AO53: 3 | AP53: 3 | AQ53: 3 | AR53: - | AS53: - | AT53: - | AU53: 2 | AV53: 2 | AW53: - | AX53: - | AY53: 2 | AZ53: 2 | BA53: 2 | BB53: - | BC53: - | BD53: - | BE53: 2 | BF53: 2 | BG53: - | BH53: - | BI53: 2 | BJ53: 2 | BK53: 2 | BL53: - | BM53: - | BN53: - | BO53: Same
A54: Report | B54: North Yorkshire County Council | C54: 50229 | D54: Community Learning and Skills | E54: North East, Yorkshire & Humber | F54: North Yorkshire | G54: ACL Local Authority | H54: ACL - requires improvement | I54: 446660 | J54: 2014-11-03 | K54: 2014-11-07 | L54: Published | M54: 2014-12-10 | N54: 408465 | O54: 2013-05-24 | P54: 3 | Q54: 2 | R54: - | S54: - | T54: - | U54: 2 | V54: 2 | W54: 3 | X54: 2 | Y54: - | Z54: 2 | AA54: 2 | AB54: - | AC54: - | AD54: - | AE54: 2 | AF54: 2 | AG54: 3 | AH54: 2 | AI54: - | AJ54: 2 | AK54: 2 | AL54: - | AM54: - | AN54: - | AO54: 2 | AP54: 2 | AQ54: 3 | AR54: 2 | AS54: - | AT54: 2 | AU54: 2 | AV54: - | AW54: - | AX54: - | AY54: 2 | AZ54: 2 | BA54: 3 | BB54: 2 | BC54: - | BD54: 2 | BE54: 3 | BF54: - | BG54: - | BH54: - | BI54: 3 | BJ54: 3 | BK54: 3 | BL54: 3 | BM54: - | BN54: 3 | BO54: Improved
A55: Report | B55: Bestland Solutions Limited | C55: 57838 | D55: Independent Learning Provider | E55: South East | F55: Southampton | G55: Independent Learning Provider | H55: WBL - full (regional) | I55: 452620 | J55: 2014-11-04 | K55: 2014-11-07 | L55: Published | M55: 2014-12-12 | N55: NULL | O55: NULL | P55: NULL | Q55: 3 | R55: - | S55: - | T55: - | U55: - | V55: - | W55: 3 | X55: - | Y55: - | Z55: - | AA55: 3 | AB55: - | AC55: - | AD55: - | AE55: - | AF55: - | AG55: 3 | AH55: - | AI55: - | AJ55: - | AK55: 3 | AL55: - | AM55: - | AN55: - | AO55: - | AP55: - | AQ55: 3 | AR55: - | AS55: - | AT55: - | AU55: 3 | AV55: - | AW55: - | AX55: - | AY55: - | AZ55: - | BA55: 3 | BB55: - | BC55: - | BD55: - | BE55: 2 | BF55: - | BG55: - | BH55: - | BI55: - | BJ55: - | BK55: 2 | BL55: - | BM55: - | BN55: - | BO55: No previous inspection
A56: Report | B56: Norman Mackie & Associates Limited | C56: 58507 | D56: Independent Learning Provider | E56: North West | F56: Tameside | G56: Independent Learning Provider | H56: Work Based Learning - full (national) | I56: 451204 | J56: 2014-11-10 | K56: 2014-11-12 | L56: Published | M56: 2014-12-15 | N56: NULL | O56: NULL | P56: NULL | Q56: 2 | R56: - | S56: - | T56: - | U56: - | V56: - | W56: - | X56: - | Y56: - | Z56: 2 | AA56: 2 | AB56: - | AC56: - | AD56: - | AE56: - | AF56: - | AG56: - | AH56: - | AI56: - | AJ56: 2 | AK56: 2 | AL56: - | AM56: - | AN56: - | AO56: - | AP56: - | AQ56: - | AR56: - | AS56: - | AT56: 2 | AU56: 2 | AV56: - | AW56: - | AX56: - | AY56: - | AZ56: - | BA56: - | BB56: - | BC56: - | BD56: 2 | BE56: 1 | BF56: - | BG56: - | BH56: - | BI56: - | BJ56: - | BK56: - | BL56: - | BM56: - | BN56: 1 | BO56: No previous inspection
A57: Report | B57: Communication Specialist College - Doncaster | C57: 131869 | D57: Independent Specialist College | E57: North East, Yorkshire & Humber | F57: Doncaster | G57: Special College | H57: ISC - full inspection | I57: 429190 | J57: 2014-11-11 | K57: 2014-11-13 | L57: Published | M57: 2014-12-16 | N57: 316974 | O57: 2007-10-05 | P57: 2 | Q57: 2 | R57: - | S57: - | T57: - | U57: 2 | V57: 2 | W57: - | X57: - | Y57: - | Z57: - | AA57: 2 | AB57: - | AC57: - | AD57: - | AE57: 2 | AF57: 2 | AG57: - | AH57: - | AI57: - | AJ57: - | AK57: 2 | AL57: - | AM57: - | AN57: - | AO57: 2 | AP57: 2 | AQ57: - | AR57: - | AS57: - | AT57: - | AU57: 2 | AV57: - | AW57: - | AX57: - | AY57: 2 | AZ57: 2 | BA57: - | BB57: - | BC57: - | BD57: - | BE57: 2 | BF57: - | BG57: - | BH57: - | BI57: 2 | BJ57: 2 | BK57: - | BL57: - | BM57: - | BN57: - | BO57: Same
A58: Report | B58: Wokingham Council | C58: 50246 | D58: Community Learning and Skills | E58: South East | F58: Wokingham | G58: ACL Local Authority | H58: Adult and Community - full (regional) | I58: 452599 | J58: 2014-11-11 | K58: 2014-11-13 | L58: Published | M58: 2014-12-23 | N58: 354479 | O58: 2010-11-26 | P58: 2 | Q58: 3 | R58: - | S58: - | T58: - | U58: - | V58: - | W58: - | X58: 3 | Y58: - | Z58: - | AA58: 3 | AB58: - | AC58: - | AD58: - | AE58: - | AF58: - | AG58: - | AH58: 3 | AI58: - | AJ58: - | AK58: 2 | AL58: - | AM58: - | AN58: - | AO58: - | AP58: - | AQ58: - | AR58: 2 | AS58: - | AT58: - | AU58: 3 | AV58: - | AW58: - | AX58: - | AY58: - | AZ58: - | BA58: - | BB58: 3 | BC58: - | BD58: - | BE58: 3 | BF58: - | BG58: - | BH58: - | BI58: - | BJ58: - | BK58: - | BL58: 3 | BM58: - | BN58: - | BO58: Declined
A59: Report | B59: Central College Nottingham | C59: 130783 | D59: General Further Education/Tertiary College | E59: East Midlands | F59: Nottinghamshire | G59: Further Education | H59: FE College - requires improvement | I59: 430278 | J59: 2014-11-10 | K59: 2014-11-14 | L59: Published | M59: 2014-12-18 | N59: 410618 | O59: 2013-05-24 | P59: 3 | Q59: 3 | R59: 3 | S59: - | T59: - | U59: 3 | V59: 3 | W59: 3 | X59: 3 | Y59: - | Z59: - | AA59: 3 | AB59: 3 | AC59: - | AD59: - | AE59: 3 | AF59: 3 | AG59: 3 | AH59: 3 | AI59: - | AJ59: - | AK59: 3 | AL59: 3 | AM59: - | AN59: - | AO59: 3 | AP59: 3 | AQ59: 3 | AR59: 3 | AS59: - | AT59: - | AU59: 2 | AV59: 2 | AW59: - | AX59: - | AY59: 2 | AZ59: 2 | BA59: 2 | BB59: 2 | BC59: - | BD59: - | BE59: 2 | BF59: 2 | BG59: - | BH59: - | BI59: 2 | BJ59: 2 | BK59: 2 | BL59: 2 | BM59: - | BN59: - | BO59: Same
A60: Report | B60: Compass Group UK & Ireland | C60: 58805 | D60: Employer | E60: South East | F60: Surrey | G60: Employer | H60: WBL - requires improvement | I60: 430252 | J60: 2014-11-10 | K60: 2014-11-14 | L60: Published | M60: 2014-12-19 | N60: 408528 | O60: 2013-06-07 | P60: 3 | Q60: 2 | R60: - | S60: - | T60: - | U60: - | V60: - | W60: 2 | X60: - | Y60: - | Z60: - | AA60: 3 | AB60: - | AC60: - | AD60: - | AE60: - | AF60: - | AG60: 3 | AH60: - | AI60: - | AJ60: - | AK60: 2 | AL60: - | AM60: - | AN60: - | AO60: - | AP60: - | AQ60: 2 | AR60: - | AS60: - | AT60: - | AU60: 2 | AV60: - | AW60: - | AX60: - | AY60: - | AZ60: - | BA60: 2 | BB60: - | BC60: - | BD60: - | BE60: 2 | BF60: - | BG60: - | BH60: - | BI60: - | BJ60: - | BK60: 2 | BL60: - | BM60: - | BN60: - | BO60: Improved
A61: =IF(C61 <> "", HYPERLINK(CONCATENATE("http://reports.ofsted.gov.uk/inspection-reports/find-inspection-report/provider/ELS/",C61),"Report"),"") -> Report | B61: In Touch Care Limited | C61: 50138 | D61: Independent Learning Provider | E61: North East, Yorkshire & Humber | F61: Sheffield | G61: Independent Learning Provider | H61: Work Based Learning - full (national) | I61: 446599 | J61: 2014-11-10 | K61: 2014-11-14 | L61: Published | M61: 2014-12-19 | N61: 408498 | O61: 2013-05-17 | P61: 2 | Q61: 3 | R61: - | S61: - | T61: - | U61: - | V61: 3 | W61: 3 | X61: - | Y61: - | Z61: - | AA61: 3 | AB61: - | AC61: - | AD61: - | AE61: - | AF61: 3 | AG61: 3 | AH61: - | AI61: - | AJ61: - | AK61: 3 | AL61: - | AM61: - | AN61: - | AO61: - | AP61: 3 | AQ61: 3 | AR61: - | AS61: - | AT61: - | AU61: 3 | AV61: - | AW61: - | AX61: - | AY61: - | AZ61: 3 | BA61: 3 | BB61: - | BC61: - | BD61: - | BE61: 2 | BF61: - | BG61: - | BH61: - | BI61: - | BJ61: 2 | BK61: 2 | BL61: - | BM61: - | BN61: - | BO61: =IF(P61="Null","No previous inspection",IF(Q61>P61,"Declined", IF(Q61=P61,"Same",IF(Q61<P61,"Improved")))) -> Declined
A62: Report | B62: Area 51 Education Ltd | C62: 139243 | D62: Independent Specialist College | E62: London | F62: Haringey | G62: Special College | H62: ISC - full inspection | I62: 446688 | J62: 2014-11-12 | K62: 2014-11-14 | L62: Published | M62: 2014-12-19 | N62: NULL | O62: NULL | P62: NULL | Q62: 3 | R62: - | S62: - | T62: - | U62: - | V62: 3 | W62: - | X62: - | Y62: - | Z62: - | AA62: 3 | AB62: - | AC62: - | AD62: - | AE62: - | AF62: 3 | AG62: - | AH62: - | AI62: - | AJ62: - | AK62: 3 | AL62: - | AM62: - | AN62: - | AO62: - | AP62: 3 | AQ62: - | AR62: - | AS62: - | AT62: - | AU62: 3 | AV62: - | AW62: - | AX62: - | AY62: - | AZ62: 3 | BA62: - | BB62: - | BC62: - | BD62: - | BE62: 3 | BF62: - | BG62: - | BH62: - | BI62: - | BJ62: 3 | BK62: - | BL62: - | BM62: - | BN62: - | BO62: No previous inspection
A63: Report | B63: Northern School of Contemporary Dance | C63: 133840 | D63: Higher Education Institution | E63: North East, Yorkshire & Humber | F63: Leeds | G63: Higher Education Institutions | H63: FE in HE - full inspection | I63: 444690 | J63: 2014-11-11 | K63: 2014-11-14 | L63: Published | M63: 2014-12-17 | N63: NULL | O63: NULL | P63: NULL | Q63: 1 | R63: - | S63: - | T63: - | U63: 1 | V63: 1 | W63: - | X63: - | Y63: - | Z63: - | AA63: 1 | AB63: - | AC63: - | AD63: - | AE63: 1 | AF63: 1 | AG63: - | AH63: - | AI63: - | AJ63: - | AK63: 1 | AL63: - | AM63: - | AN63: - | AO63: 1 | AP63: 1 | AQ63: - | AR63: - | AS63: - | AT63: - | AU63: 1 | AV63: - | AW63: - | AX63: - | AY63: 1 | AZ63: 1 | BA63: - | BB63: - | BC63: - | BD63: - | BE63: 2 | BF63: - | BG63: - | BH63: - | BI63: 2 | BJ63: 2 | BK63: - | BL63: - | BM63: - | BN63: - | BO63: No previous inspection
A64: Report | B64: Greenwich Community College at Plumstead Centre | C64: 130405 | D64: General Further Education/Tertiary College | E64: London | F64: Greenwich | G64: Further Education | H64: FE College - requires improvement | I64: 430272 | J64: 2014-11-10 | K64: 2014-11-14 | L64: Published | M64: 2014-12-19 | N64: 410612 | O64: 2013-05-24 | P64: 3 | Q64: 4 | R64: - | S64: - | T64: - | U64: 4 | V64: 4 | W64: - | X64: - | Y64: - | Z64: - | AA64: 4 | AB64: - | AC64: - | AD64: - | AE64: 4 | AF64: 4 | AG64: - | AH64: - | AI64: - | AJ64: - | AK64: 4 | AL64: - | AM64: - | AN64: - | AO64: 4 | AP64: 4 | AQ64: - | AR64: - | AS64: - | AT64: - | AU64: 4 | AV64: - | AW64: - | AX64: - | AY64: 4 | AZ64: 4 | BA64: - | BB64: - | BC64: - | BD64: - | BE64: 2 | BF64: - | BG64: - | BH64: - | BI64: 2 | BJ64: 2 | BK64: - | BL64: - | BM64: - | BN64: - | BO64: Declined
A65: Report | B65: Adult Community Learning Essex | C65: 51766 | D65: Community Learning and Skills | E65: East of England | F65: Essex | G65: ACL Local Authority | H65: Adult and Community - full (regional) | I65: 423415 | J65: 2014-11-10 | K65: 2014-11-14 | L65: Published | M65: 2014-12-19 | N65: 331440 | O65: 2009-06-05 | P65: 1 | Q65: 3 | R65: - | S65: - | T65: - | U65: - | V65: 3 | W65: 3 | X65: 3 | Y65: - | Z65: - | AA65: 3 | AB65: - | AC65: - | AD65: - | AE65: - | AF65: 3 | AG65: 3 | AH65: 3 | AI65: - | AJ65: - | AK65: 3 | AL65: - | AM65: - | AN65: - | AO65: - | AP65: 3 | AQ65: 2 | AR65: 2 | AS65: - | AT65: - | AU65: 3 | AV65: - | AW65: - | AX65: - | AY65: - | AZ65: 3 | BA65: 3 | BB65: 3 | BC65: - | BD65: - | BE65: 2 | BF65: - | BG65: - | BH65: - | BI65: - | BJ65: 2 | BK65: 2 | BL65: 2 | BM65: - | BN65: - | BO65: Declined
A66: Report | B66: S.Y.T.G. Limited | C66: 54504 | D66: Independent Learning Provider | E66: North East, Yorkshire & Humber | F66: Sheffield | G66: Independent Learning Provider | H66: WBL - requires improvement | I66: 430256 | J66: 2014-11-11 | K66: 2014-11-14 | L66: Published | M66: 2014-12-17 | N66: 410692 | O66: 2013-05-17 | P66: 3 | Q66: 2 | R66: - | S66: - | T66: - | U66: 2 | V66: - | W66: - | X66: - | Y66: - | Z66: - | AA66: 2 | AB66: - | AC66: - | AD66: - | AE66: 2 | AF66: - | AG66: - | AH66: - | AI66: - | AJ66: - | AK66: 2 | AL66: - | AM66: - | AN66: - | AO66: 2 | AP66: - | AQ66: - | AR66: - | AS66: - | AT66: - | AU66: 3 | AV66: - | AW66: - | AX66: - | AY66: 3 | AZ66: - | BA66: - | BB66: - | BC66: - | BD66: - | BE66: 2 | BF66: - | BG66: - | BH66: - | BI66: 2 | BJ66: - | BK66: - | BL66: - | BM66: - | BN66: - | BO66: Improved
A67: Report | B67: Haringey London Borough Council | C67: 53124 | D67: Community Learning and Skills | E67: London | F67: Haringey | G67: ACL Local Authority | H67: ACL - requires improvement | I67: 430294 | J67: 2014-11-10 | K67: 2014-11-14 | L67: Published | M67: 2014-12-19 | N67: 410633 | O67: 2013-05-17 | P67: 3 | Q67: 3 | R67: - | S67: - | T67: - | U67: - | V67: - | W67: - | X67: 3 | Y67: - | Z67: - | AA67: 3 | AB67: - | AC67: - | AD67: - | AE67: - | AF67: - | AG67: - | AH67: 3 | AI67: - | AJ67: - | AK67: 3 | AL67: - | AM67: - | AN67: - | AO67: - | AP67: - | AQ67: - | AR67: 3 | AS67: - | AT67: - | AU67: 3 | AV67: - | AW67: - | AX67: - | AY67: - | AZ67: - | BA67: - | BB67: 3 | BC67: - | BD67: - | BE67: 3 | BF67: - | BG67: - | BH67: - | BI67: - | BJ67: - | BK67: - | BL67: 3 | BM67: - | BN67: - | BO67: Same
A68: Report | B68: GHQ Training Limited | C68: 51961 | D68: Independent Learning Provider | E68: South West | F68: Plymouth | G68: Independent Learning Provider | H68: WBL - full (regional) | I68: 445774 | J68: 2014-11-17 | K68: 2014-11-20 | L68: Published | M68: 2014-12-25 | N68: 376246 | O68: 2011-11-25 | P68: 2 | Q68: 2 | R68: - | S68: - | T68: - | U68: - | V68: - | W68: 2 | X68: - | Y68: - | Z68: - | AA68: 2 | AB68: - | AC68: - | AD68: - | AE68: - | AF68: - | AG68: 2 | AH68: - | AI68: - | AJ68: - | AK68: 2 | AL68: - | AM68: - | AN68: - | AO68: - | AP68: - | AQ68: 2 | AR68: - | AS68: - | AT68: - | AU68: 2 | AV68: - | AW68: - | AX68: - | AY68: - | AZ68: - | BA68: 2 | BB68: - | BC68: - | BD68: - | BE68: 3 | BF68: - | BG68: - | BH68: - | BI68: - | BJ68: - | BK68: 3 | BL68: - | BM68: - | BN68: - | BO68: Same
A69: Report | B69: Retail Motor Industry Training Limited | C69: 58614 | D69: Independent Learning Provider | E69: East Midlands | F69: Nottingham | G69: Independent Learning Provider | H69: WBL - requires improvement | I69: 429794 | J69: 2014-11-17 | K69: 2014-11-21 | L69: Published | M69: 2014-12-23 | N69: 410650 | O69: 2013-07-19 | P69: 3 | Q69: 2 | R69: - | S69: - | T69: - | U69: - | V69: - | W69: 2 | X69: - | Y69: - | Z69: - | AA69: 2 | AB69: - | AC69: - | AD69: - | AE69: - | AF69: - | AG69: 2 | AH69: - | AI69: - | AJ69: - | AK69: 2 | AL69: - | AM69: - | AN69: - | AO69: - | AP69: - | AQ69: 2 | AR69: - | AS69: - | AT69: - | AU69: 1 | AV69: - | AW69: - | AX69: - | AY69: - | AZ69: - | BA69: 1 | BB69: - | BC69: - | BD69: - | BE69: 1 | BF69: - | BG69: - | BH69: - | BI69: - | BJ69: - | BK69: 1 | BL69: - | BM69: - | BN69: - | BO69: Improved
A70: Report | B70: The Cornwall Council | C70: 51349 | D70: Community Learning and Skills | E70: South West | F70: Cornwall | G70: ACL Local Authority | H70: ACL - requires improvement | I70: 430293 | J70: 2014-11-17 | K70: 2014-11-21 | L70: Published | M70: 2015-01-14 | N70: 410630 | O70: 2013-06-07 | P70: 3 | Q70: 2 | R70: - | S70: - | T70: - | U70: - | V70: 2 | W70: - | X70: 2 | Y70: - | Z70: - | AA70: 2 | AB70: - | AC70: - | AD70: - | AE70: - | AF70: 2 | AG70: - | AH70: 2 | AI70: - | AJ70: - | AK70: 2 | AL70: - | AM70: - | AN70: - | AO70: - | AP70: 2 | AQ70: - | AR70: 2 | AS70: - | AT70: - | AU70: 2 | AV70: - | AW70: - | AX70: - | AY70: - | AZ70: 2 | BA70: - | BB70: 2 | BC70: - | BD70: - | BE70: 3 | BF70: - | BG70: - | BH70: - | BI70: - | BJ70: 3 | BK70: - | BL70: 3 | BM70: - | BN70: - | BO70: Improved
A71: Report | B71: Huntingdonshire Regional College | C71: 130612 | D71: General Further Education/Tertiary College | E71: East of England | F71: Cambridgeshire | G71: Further Education | H71: FE College - requires improvement | I71: 430273 | J71: 2014-11-17 | K71: 2014-11-21 | L71: Published | M71: 2014-12-17 | N71: 409318 | O71: 2013-06-07 | P71: 3 | Q71: 3 | R71: - | S71: - | T71: - | U71: 3 | V71: 3 | W71: 3 | X71: - | Y71: - | Z71: - | AA71: 3 | AB71: - | AC71: - | AD71: - | AE71: 3 | AF71: 2 | AG71: 3 | AH71: - | AI71: - | AJ71: - | AK71: 3 | AL71: - | AM71: - | AN71: - | AO71: 3 | AP71: 3 | AQ71: 3 | AR71: - | AS71: - | AT71: - | AU71: 3 | AV71: - | AW71: - | AX71: - | AY71: 3 | AZ71: 3 | BA71: 3 | BB71: - | BC71: - | BD71: - | BE71: 2 | BF71: - | BG71: - | BH71: - | BI71: 2 | BJ71: 2 | BK71: 2 | BL71: - | BM71: - | BN71: - | BO71: Same
A72: Report | B72: Barnfield College | C72: 130599 | D72: General Further Education/Tertiary College | E72: East of England | F72: Luton | G72: Further Education | H72: FE College - full inspection | I72: 447145 | J72: 2014-11-17 | K72: 2014-11-21 | L72: Published | M72: 2015-01-08 | N72: 388000 | O72: 2012-04-27 | P72: 3 | Q72: 4 | R72: - | S72: - | T72: - | U72: 4 | V72: 4 | W72: - | X72: - | Y72: - | Z72: - | AA72: 4 | AB72: - | AC72: - | AD72: - | AE72: 4 | AF72: 4 | AG72: - | AH72: - | AI72: - | AJ72: - | AK72: 4 | AL72: - | AM72: - | AN72: - | AO72: 4 | AP72: 4 | AQ72: - | AR72: - | AS72: - | AT72: - | AU72: 4 | AV72: - | AW72: - | AX72: - | AY72: 4 | AZ72: 4 | BA72: - | BB72: - | BC72: - | BD72: - | BE72: 3 | BF72: - | BG72: - | BH72: - | BI72: 3 | BJ72: 3 | BK72: - | BL72: - | BM72: - | BN72: - | BO72: Declined
A73: Report | B73: South Gloucestershire and Stroud College | C73: 139238 | D73: General Further Education/Tertiary College | E73: South West | F73: South Gloucestershire | G73: Further Education | H73: FE College - full inspection | I73: 452493 | J73: 2014-11-17 | K73: 2014-11-21 | L73: Published | M73: 2014-12-23 | N73: NULL | O73: NULL | P73: NULL | Q73: 2 | R73: 2 | S73: - | T73: - | U73: 2 | V73: 2 | W73: 2 | X73: 2 | Y73: - | Z73: 1 | AA73: 2 | AB73: 2 | AC73: - | AD73: - | AE73: 2 | AF73: 2 | AG73: 2 | AH73: 2 | AI73: - | AJ73: 1 | AK73: 2 | AL73: 2 | AM73: - | AN73: - | AO73: 2 | AP73: 2 | AQ73: 2 | AR73: 2 | AS73: - | AT73: 1 | AU73: 1 | AV73: 1 | AW73: - | AX73: - | AY73: 1 | AZ73: 1 | BA73: 1 | BB73: 1 | BC73: - | BD73: 1 | BE73: 2 | BF73: 2 | BG73: - | BH73: - | BI73: 2 | BJ73: 2 | BK73: 2 | BL73: 2 | BM73: - | BN73: 2 | BO73: No previous inspection
A74: Report | B74: Roots and Shoots | C74: 54175 | D74: Community Learning and Skills | E74: London | F74: Lambeth | G74: ACL Voluntary organisation | H74: WBL - full (regional) | I74: 434051 | J74: 2014-11-24 | K74: 2014-11-27 | L74: Published | M74: 2015-01-15 | N74: 376248 | O74: 2011-12-01 | P74: 1 | Q74: 2 | R74: - | S74: - | T74: - | U74: 2 | V74: - | W74: - | X74: - | Y74: - | Z74: - | AA74: 2 | AB74: - | AC74: - | AD74: - | AE74: 2 | AF74: - | AG74: - | AH74: - | AI74: - | AJ74: - | AK74: 2 | AL74: - | AM74: - | AN74: - | AO74: 2 | AP74: - | AQ74: - | AR74: - | AS74: - | AT74: - | AU74: 2 | AV74: - | AW74: - | AX74: - | AY74: 2 | AZ74: - | BA74: - | BB74: - | BC74: - | BD74: - | BE74: 2 | BF74: - | BG74: - | BH74: - | BI74: 2 | BJ74: - | BK74: - | BL74: - | BM74: - | BN74: - | BO74: Declined
A75: Report | B75: Economic Solutions Limited (Manchester Solutions) | C75: 53233 | D75: Independent Learning Provider | E75: North West | F75: Manchester | G75: Independent Learning Provider | H75: Work Based Learning - full (national) | I75: 443658 | J75: 2014-11-24 | K75: 2014-11-28 | L75: Published | M75: 2014-12-24 | N75: 388120 | O75: 2012-06-29 | P75: 2 | Q75: 3 | R75: - | S75: - | T75: 3 | U75: 3 | V75: 3 | W75: 3 | X75: - | Y75: - | Z75: - | AA75: 3 | AB75: - | AC75: - | AD75: 3 | AE75: 3 | AF75: 3 | AG75: 3 | AH75: - | AI75: - | AJ75: - | AK75: 3 | AL75: - | AM75: - | AN75: 3 | AO75: 3 | AP75: 3 | AQ75: 3 | AR75: - | AS75: - | AT75: - | AU75: 3 | AV75: - | AW75: - | AX75: 3 | AY75: 3 | AZ75: 3 | BA75: 3 | BB75: - | BC75: - | BD75: - | BE75: 2 | BF75: - | BG75: - | BH75: 2 | BI75: 2 | BJ75: 2 | BK75: 2 | BL75: - | BM75: - | BN75: - | BO75: Declined
A76: Report | B76: Sunderland City Metropolitan Borough Council | C76: 54666 | D76: Community Learning and Skills | E76: North East, Yorkshire & Humber | F76: Sunderland | G76: ACL Local Authority | H76: Adult and Community - full (regional) | I76: 446667 | J76: 2014-11-24 | K76: 2014-11-28 | L76: Published | M76: 2014-12-24 | N76: 320960 | O76: 2008-11-28 | P76: 2 | Q76: 2 | R76: - | S76: - | T76: - | U76: - | V76: 2 | W76: 2 | X76: 2 | Y76: - | Z76: 2 | AA76: 2 | AB76: - | AC76: - | AD76: - | AE76: - | AF76: 2 | AG76: 2 | AH76: 2 | AI76: - | AJ76: 2 | AK76: 2 | AL76: - | AM76: - | AN76: - | AO76: - | AP76: 2 | AQ76: 2 | AR76: 2 | AS76: - | AT76: 2 | AU76: 2 | AV76: - | AW76: - | AX76: - | AY76: - | AZ76: 2 | BA76: 2 | BB76: 2 | BC76: - | BD76: 2 | BE76: 2 | BF76: - | BG76: - | BH76: - | BI76: - | BJ76: 2 | BK76: 2 | BL76: 2 | BM76: - | BN76: 2 | BO76: Same
A77: Report | B77: South Leicestershire College | C77: 130750 | D77: General Further Education/Tertiary College | E77: East Midlands | F77: Leicestershire | G77: Further Education | H77: FE College - requires improvement | I77: 430277 | J77: 2014-11-24 | K77: 2014-11-28 | L77: Published | M77: 2015-01-07 | N77: 410617 | O77: 2013-06-14 | P77: 3 | Q77: 2 | R77: - | S77: - | T77: - | U77: 2 | V77: 2 | W77: 2 | X77: - | Y77: - | Z77: - | AA77: 2 | AB77: - | AC77: - | AD77: - | AE77: 2 | AF77: 2 | AG77: 2 | AH77: - | AI77: - | AJ77: - | AK77: 2 | AL77: - | AM77: - | AN77: - | AO77: 2 | AP77: 2 | AQ77: 2 | AR77: - | AS77: - | AT77: - | AU77: 2 | AV77: - | AW77: - | AX77: - | AY77: 2 | AZ77: 2 | BA77: 2 | BB77: - | BC77: - | BD77: - | BE77: 2 | BF77: - | BG77: - | BH77: - | BI77: 2 | BJ77: 2 | BK77: 2 | BL77: - | BM77: - | BN77: - | BO77: Improved
A78: Report | B78: Barford Education and Training (North East) Limited | C78: 55459 | D78: Independent Learning Provider | E78: East of England | F78: Essex | G78: Independent Learning Provider | H78: WBL - requires improvement | I78: 430250 | J78: 2014-11-24 | K78: 2014-11-28 | L78: Published | M78: 2015-01-07 | N78: 423508 | O78: 2013-06-07 | P78: 3 | Q78: 4 | R78: - | S78: - | T78: - | U78: - | V78: - | W78: 4 | X78: - | Y78: - | Z78: 4 | AA78: 4 | AB78: - | AC78: - | AD78: - | AE78: - | AF78: - | AG78: 4 | AH78: - | AI78: - | AJ78: 4 | AK78: 4 | AL78: - | AM78: - | AN78: - | AO78: - | AP78: - | AQ78: 4 | AR78: - | AS78: - | AT78: 4 | AU78: 4 | AV78: - | AW78: - | AX78: - | AY78: - | AZ78: - | BA78: 4 | BB78: - | BC78: - | BD78: 4 | BE78: 2 | BF78: - | BG78: - | BH78: - | BI78: - | BJ78: - | BK78: 2 | BL78: - | BM78: - | BN78: 2 | BO78: Declined
A79: Report | B79: London Learning Consortium Community Interest Company | C79: 58611 | D79: Community Learning and Skills | E79: London | F79: Croydon | G79: ACL Voluntary organisation | H79: WBL - requires improvement | I79: 430254 | J79: 2014-11-24 | K79: 2014-11-28 | L79: Published | M79: 2015-01-13 | N79: 399131 | O79: 2013-06-28 | P79: 3 | Q79: 2 | R79: - | S79: - | T79: - | U79: - | V79: 2 | W79: 2 | X79: - | Y79: - | Z79: - | AA79: 2 | AB79: - | AC79: - | AD79: - | AE79: - | AF79: 2 | AG79: 2 | AH79: - | AI79: - | AJ79: - | AK79: 2 | AL79: - | AM79: - | AN79: - | AO79: - | AP79: 2 | AQ79: 2 | AR79: - | AS79: - | AT79: - | AU79: 2 | AV79: - | AW79: - | AX79: - | AY79: - | AZ79: 2 | BA79: 2 | BB79: - | BC79: - | BD79: - | BE79: 2 | BF79: - | BG79: - | BH79: - | BI79: - | BJ79: 2 | BK79: 2 | BL79: - | BM79: - | BN79: - | BO79: Improved
A80: Report | B80: Alpha Building Services Engineering Ltd | C80: 59178 | D80: Independent Learning Provider | E80: London | F80: Newham | G80: Independent Learning Provider | H80: WBL - full (regional) | I80: 446621 | J80: 2014-11-24 | K80: 2014-11-28 | L80: Published | M80: 2015-02-18 | N80: NULL | O80: NULL | P80: NULL | Q80: 4 | R80: - | S80: - | T80: - | U80: - | V80: - | W80: 4 | X80: - | Y80: - | Z80: - | AA80: 4 | AB80: - | AC80: - | AD80: - | AE80: - | AF80: - | AG80: 4 | AH80: - | AI80: - | AJ80: - | AK80: 4 | AL80: - | AM80: - | AN80: - | AO80: - | AP80: - | AQ80: 4 | AR80: - | AS80: - | AT80: - | AU80: 4 | AV80: - | AW80: - | AX80: - | AY80: - | AZ80: - | BA80: 4 | BB80: - | BC80: - | BD80: - | BE80: 3 | BF80: - | BG80: - | BH80: - | BI80: - | BJ80: - | BK80: 3 | BL80: - | BM80: - | BN80: - | BO80: No previous inspection
A81: Report | B81: Rocket Training Limited | C81: 54158 | D81: Independent Learning Provider | E81: North West | F81: Liverpool | G81: Independent Learning Provider | H81: WBL - requires improvement | I81: 446603 | J81: 2014-11-24 | K81: 2014-11-28 | L81: Published | M81: 2014-12-24 | N81: 410691 | O81: 2013-06-28 | P81: 3 | Q81: 3 | R81: - | S81: - | T81: - | U81: 2 | V81: - | W81: 3 | X81: - | Y81: - | Z81: - | AA81: 3 | AB81: - | AC81: - | AD81: - | AE81: 2 | AF81: - | AG81: 3 | AH81: - | AI81: - | AJ81: - | AK81: 3 | AL81: - | AM81: - | AN81: - | AO81: 2 | AP81: - | AQ81: 3 | AR81: - | AS81: - | AT81: - | AU81: 3 | AV81: - | AW81: - | AX81: - | AY81: 2 | AZ81: - | BA81: 3 | BB81: - | BC81: - | BD81: - | BE81: 2 | BF81: - | BG81: - | BH81: - | BI81: 2 | BJ81: - | BK81: 2 | BL81: - | BM81: - | BN81: - | BO81: Same
A82: Report | B82: Brinsworth Training Limited | C82: 58933 | D82: Independent Learning Provider | E82: North East, Yorkshire & Humber | F82: Rotherham | G82: Independent Learning Provider | H82: WBL - full (regional) | I82: 454945 | J82: 2014-11-25 | K82: 2014-11-28 | L82: Published | M82: 2014-12-24 | N82: 376231 | O82: 2011-10-28 | P82: 2 | Q82: 3 | R82: - | S82: - | T82: - | U82: - | V82: - | W82: 3 | X82: - | Y82: - | Z82: - | AA82: 3 | AB82: - | AC82: - | AD82: - | AE82: - | AF82: - | AG82: 3 | AH82: - | AI82: - | AJ82: - | AK82: 3 | AL82: - | AM82: - | AN82: - | AO82: - | AP82: - | AQ82: 3 | AR82: - | AS82: - | AT82: - | AU82: 3 | AV82: - | AW82: - | AX82: - | AY82: - | AZ82: - | BA82: 3 | BB82: - | BC82: - | BD82: - | BE82: 2 | BF82: - | BG82: - | BH82: - | BI82: - | BJ82: - | BK82: 2 | BL82: - | BM82: - | BN82: - | BO82: Declined
A83: Report | B83: Sheiling College | C83: 139249 | D83: Independent Specialist College | E83: South West | F83: Dorset | G83: Special College | H83: ISC - full inspection | I83: 451325 | J83: 2014-12-02 | K83: 2014-12-03 | L83: Published | M83: 2015-01-12 | N83: NULL | O83: NULL | P83: NULL | Q83: 2 | R83: - | S83: - | T83: - | U83: - | V83: 2 | W83: - | X83: - | Y83: - | Z83: - | AA83: 2 | AB83: - | AC83: - | AD83: - | AE83: - | AF83: 2 | AG83: - | AH83: - | AI83: - | AJ83: - | AK83: 2 | AL83: - | AM83: - | AN83: - | AO83: - | AP83: 2 | AQ83: - | AR83: - | AS83: - | AT83: - | AU83: 2 | AV83: - | AW83: - | AX83: - | AY83: - | AZ83: 2 | BA83: - | BB83: - | BC83: - | BD83: - | BE83: 2 | BF83: - | BG83: - | BH83: - | BI83: - | BJ83: 2 | BK83: - | BL83: - | BM83: - | BN83: - | BO83: No previous inspection
A84: Report | B84: Strategic Training Solutions (Mansfield) Limited | C84: 54643 | D84: Independent Learning Provider | E84: East Midlands | F84: Nottinghamshire | G84: Independent Learning Provider | H84: WBL - requires improvement | I84: 430260 | J84: 2014-12-02 | K84: 2014-12-04 | L84: Published | M84: 2015-01-13 | N84: 408544 | O84: 2013-06-27 | P84: 3 | Q84: 3 | R84: - | S84: - | T84: - | U84: 3 | V84: - | W84: - | X84: - | Y84: - | Z84: - | AA84: 3 | AB84: - | AC84: - | AD84: - | AE84: 3 | AF84: - | AG84: - | AH84: - | AI84: - | AJ84: - | AK84: 3 | AL84: - | AM84: - | AN84: - | AO84: 3 | AP84: - | AQ84: - | AR84: - | AS84: - | AT84: - | AU84: 3 | AV84: - | AW84: - | AX84: - | AY84: 3 | AZ84: - | BA84: - | BB84: - | BC84: - | BD84: - | BE84: 2 | BF84: - | BG84: - | BH84: - | BI84: 2 | BJ84: - | BK84: - | BL84: - | BM84: - | BN84: - | BO84: Same
A85: Report | B85: Venture Learning Limited | C85: 55208 | D85: Independent Learning Provider | E85: North West | F85: Wigan | G85: Independent Learning Provider | H85: WBL - full (regional) | I85: 429009 | J85: 2014-12-01 | K85: 2014-12-04 | L85: Published | M85: 2015-01-21 | N85: 330959 | O85: 2009-01-16 | P85: 1 | Q85: 4 | R85: - | S85: - | T85: - | U85: - | V85: - | W85: 4 | X85: - | Y85: - | Z85: - | AA85: 4 | AB85: - | AC85: - | AD85: - | AE85: - | AF85: - | AG85: 4 | AH85: - | AI85: - | AJ85: - | AK85: 4 | AL85: - | AM85: - | AN85: - | AO85: - | AP85: - | AQ85: 4 | AR85: - | AS85: - | AT85: - | AU85: 4 | AV85: - | AW85: - | AX85: - | AY85: - | AZ85: - | BA85: 4 | BB85: - | BC85: - | BD85: - | BE85: 4 | BF85: - | BG85: - | BH85: - | BI85: - | BJ85: - | BK85: 4 | BL85: - | BM85: - | BN85: - | BO85: Declined
A86: Report | B86: Hounslow Adult and Community Education | C86: 53132 | D86: Community Learning and Skills | E86: London | F86: Hounslow | G86: ACL Local Authority | H86: Adult and Community - full (regional) | I86: 446662 | J86: 2014-12-01 | K86: 2014-12-05 | L86: Published | M86: 2015-01-14 | N86: 329193 | O86: 2008-12-05 | P86: 2 | Q86: 2 | R86: - | S86: - | T86: - | U86: - | V86: 2 | W86: - | X86: 2 | Y86: - | Z86: - | AA86: 2 | AB86: - | AC86: - | AD86: - | AE86: - | AF86: 2 | AG86: - | AH86: 2 | AI86: - | AJ86: - | AK86: 2 | AL86: - | AM86: - | AN86: - | AO86: - | AP86: 2 | AQ86: - | AR86: 2 | AS86: - | AT86: - | AU86: 2 | AV86: - | AW86: - | AX86: - | AY86: - | AZ86: 2 | BA86: - | BB86: 2 | BC86: - | BD86: - | BE86: 2 | BF86: - | BG86: - | BH86: - | BI86: - | BJ86: 2 | BK86: - | BL86: 2 | BM86: - | BN86: - | BO86: Same
A87: Report | B87: Expedient Training Services Limited | C87: 51800 | D87: Independent Learning Provider | E87: North East, Yorkshire & Humber | F87: South Tyneside | G87: Independent Learning Provider | H87: WBL - requires improvement | I87: 430253 | J87: 2014-12-02 | K87: 2014-12-05 | L87: Published | M87: 2015-01-07 | N87: 408494 | O87: 2013-06-14 | P87: 3 | Q87: 3 | R87: - | S87: - | T87: - | U87: - | V87: - | W87: 3 | X87: - | Y87: - | Z87: - | AA87: 2 | AB87: - | AC87: - | AD87: - | AE87: - | AF87: - | AG87: 2 | AH87: - | AI87: - | AJ87: - | AK87: 2 | AL87: - | AM87: - | AN87: - | AO87: - | AP87: - | AQ87: 2 | AR87: - | AS87: - | AT87: - | AU87: 3 | AV87: - | AW87: - | AX87: - | AY87: - | AZ87: - | BA87: 3 | BB87: - | BC87: - | BD87: - | BE87: 2 | BF87: - | BG87: - | BH87: - | BI87: - | BJ87: - | BK87: 2 | BL87: - | BM87: - | BN87: - | BO87: Same
A88: Report | B88: Options 2 Workplace Learning Ltd | C88: 58938 | D88: Independent Learning Provider | E88: East Midlands | F88: Northamptonshire | G88: Independent Learning Provider | H88: WBL - full (regional) | I88: 452625 | J88: 2014-12-02 | K88: 2014-12-05 | L88: Published | M88: 2015-01-08 | N88: NULL | O88: NULL | P88: NULL | Q88: 3 | R88: - | S88: - | T88: - | U88: - | V88: - | W88: 3 | X88: - | Y88: - | Z88: - | AA88: 3 | AB88: - | AC88: - | AD88: - | AE88: - | AF88: - | AG88: 3 | AH88: - | AI88: - | AJ88: - | AK88: 3 | AL88: - | AM88: - | AN88: - | AO88: - | AP88: - | AQ88: 3 | AR88: - | AS88: - | AT88: - | AU88: 3 | AV88: - | AW88: - | AX88: - | AY88: - | AZ88: - | BA88: 3 | BB88: - | BC88: - | BD88: - | BE88: 2 | BF88: - | BG88: - | BH88: - | BI88: - | BJ88: - | BK88: 2 | BL88: - | BM88: - | BN88: - | BO88: No previous inspection
A89: Report | B89: Four Counties Training Limited | C89: 51893 | D89: Independent Learning Provider | E89: London | F89: Ealing | G89: Independent Learning Provider | H89: Work Based Learning - full (national) | I89: 446601 | J89: 2014-12-01 | K89: 2014-12-05 | L89: Published | M89: 2015-01-21 | N89: 321281 | O89: 2008-02-08 | P89: 1 | Q89: 4 | R89: - | S89: - | T89: - | U89: - | V89: 4 | W89: 4 | X89: - | Y89: - | Z89: - | AA89: 4 | AB89: - | AC89: - | AD89: - | AE89: - | AF89: 4 | AG89: 4 | AH89: - | AI89: - | AJ89: - | AK89: 4 | AL89: - | AM89: - | AN89: - | AO89: - | AP89: 4 | AQ89: 4 | AR89: - | AS89: - | AT89: - | AU89: 4 | AV89: - | AW89: - | AX89: - | AY89: - | AZ89: 4 | BA89: 4 | BB89: - | BC89: - | BD89: - | BE89: 3 | BF89: - | BG89: - | BH89: - | BI89: - | BJ89: 3 | BK89: 3 | BL89: - | BM89: - | BN89: - | BO89: Declined
A90: Report | B90: Mainstream Training Limited | C90: 58362 | D90: Independent Learning Provider | E90: South East | F90: Kent | G90: Independent Learning Provider | H90: Work Based Learning - full (national) | I90: 446612 | J90: 2014-12-01 | K90: 2014-12-05 | L90: Published | M90: 2015-01-15 | N90: 330084 | O90: 2008-12-11 | P90: 2 | Q90: 2 | R90: - | S90: - | T90: - | U90: - | V90: - | W90: 2 | X90: - | Y90: - | Z90: 2 | AA90: 2 | AB90: - | AC90: - | AD90: - | AE90: - | AF90: - | AG90: 2 | AH90: - | AI90: - | AJ90: 2 | AK90: 2 | AL90: - | AM90: - | AN90: - | AO90: - | AP90: - | AQ90: 2 | AR90: - | AS90: - | AT90: 2 | AU90: 2 | AV90: - | AW90: - | AX90: - | AY90: - | AZ90: - | BA90: 2 | BB90: - | BC90: - | BD90: 2 | BE90: 2 | BF90: - | BG90: - | BH90: - | BI90: - | BJ90: - | BK90: 2 | BL90: - | BM90: - | BN90: 2 | BO90: Same
A91: =IF(C91 <> "", HYPERLINK(CONCATENATE("http://reports.ofsted.gov.uk/inspection-reports/find-inspection-report/provider/ELS/",C91),"Report"),"") -> Report | B91: Lowestoft College | C91: 130819 | D91: General Further Education/Tertiary College | E91: East of England | F91: Suffolk | G91: Further Education | H91: FE College - requires improvement | I91: 430274 | J91: 2014-12-02 | K91: 2014-12-05 | L91: Published | M91: 2015-01-14 | N91: 409321 | O91: 2013-06-14 | P91: 3 | Q91: 3 | R91: - | S91: - | T91: - | U91: 3 | V91: 3 | W91: 2 | X91: - | Y91: - | Z91: - | AA91: 3 | AB91: - | AC91: - | AD91: - | AE91: 3 | AF91: 3 | AG91: 2 | AH91: - | AI91: - | AJ91: - | AK91: 3 | AL91: - | AM91: - | AN91: - | AO91: 3 | AP91: 3 | AQ91: 2 | AR91: - | AS91: - | AT91: - | AU91: 3 | AV91: - | AW91: - | AX91: - | AY91: 3 | AZ91: 3 | BA91: 2 | BB91: - | BC91: - | BD91: - | BE91: 2 | BF91: - | BG91: - | BH91: - | BI91: 2 | BJ91: 2 | BK91: 2 | BL91: - | BM91: - | BN91: - | BO91: =IF(P91="Null","No previous inspection",IF(Q91>P91,"Declined", IF(Q91=P91,"Same",IF(Q91<P91,"Improved")))) -> Same
A92: Report | B92: New College Swindon | C92: 130851 | D92: General Further Education/Tertiary College | E92: South West | F92: Swindon | G92: Further Education | H92: FE College - full inspection | I92: 446541 | J92: 2014-12-01 | K92: 2014-12-05 | L92: Published | M92: 2015-01-14 | N92: 332873 | O92: 2009-01-23 | P92: 2 | Q92: 2 | R92: - | S92: - | T92: - | U92: 2 | V92: 2 | W92: 1 | X92: - | Y92: - | Z92: - | AA92: 2 | AB92: - | AC92: - | AD92: - | AE92: 2 | AF92: 2 | AG92: 1 | AH92: - | AI92: - | AJ92: - | AK92: 2 | AL92: - | AM92: - | AN92: - | AO92: 2 | AP92: 2 | AQ92: 1 | AR92: - | AS92: - | AT92: - | AU92: 2 | AV92: - | AW92: - | AX92: - | AY92: 2 | AZ92: 2 | BA92: 1 | BB92: - | BC92: - | BD92: - | BE92: 2 | BF92: - | BG92: - | BH92: - | BI92: 2 | BJ92: 2 | BK92: 2 | BL92: - | BM92: - | BN92: - | BO92: Same
A93: Report | B93: Worcestershire County Council | C93: 55422 | D93: Community Learning and Skills | E93: West Midlands | F93: Worcestershire | G93: ACL Local Authority | H93: Adult and Community - full (regional) | I93: 451949 | J93: 2014-12-02 | K93: 2014-12-05 | L93: Published | M93: 2015-01-07 | N93: 375496 | O93: 2011-11-18 | P93: 2 | Q93: 3 | R93: - | S93: - | T93: 3 | U93: 4 | V93: 2 | W93: - | X93: 2 | Y93: - | Z93: - | AA93: 3 | AB93: - | AC93: - | AD93: 3 | AE93: 4 | AF93: 3 | AG93: - | AH93: 2 | AI93: - | AJ93: - | AK93: 3 | AL93: - | AM93: - | AN93: 3 | AO93: 3 | AP93: 2 | AQ93: - | AR93: 2 | AS93: - | AT93: - | AU93: 3 | AV93: - | AW93: - | AX93: 3 | AY93: 4 | AZ93: 2 | BA93: - | BB93: 2 | BC93: - | BD93: - | BE93: 2 | BF93: - | BG93: - | BH93: 2 | BI93: 2 | BJ93: 2 | BK93: - | BL93: 2 | BM93: - | BN93: - | BO93: Declined
A94: Report | B94: The Academy Hair & Beauty Ltd | C94: 54803 | D94: Independent Learning Provider | E94: North East, Yorkshire & Humber | F94: North Yorkshire | G94: Independent Learning Provider | H94: WBL - full (regional) | I94: 452617 | J94: 2014-12-09 | K94: 2014-12-11 | L94: Published | M94: 2015-01-16 | N94: 318271 | O94: 2008-01-16 | P94: 1 | Q94: 1 | R94: - | S94: - | T94: - | U94: - | V94: - | W94: 1 | X94: - | Y94: - | Z94: - | AA94: 1 | AB94: - | AC94: - | AD94: - | AE94: - | AF94: - | AG94: 1 | AH94: - | AI94: - | AJ94: - | AK94: 1 | AL94: - | AM94: - | AN94: - | AO94: - | AP94: - | AQ94: 1 | AR94: - | AS94: - | AT94: - | AU94: 1 | AV94: - | AW94: - | AX94: - | AY94: - | AZ94: - | BA94: 1 | BB94: - | BC94: - | BD94: - | BE94: 1 | BF94: - | BG94: - | BH94: - | BI94: - | BJ94: - | BK94: 1 | BL94: - | BM94: - | BN94: - | BO94: Same
A95: Report | B95: Ministry of Defence (RAF) | C95: 54191 | D95: Employer | E95: South West | F95: Gloucestershire | G95: Employer | H95: Work Based Learning - full (national) | I95: 446605 | J95: 2014-12-08 | K95: 2014-12-12 | L95: Published | M95: 2015-01-21 | N95: 330030 | O95: 2009-01-16 | P95: 2 | Q95: 1 | R95: - | S95: - | T95: - | U95: - | V95: - | W95: 1 | X95: - | Y95: - | Z95: - | AA95: 1 | AB95: - | AC95: - | AD95: - | AE95: - | AF95: - | AG95: 1 | AH95: - | AI95: - | AJ95: - | AK95: 1 | AL95: - | AM95: - | AN95: - | AO95: - | AP95: - | AQ95: 1 | AR95: - | AS95: - | AT95: - | AU95: 1 | AV95: - | AW95: - | AX95: - | AY95: - | AZ95: - | BA95: 1 | BB95: - | BC95: - | BD95: - | BE95: 2 | BF95: - | BG95: - | BH95: - | BI95: - | BJ95: - | BK95: 2 | BL95: - | BM95: - | BN95: - | BO95: Improved
A96: Report | B96: Wandsworth London Borough Council | C96: 53152 | D96: Community Learning and Skills | E96: London | F96: Wandsworth | G96: ACL Local Authority | H96: Adult and Community - full (regional) | I96: 446663 | J96: 2014-12-08 | K96: 2014-12-12 | L96: Published | M96: 2015-01-21 | N96: 345790 | O96: 2010-04-30 | P96: 2 | Q96: 4 | R96: - | S96: - | T96: - | U96: - | V96: - | W96: 4 | X96: 4 | Y96: - | Z96: - | AA96: 3 | AB96: - | AC96: - | AD96: - | AE96: - | AF96: - | AG96: 3 | AH96: 2 | AI96: - | AJ96: - | AK96: 3 | AL96: - | AM96: - | AN96: - | AO96: - | AP96: - | AQ96: 3 | AR96: 2 | AS96: - | AT96: - | AU96: 4 | AV96: - | AW96: - | AX96: - | AY96: - | AZ96: - | BA96: 4 | BB96: 4 | BC96: - | BD96: - | BE96: 4 | BF96: - | BG96: - | BH96: - | BI96: - | BJ96: - | BK96: 4 | BL96: 4 | BM96: - | BN96: - | BO96: Declined
A97: Report | B97: Lambeth College | C97: 130413 | D97: General Further Education/Tertiary College | E97: London | F97: Lambeth | G97: Further Education | H97: FE College - requires improvement | I97: 429287 | J97: 2014-12-08 | K97: 2014-12-12 | L97: Published | M97: 2015-01-23 | N97: 397442 | O97: 2013-03-22 | P97: 3 | Q97: 3 | R97: - | S97: - | T97: - | U97: 3 | V97: 3 | W97: - | X97: - | Y97: - | Z97: - | AA97: 4 | AB97: - | AC97: - | AD97: - | AE97: 4 | AF97: 4 | AG97: - | AH97: - | AI97: - | AJ97: - | AK97: 3 | AL97: - | AM97: - | AN97: - | AO97: 3 | AP97: 3 | AQ97: - | AR97: - | AS97: - | AT97: - | AU97: 3 | AV97: - | AW97: - | AX97: - | AY97: 3 | AZ97: 3 | BA97: - | BB97: - | BC97: - | BD97: - | BE97: 2 | BF97: - | BG97: - | BH97: - | BI97: 2 | BJ97: 2 | BK97: - | BL97: - | BM97: - | BN97: - | BO97: Same
A98: Report | B98: Wolverhampton Adult Education Service | C98: 55413 | D98: Community Learning and Skills | E98: West Midlands | F98: Wolverhampton | G98: ACL Local Authority | H98: Adult and Community - full (regional) | I98: 446669 | J98: 2014-12-08 | K98: 2014-12-12 | L98: Published | M98: 2015-01-15 | N98: 331468 | O98: 2009-01-23 | P98: 2 | Q98: 1 | R98: - | S98: - | T98: - | U98: 1 | V98: 1 | W98: - | X98: 1 | Y98: - | Z98: 1 | AA98: 1 | AB98: - | AC98: - | AD98: - | AE98: 1 | AF98: 1 | AG98: - | AH98: 1 | AI98: - | AJ98: 1 | AK98: 1 | AL98: - | AM98: - | AN98: - | AO98: 1 | AP98: 1 | AQ98: - | AR98: 1 | AS98: - | AT98: 1 | AU98: 1 | AV98: - | AW98: - | AX98: - | AY98: 1 | AZ98: 1 | BA98: - | BB98: 1 | BC98: - | BD98: 1 | BE98: 2 | BF98: - | BG98: - | BH98: - | BI98: 2 | BJ98: 2 | BK98: - | BL98: 2 | BM98: - | BN98: 2 | BO98: Improved
A99: Report | B99: Stockport College | C99: 130512 | D99: General Further Education/Tertiary College | E99: North West | F99: Stockport | G99: Further Education | H99: FE College - reinspection | I99: 433764 | J99: 2014-12-08 | K99: 2014-12-12 | L99: Published | M99: 2015-01-15 | N99: 427743 | O99: 2013-10-04 | P99: 4 | Q99: 3 | R99: 3 | S99: - | T99: - | U99: 3 | V99: 3 | W99: 3 | X99: - | Y99: - | Z99: 3 | AA99: 3 | AB99: 3 | AC99: - | AD99: - | AE99: 3 | AF99: 3 | AG99: 3 | AH99: - | AI99: - | AJ99: 3 | AK99: 3 | AL99: 3 | AM99: - | AN99: - | AO99: 3 | AP99: 3 | AQ99: 3 | AR99: - | AS99: - | AT99: 3 | AU99: 3 | AV99: 3 | AW99: - | AX99: - | AY99: 3 | AZ99: 3 | BA99: 3 | BB99: - | BC99: - | BD99: 3 | BE99: 2 | BF99: 2 | BG99: - | BH99: - | BI99: 2 | BJ99: 2 | BK99: 2 | BL99: - | BM99: - | BN99: 2 | BO99: Improved
A100: =IF(C100 <> "", HYPERLINK(CONCATENATE("http://reports.ofsted.gov.uk/inspection-reports/find-inspection-report/provider/ELS/",C100),"Report"),"") -> Report | B100: Targeted Training Projects Limited | C100: 54744 | D100: Independent Learning Provider | E100: West Midlands | F100: Dudley | G100: Independent Learning Provider | H100: WBL - full (regional) | I100: 446606 | J100: 2014-12-08 | K100: 2014-12-12 | L100: Published | M100: 2015-01-27 | N100: 307075 | O100: 2006-07-21 | P100: 3 | Q100: 4 | R100: - | S100: - | T100: - | U100: - | V100: - | W100: 4 | X100: - | Y100: - | Z100: - | AA100: 4 | AB100: - | AC100: - | AD100: - | AE100: - | AF100: - | AG100: 4 | AH100: - | AI100: - | AJ100: - | AK100: 4 | AL100: - | AM100: - | AN100: - | AO100: - | AP100: - | AQ100: 4 | AR100: - | AS100: - | AT100: - | AU100: 4 | AV100: - | AW100: - | AX100: - | AY100: - | AZ100: - | BA100: 4 | BB100: - | BC100: - | BD100: - | BE100: 4 | BF100: - | BG100: - | BH100: - | BI100: - | BJ100: - | BK100: 4 | BL100: - | BM100: - | BN100: - | BO100: =IF(P100="Null","No previous inspection",IF(Q100>P100,"Declined", IF(Q100=P100,"Same",IF(Q100<P100,"Improved")))) -> Declined
A101: Report | B101: East Surrey College | C101: 130824 | D101: General Further Education/Tertiary College | E101: South East | F101: Surrey | G101: Further Education | H101: FE College - full inspection | I101: 446540 | J101: 2014-12-09 | K101: 2014-12-12 | L101: Published | M101: 2015-01-21 | N101: 329158 | O101: 2009-01-16 | P101: 2 | Q101: 2 | R101: 1 | S101: - | T101: 2 | U101: 2 | V101: 2 | W101: 3 | X101: - | Y101: - | Z101: - | AA101: 2 | AB101: 1 | AC101: - | AD101: 2 | AE101: 2 | AF101: 2 | AG101: 3 | AH101: - | AI101: - | AJ101: - | AK101: 2 | AL101: 2 | AM101: - | AN101: 2 | AO101: 2 | AP101: 2 | AQ101: 3 | AR101: - | AS101: - | AT101: - | AU101: 2 | AV101: 1 | AW101: - | AX101: 2 | AY101: 2 | AZ101: 2 | BA101: 2 | BB101: - | BC101: - | BD101: - | BE101: 2 | BF101: 2 | BG101: - | BH101: 2 | BI101: 2 | BJ101: 2 | BK101: 2 | BL101: - | BM101: - | BN101: - | BO101: Same
A102: Report | B102: SBC Training Limited | C102: 54277 | D102: Independent Learning Provider | E102: West Midlands | F102: Shropshire | G102: Independent Learning Provider | H102: Work Based Learning - full (national) | I102: 446604 | J102: 2014-12-08 | K102: 2014-12-12 | L102: Published | M102: 2015-01-16 | N102: 345866 | O102: 2010-07-09 | P102: 2 | Q102: 3 | R102: - | S102: - | T102: 2 | U102: - | V102: - | W102: 3 | X102: - | Y102: - | Z102: - | AA102: 3 | AB102: - | AC102: - | AD102: 2 | AE102: - | AF102: - | AG102: 3 | AH102: - | AI102: - | AJ102: - | AK102: 3 | AL102: - | AM102: - | AN102: 2 | AO102: - | AP102: - | AQ102: 3 | AR102: - | AS102: - | AT102: - | AU102: 3 | AV102: - | AW102: - | AX102: 2 | AY102: - | AZ102: - | BA102: 3 | BB102: - | BC102: - | BD102: - | BE102: 2 | BF102: - | BG102: - | BH102: 2 | BI102: - | BJ102: - | BK102: 2 | BL102: - | BM102: - | BN102: - | BO102: Declined
A103: Report | B103: Chamber Training (Humber) Limited | C103: 51104 | D103: Independent Learning Provider | E103: North East, Yorkshire & Humber | F103: Kingston upon Hull City of | G103: Independent Learning Provider | H103: WBL - requires improvement | I103: 429795 | J103: 2015-01-12 | K103: 2015-01-16 | L103: Published | M103: 2015-02-23 | N103: 404575 | O103: 2013-07-19 | P103: 3 | Q103: 2 | R103: - | S103: - | T103: - | U103: - | V103: 2 | W103: 2 | X103: - | Y103: - | Z103: - | AA103: 2 | AB103: - | AC103: - | AD103: - | AE103: - | AF103: 2 | AG103: 2 | AH103: - | AI103: - | AJ103: - | AK103: 2 | AL103: - | AM103: - | AN103: - | AO103: - | AP103: 2 | AQ103: 2 | AR103: - | AS103: - | AT103: - | AU103: 2 | AV103: - | AW103: - | AX103: - | AY103: - | AZ103: 2 | BA103: 2 | BB103: - | BC103: - | BD103: - | BE103: 2 | BF103: - | BG103: - | BH103: - | BI103: - | BJ103: 2 | BK103: 2 | BL103: - | BM103: - | BN103: - | BO103: Improved
A104: Report | B104: East London Advanced Technology Training | C104: 51646 | D104: Community Learning and Skills | E104: London | F104: Hackney | G104: ACL Voluntary organisation | H104: Adult and Community - full (regional) | I104: 452602 | J104: 2015-01-14 | K104: 2015-01-16 | L104: Published | M104: 2015-02-20 | N104: 334063 | O104: 2009-04-24 | P104: 2 | Q104: 1 | R104: - | S104: - | T104: - | U104: - | V104: 1 | W104: - | X104: - | Y104: - | Z104: - | AA104: 1 | AB104: - | AC104: - | AD104: - | AE104: - | AF104: 1 | AG104: - | AH104: - | AI104: - | AJ104: - | AK104: 1 | AL104: - | AM104: - | AN104: - | AO104: - | AP104: 1 | AQ104: - | AR104: - | AS104: - | AT104: - | AU104: 1 | AV104: - | AW104: - | AX104: - | AY104: - | AZ104: 1 | BA104: - | BB104: - | BC104: - | BD104: - | BE104: 2 | BF104: - | BG104: - | BH104: - | BI104: - | BJ104: 2 | BK104: - | BL104: - | BM104: - | BN104: - | BO104: Improved
A105: Report | B105: Weymouth College | C105: 130653 | D105: General Further Education/Tertiary College | E105: South West | F105: Dorset | G105: Further Education | H105: FE College - requires improvement | I105: 430282 | J105: 2015-01-13 | K105: 2015-01-16 | L105: Published | M105: 2015-02-20 | N105: 409327 | O105: 2013-06-07 | P105: 3 | Q105: 4 | R105: 4 | S105: - | T105: - | U105: 4 | V105: 4 | W105: 4 | X105: - | Y105: - | Z105: 4 | AA105: 2 | AB105: 2 | AC105: - | AD105: - | AE105: 2 | AF105: 2 | AG105: 2 | AH105: - | AI105: - | AJ105: 2 | AK105: 2 | AL105: 2 | AM105: - | AN105: - | AO105: 2 | AP105: 2 | AQ105: 2 | AR105: - | AS105: - | AT105: 2 | AU105: 4 | AV105: 4 | AW105: - | AX105: - | AY105: 4 | AZ105: 4 | BA105: 4 | BB105: - | BC105: - | BD105: 4 | BE105: 2 | BF105: 2 | BG105: - | BH105: - | BI105: 2 | BJ105: 2 | BK105: 2 | BL105: - | BM105: - | BN105: 2 | BO105: Declined
A106: Report | B106: GI Group | C106: 59190 | D106: Employer | E106: East Midlands | F106: Derbyshire | G106: Employer | H106: WBL - full (regional) | I106: 452631 | J106: 2015-01-13 | K106: 2015-01-16 | L106: Published | M106: 2015-02-26 | N106: NULL | O106: NULL | P106: NULL | Q106: 3 | R106: - | S106: - | T106: - | U106: - | V106: - | W106: 3 | X106: - | Y106: - | Z106: - | AA106: 3 | AB106: - | AC106: - | AD106: - | AE106: - | AF106: - | AG106: 3 | AH106: - | AI106: - | AJ106: - | AK106: 3 | AL106: - | AM106: - | AN106: - | AO106: - | AP106: - | AQ106: 3 | AR106: - | AS106: - | AT106: - | AU106: 3 | AV106: - | AW106: - | AX106: - | AY106: - | AZ106: - | BA106: 3 | BB106: - | BC106: - | BD106: - | BE106: 2 | BF106: - | BG106: - | BH106: - | BI106: - | BJ106: - | BK106: 2 | BL106: - | BM106: - | BN106: - | BO106: No previous inspection
A107: Report | B107: The Maltings College | C107: 139433 | D107: Free School - 16-19 | E107: North East, Yorkshire & Humber | F107: Calderdale | G107: Free School - 16-19 | H107: 16-19 academy - full inspection | I107: 452498 | J107: 2015-01-13 | K107: 2015-01-16 | L107: Published | M107: 2015-02-27 | N107: NULL | O107: NULL | P107: NULL | Q107: 4 | R107: 2 | S107: - | T107: - | U107: 4 | V107: - | W107: - | X107: - | Y107: - | Z107: - | AA107: 4 | AB107: 2 | AC107: - | AD107: - | AE107: 4 | AF107: - | AG107: - | AH107: - | AI107: - | AJ107: - | AK107: 4 | AL107: 2 | AM107: - | AN107: - | AO107: 4 | AP107: - | AQ107: - | AR107: - | AS107: - | AT107: - | AU107: 4 | AV107: 2 | AW107: - | AX107: - | AY107: 4 | AZ107: - | BA107: - | BB107: - | BC107: - | BD107: - | BE107: 3 | BF107: 3 | BG107: - | BH107: - | BI107: 3 | BJ107: - | BK107: - | BL107: - | BM107: - | BN107: - | BO107: No previous inspection
A108: Report | B108: Community Training Services Limited | C108: 51259 | D108: Independent Learning Provider | E108: North East, Yorkshire & Humber | F108: Sheffield | G108: Independent Learning Provider | H108: WBL - full (regional) | I108: 452979 | J108: 2015-01-12 | K108: 2015-01-16 | L108: Published | M108: 2015-02-24 | N108: 363219 | O108: 2011-01-21 | P108: 2 | Q108: 2 | R108: - | S108: - | T108: - | U108: 2 | V108: 2 | W108: 2 | X108: - | Y108: - | Z108: - | AA108: 3 | AB108: - | AC108: - | AD108: - | AE108: 3 | AF108: 3 | AG108: 3 | AH108: - | AI108: - | AJ108: - | AK108: 2 | AL108: - | AM108: - | AN108: - | AO108: 2 | AP108: 2 | AQ108: 2 | AR108: - | AS108: - | AT108: - | AU108: 2 | AV108: - | AW108: - | AX108: - | AY108: 2 | AZ108: 2 | BA108: 2 | BB108: - | BC108: - | BD108: - | BE108: 2 | BF108: - | BG108: - | BH108: - | BI108: 2 | BJ108: 2 | BK108: 2 | BL108: - | BM108: - | BN108: - | BO108: Same
A109: Report | B109: The Child Care Company (Old Windsor) Limited | C109: 58467 | D109: Independent Learning Provider | E109: South East | F109: Slough | G109: Independent Learning Provider | H109: WBL - full (regional) | I109: 446611 | J109: 2015-01-19 | K109: 2015-01-22 | L109: Published | M109: 2015-02-26 | N109: NULL | O109: NULL | P109: NULL | Q109: 2 | R109: - | S109: - | T109: - | U109: - | V109: - | W109: 2 | X109: - | Y109: - | Z109: - | AA109: 2 | AB109: - | AC109: - | AD109: - | AE109: - | AF109: - | AG109: 2 | AH109: - | AI109: - | AJ109: - | AK109: 2 | AL109: - | AM109: - | AN109: - | AO109: - | AP109: - | AQ109: 2 | AR109: - | AS109: - | AT109: - | AU109: 2 | AV109: - | AW109: - | AX109: - | AY109: - | AZ109: - | BA109: 2 | BB109: - | BC109: - | BD109: - | BE109: 2 | BF109: - | BG109: - | BH109: - | BI109: - | BJ109: - | BK109: 2 | BL109: - | BM109: - | BN109: - | BO109: No previous inspection
A110: Report | B110: The Shropshire Council | C110: 54373 | D110: Community Learning and Skills | E110: West Midlands | F110: Shropshire | G110: ACL Voluntary organisation | H110: ACL - requires improvement | I110: 440287 | J110: 2015-01-19 | K110: 2015-01-23 | L110: Published | M110: 2015-03-03 | N110: 423424 | O110: 2013-11-01 | P110: 3 | Q110: 2 | R110: - | S110: - | T110: - | U110: 2 | V110: 2 | W110: 2 | X110: 2 | Y110: - | Z110: 2 | AA110: 2 | AB110: - | AC110: - | AD110: - | AE110: 2 | AF110: 2 | AG110: 2 | AH110: 2 | AI110: - | AJ110: 2 | AK110: 2 | AL110: - | AM110: - | AN110: - | AO110: 2 | AP110: 2 | AQ110: 2 | AR110: 2 | AS110: - | AT110: 2 | AU110: 1 | AV110: - | AW110: - | AX110: - | AY110: 1 | AZ110: 1 | BA110: 1 | BB110: 1 | BC110: - | BD110: 1 | BE110: 1 | BF110: - | BG110: - | BH110: - | BI110: 1 | BJ110: 1 | BK110: 1 | BL110: 1 | BM110: - | BN110: 1 | BO110: Improved
A111: Report | B111: Kingston University | C111: 133825 | D111: Higher Education Institution | E111: London | F111: Kingston Upon Thames | G111: Higher Education Institutions | H111: FE in HE - full inspection | I111: 446542 | J111: 2015-01-20 | K111: 2015-01-23 | L111: Published | M111: 2015-03-02 | N111: NULL | O111: NULL | P111: NULL | Q111: 1 | R111: - | S111: - | T111: - | U111: 1 | V111: 1 | W111: - | X111: - | Y111: - | Z111: - | AA111: 1 | AB111: - | AC111: - | AD111: - | AE111: 1 | AF111: 1 | AG111: - | AH111: - | AI111: - | AJ111: - | AK111: 1 | AL111: - | AM111: - | AN111: - | AO111: 1 | AP111: 1 | AQ111: - | AR111: - | AS111: - | AT111: - | AU111: 1 | AV111: - | AW111: - | AX111: - | AY111: 1 | AZ111: 1 | BA111: - | BB111: - | BC111: - | BD111: - | BE111: 2 | BF111: - | BG111: - | BH111: - | BI111: 2 | BJ111: 2 | BK111: - | BL111: - | BM111: - | BN111: - | BO111: No previous inspection
A112: Report | B112: The Virtual College | C112: 54946 | D112: Independent Learning Provider | E112: North East, Yorkshire & Humber | F112: Bradford | G112: Independent Learning Provider | H112: Work Based Learning - full (national) | I112: 446608 | J112: 2015-01-19 | K112: 2015-01-23 | L112: Published | M112: 2015-03-03 | N112: 330940 | O112: 2009-01-16 | P112: 2 | Q112: 3 | R112: - | S112: - | T112: - | U112: - | V112: 3 | W112: 3 | X112: - | Y112: - | Z112: 3 | AA112: 2 | AB112: - | AC112: - | AD112: - | AE112: - | AF112: 2 | AG112: 2 | AH112: - | AI112: - | AJ112: 2 | AK112: 2 | AL112: - | AM112: - | AN112: - | AO112: - | AP112: 2 | AQ112: 2 | AR112: - | AS112: - | AT112: 2 | AU112: 3 | AV112: - | AW112: - | AX112: - | AY112: - | AZ112: 3 | BA112: 3 | BB112: - | BC112: - | BD112: 3 | BE112: 3 | BF112: - | BG112: - | BH112: - | BI112: - | BJ112: 3 | BK112: 3 | BL112: - | BM112: - | BN112: 3 | BO112: Declined
A113: Report | B113: Aspiration Training Limited | C113: 57680 | D113: Independent Learning Provider | E113: West Midlands | F113: Worcestershire | G113: Independent Learning Provider | H113: WBL - requires improvement | I113: 429796 | J113: 2015-01-19 | K113: 2015-01-23 | L113: Published | M113: 2015-03-03 | N113: 410641 | O113: 2013-07-26 | P113: 3 | Q113: 3 | R113: - | S113: - | T113: - | U113: - | V113: - | W113: 3 | X113: - | Y113: - | Z113: - | AA113: 3 | AB113: - | AC113: - | AD113: - | AE113: - | AF113: - | AG113: 3 | AH113: - | AI113: - | AJ113: - | AK113: 3 | AL113: - | AM113: - | AN113: - | AO113: - | AP113: - | AQ113: 3 | AR113: - | AS113: - | AT113: - | AU113: 3 | AV113: - | AW113: - | AX113: - | AY113: - | AZ113: - | BA113: 3 | BB113: - | BC113: - | BD113: - | BE113: 2 | BF113: - | BG113: - | BH113: - | BI113: - | BJ113: - | BK113: 2 | BL113: - | BM113: - | BN113: - | BO113: Same
A114: Report | B114: Trafford College | C114: 130519 | D114: General Further Education/Tertiary College | E114: North West | F114: Trafford | G114: Further Education | H114: FE College - full inspection | I114: 452485 | J114: 2015-01-19 | K114: 2015-01-23 | L114: Published | M114: 2015-03-02 | N114: 332998 | O114: 2009-05-01 | P114: 1 | Q114: 2 | R114: - | S114: - | T114: - | U114: 2 | V114: 2 | W114: 2 | X114: - | Y114: - | Z114: - | AA114: 2 | AB114: - | AC114: - | AD114: - | AE114: 2 | AF114: 2 | AG114: 2 | AH114: - | AI114: - | AJ114: - | AK114: 2 | AL114: - | AM114: - | AN114: - | AO114: 2 | AP114: 2 | AQ114: 2 | AR114: - | AS114: - | AT114: - | AU114: 2 | AV114: - | AW114: - | AX114: - | AY114: 2 | AZ114: 2 | BA114: 2 | BB114: - | BC114: - | BD114: - | BE114: 2 | BF114: - | BG114: - | BH114: - | BI114: 2 | BJ114: 2 | BK114: 2 | BL114: - | BM114: - | BN114: - | BO114: Declined
A115: Report | B115: Bilborough College | C115: 130787 | D115: Sixth Form College | E115: East Midlands | F115: Nottingham | G115: Further Education | H115: SFC - full inspection | I115: 452491 | J115: 2015-01-20 | K115: 2015-01-23 | L115: Published | M115: 2015-03-06 | N115: 331246 | O115: 2009-03-25 | P115: 2 | Q115: 3 | R115: - | S115: - | T115: - | U115: 3 | V115: - | W115: - | X115: - | Y115: - | Z115: - | AA115: 3 | AB115: - | AC115: - | AD115: - | AE115: 3 | AF115: - | AG115: - | AH115: - | AI115: - | AJ115: - | AK115: 3 | AL115: - | AM115: - | AN115: - | AO115: 3 | AP115: - | AQ115: - | AR115: - | AS115: - | AT115: - | AU115: 3 | AV115: - | AW115: - | AX115: - | AY115: 3 | AZ115: - | BA115: - | BB115: - | BC115: - | BD115: - | BE115: 2 | BF115: - | BG115: - | BH115: - | BI115: 2 | BJ115: - | BK115: - | BL115: - | BM115: - | BN115: - | BO115: Declined
A116: Report | B116: Durham County Council | C116: 50219 | D116: Community Learning and Skills | E116: North East, Yorkshire & Humber | F116: Durham | G116: ACL Local Authority | H116: ACL - requires improvement | I116: 434393 | J116: 2015-01-19 | K116: 2015-01-23 | L116: Published | M116: 2015-03-06 | N116: 423431 | O116: 2013-10-11 | P116: 3 | Q116: 2 | R116: - | S116: - | T116: - | U116: - | V116: 2 | W116: 1 | X116: 2 | Y116: - | Z116: - | AA116: 2 | AB116: - | AC116: - | AD116: - | AE116: - | AF116: 2 | AG116: 1 | AH116: 2 | AI116: - | AJ116: - | AK116: 2 | AL116: - | AM116: - | AN116: - | AO116: - | AP116: 2 | AQ116: 1 | AR116: 2 | AS116: - | AT116: - | AU116: 2 | AV116: - | AW116: - | AX116: - | AY116: - | AZ116: 2 | BA116: 2 | BB116: 2 | BC116: - | BD116: - | BE116: 2 | BF116: - | BG116: - | BH116: - | BI116: - | BJ116: 2 | BK116: 2 | BL116: 2 | BM116: - | BN116: - | BO116: Improved
A117: Report | B117: The Mary Ward Centre (AE Centre) | C117: 130404 | D117: Community Learning and Skills | E117: London | F117: Camden | G117: ACL Specialist Designated Institute | H117: Adult and Community - full (regional) | I117: 452634 | J117: 2015-01-19 | K117: 2015-01-23 | L117: Published | M117: 2015-02-27 | N117: 330812 | O117: 2009-02-27 | P117: 2 | Q117: 2 | R117: - | S117: - | T117: - | U117: - | V117: - | W117: - | X117: 2 | Y117: - | Z117: - | AA117: 2 | AB117: - | AC117: - | AD117: - | AE117: - | AF117: - | AG117: - | AH117: 2 | AI117: - | AJ117: - | AK117: 2 | AL117: - | AM117: - | AN117: - | AO117: - | AP117: - | AQ117: - | AR117: 2 | AS117: - | AT117: - | AU117: 2 | AV117: - | AW117: - | AX117: - | AY117: - | AZ117: - | BA117: - | BB117: 2 | BC117: - | BD117: - | BE117: 2 | BF117: - | BG117: - | BH117: - | BI117: - | BJ117: - | BK117: - | BL117: 2 | BM117: - | BN117: - | BO117: Same
A118: Report | B118: Staffline Recruitment Limited | C118: 59075 | D118: Independent Learning Provider | E118: East Midlands | F118: Nottingham | G118: Independent Learning Provider | H118: WBL - requires improvement | I118: 433768 | J118: 2015-01-20 | K118: 2015-01-23 | L118: Published | M118: 2015-03-02 | N118: 424465 | O118: 2013-09-27 | P118: 3 | Q118: 2 | R118: - | S118: - | T118: - | U118: - | V118: - | W118: 2 | X118: - | Y118: - | Z118: - | AA118: 2 | AB118: - | AC118: - | AD118: - | AE118: - | AF118: - | AG118: 2 | AH118: - | AI118: - | AJ118: - | AK118: 2 | AL118: - | AM118: - | AN118: - | AO118: - | AP118: - | AQ118: 2 | AR118: - | AS118: - | AT118: - | AU118: 2 | AV118: - | AW118: - | AX118: - | AY118: - | AZ118: - | BA118: 2 | BB118: - | BC118: - | BD118: - | BE118: 2 | BF118: - | BG118: - | BH118: - | BI118: - | BJ118: - | BK118: 2 | BL118: - | BM118: - | BN118: - | BO118: Improved
A119: Report | B119: E.ON UK Plc | C119: 58731 | D119: Employer | E119: East Midlands | F119: Nottinghamshire | G119: Employer | H119: WBL - full (regional) | I119: 452990 | J119: 2015-01-20 | K119: 2015-01-23 | L119: Published | M119: 2015-03-12 | N119: 376207 | O119: 2011-12-09 | P119: 2 | Q119: 3 | R119: - | S119: - | T119: - | U119: - | V119: - | W119: 3 | X119: - | Y119: - | Z119: - | AA119: 3 | AB119: - | AC119: - | AD119: - | AE119: - | AF119: - | AG119: 3 | AH119: - | AI119: - | AJ119: - | AK119: 3 | AL119: - | AM119: - | AN119: - | AO119: - | AP119: - | AQ119: 3 | AR119: - | AS119: - | AT119: - | AU119: 3 | AV119: - | AW119: - | AX119: - | AY119: - | AZ119: - | BA119: 3 | BB119: - | BC119: - | BD119: - | BE119: 2 | BF119: - | BG119: - | BH119: - | BI119: - | BJ119: - | BK119: 2 | BL119: - | BM119: - | BN119: - | BO119: Declined
A120: Report | B120: G B Training (UK) Ltd | C120: 51944 | D120: Independent Learning Provider | E120: West Midlands | F120: Birmingham | G120: Independent Learning Provider | H120: WBL - full (regional) | I120: 452603 | J120: 2015-01-19 | K120: 2015-01-23 | L120: Published | M120: 2015-03-03 | N120: 307094 | O120: 2006-09-07 | P120: 3 | Q120: 2 | R120: - | S120: - | T120: - | U120: - | V120: - | W120: 2 | X120: - | Y120: - | Z120: - | AA120: 2 | AB120: - | AC120: - | AD120: - | AE120: - | AF120: - | AG120: 2 | AH120: - | AI120: - | AJ120: - | AK120: 2 | AL120: - | AM120: - | AN120: - | AO120: - | AP120: - | AQ120: 2 | AR120: - | AS120: - | AT120: - | AU120: 2 | AV120: - | AW120: - | AX120: - | AY120: - | AZ120: - | BA120: 2 | BB120: - | BC120: - | BD120: - | BE120: 2 | BF120: - | BG120: - | BH120: - | BI120: - | BJ120: - | BK120: 2 | BL120: - | BM120: - | BN120: - | BO120: Improved
A121: Report | B121: NCC Adult Education Services | C121: 53545 | D121: Community Learning and Skills | E121: East of England | F121: Norfolk | G121: ACL Local Authority | H121: Adult and Community - full (regional) | I121: 452610 | J121: 2015-01-19 | K121: 2015-01-23 | L121: Published | M121: 2015-03-09 | N121: 375495 | O121: 2011-11-25 | P121: 2 | Q121: 4 | R121: - | S121: - | T121: - | U121: - | V121: 4 | W121: - | X121: 4 | Y121: - | Z121: - | AA121: 3 | AB121: - | AC121: - | AD121: - | AE121: - | AF121: 3 | AG121: - | AH121: 3 | AI121: - | AJ121: - | AK121: 3 | AL121: - | AM121: - | AN121: - | AO121: - | AP121: 3 | AQ121: - | AR121: 3 | AS121: - | AT121: - | AU121: 4 | AV121: - | AW121: - | AX121: - | AY121: - | AZ121: 4 | BA121: - | BB121: 4 | BC121: - | BD121: - | BE121: 2 | BF121: - | BG121: - | BH121: - | BI121: - | BJ121: 2 | BK121: - | BL121: 2 | BM121: - | BN121: - | BO121: Declined
A122: Report | B122: Baltic Training Services Limited | C122: 58229 | D122: Independent Learning Provider | E122: North East, Yorkshire & Humber | F122: Durham | G122: Independent Learning Provider | H122: Work Based Learning - full (national) | I122: 452988 | J122: 2015-01-19 | K122: 2015-01-23 | L122: Published | M122: 2015-03-02 | N122: 333485 | O122: 2009-08-21 | P122: 2 | Q122: 2 | R122: - | S122: - | T122: 2 | U122: - | V122: - | W122: 2 | X122: - | Y122: - | Z122: 2 | AA122: 2 | AB122: - | AC122: - | AD122: 2 | AE122: - | AF122: - | AG122: 2 | AH122: - | AI122: - | AJ122: 2 | AK122: 2 | AL122: - | AM122: - | AN122: 2 | AO122: - | AP122: - | AQ122: 2 | AR122: - | AS122: - | AT122: 2 | AU122: 2 | AV122: - | AW122: - | AX122: 2 | AY122: - | AZ122: - | BA122: 2 | BB122: - | BC122: - | BD122: 2 | BE122: 2 | BF122: - | BG122: - | BH122: 2 | BI122: - | BJ122: - | BK122: 2 | BL122: - | BM122: - | BN122: 2 | BO122: Same
A123: Report | B123: DBC Training | C123: 59167 | D123: Independent Learning Provider | E123: East Midlands | F123: Derby | G123: Independent Learning Provider | H123: WBL - full (regional) | I123: 456390 | J123: 2015-01-27 | K123: 2015-01-29 | L123: Published | M123: 2015-03-05 | N123: NULL | O123: NULL | P123: NULL | Q123: 3 | R123: - | S123: - | T123: - | U123: - | V123: - | W123: 3 | X123: - | Y123: - | Z123: - | AA123: 3 | AB123: - | AC123: - | AD123: - | AE123: - | AF123: - | AG123: 3 | AH123: - | AI123: - | AJ123: - | AK123: 3 | AL123: - | AM123: - | AN123: - | AO123: - | AP123: - | AQ123: 3 | AR123: - | AS123: - | AT123: - | AU123: 2 | AV123: - | AW123: - | AX123: - | AY123: - | AZ123: - | BA123: 2 | BB123: - | BC123: - | BD123: - | BE123: 2 | BF123: - | BG123: - | BH123: - | BI123: - | BJ123: - | BK123: 2 | BL123: - | BM123: - | BN123: - | BO123: No previous inspection
A124: Report | B124: Newbury College | C124: 130602 | D124: General Further Education/Tertiary College | E124: South East | F124: West Berkshire | G124: Further Education | H124: FE College - full inspection | I124: 452486 | J124: 2015-01-27 | K124: 2015-01-30 | L124: Published | M124: 2015-03-10 | N124: 342293 | O124: 2009-11-13 | P124: 2 | Q124: 2 | R124: - | S124: - | T124: - | U124: 2 | V124: 2 | W124: - | X124: - | Y124: - | Z124: - | AA124: 2 | AB124: - | AC124: - | AD124: - | AE124: 2 | AF124: 2 | AG124: - | AH124: - | AI124: - | AJ124: - | AK124: 2 | AL124: - | AM124: - | AN124: - | AO124: 2 | AP124: 2 | AQ124: - | AR124: - | AS124: - | AT124: - | AU124: 2 | AV124: - | AW124: - | AX124: - | AY124: 2 | AZ124: 2 | BA124: - | BB124: - | BC124: - | BD124: - | BE124: 2 | BF124: - | BG124: - | BH124: - | BI124: 2 | BJ124: 2 | BK124: - | BL124: - | BM124: - | BN124: - | BO124: Same
A125: Report | B125: KATS Ltd | C125: 58323 | D125: Independent Learning Provider | E125: South East | F125: Hampshire | G125: Independent Learning Provider | H125: WBL - full (regional) | I125: 452621 | J125: 2015-01-27 | K125: 2015-01-30 | L125: Published | M125: 2015-03-25 | N125: 333270 | O125: 2009-08-07 | P125: 2 | Q125: 4 | R125: - | S125: - | T125: 4 | U125: - | V125: - | W125: 4 | X125: - | Y125: - | Z125: - | AA125: 4 | AB125: - | AC125: - | AD125: 4 | AE125: - | AF125: - | AG125: 4 | AH125: - | AI125: - | AJ125: - | AK125: 4 | AL125: - | AM125: - | AN125: 4 | AO125: - | AP125: - | AQ125: 4 | AR125: - | AS125: - | AT125: - | AU125: 4 | AV125: - | AW125: - | AX125: 4 | AY125: - | AZ125: - | BA125: 4 | BB125: - | BC125: - | BD125: - | BE125: 3 | BF125: - | BG125: - | BH125: 3 | BI125: - | BJ125: - | BK125: 3 | BL125: - | BM125: - | BN125: - | BO125: Declined
A126: Report | B126: Hereward College of Further Education | C126: 130474 | D126: General Further Education/Tertiary College | E126: West Midlands | F126: Coventry | G126: Further Education | H126: FE College - requires improvement | I126: 452778 | J126: 2015-01-27 | K126: 2015-01-30 | L126: Published | M126: 2015-03-06 | N126: 423397 | O126: 2013-09-19 | P126: 3 | Q126: 2 | R126: - | S126: - | T126: - | U126: 2 | V126: 2 | W126: 3 | X126: - | Y126: - | Z126: - | AA126: 3 | AB126: - | AC126: - | AD126: - | AE126: 3 | AF126: 3 | AG126: 3 | AH126: - | AI126: - | AJ126: - | AK126: 2 | AL126: - | AM126: - | AN126: - | AO126: 2 | AP126: 2 | AQ126: 3 | AR126: - | AS126: - | AT126: - | AU126: 2 | AV126: - | AW126: - | AX126: - | AY126: 2 | AZ126: 2 | BA126: 3 | BB126: - | BC126: - | BD126: - | BE126: 2 | BF126: - | BG126: - | BH126: - | BI126: 2 | BJ126: 2 | BK126: 2 | BL126: - | BM126: - | BN126: - | BO126: Improved
A127: Report | B127: Connell Sixth Form College | C127: 139730 | D127: Free School - 16-19 | E127: North West | F127: Manchester | G127: Free School - 16-19 | H127: 16-19 academy - full inspection | I127: 452499 | J127: 2015-01-27 | K127: 2015-01-30 | L127: Published | M127: 2015-03-17 | N127: NULL | O127: NULL | P127: NULL | Q127: 3 | R127: - | S127: - | T127: - | U127: 3 | V127: - | W127: - | X127: - | Y127: - | Z127: - | AA127: 3 | AB127: - | AC127: - | AD127: - | AE127: 3 | AF127: - | AG127: - | AH127: - | AI127: - | AJ127: - | AK127: 3 | AL127: - | AM127: - | AN127: - | AO127: 3 | AP127: - | AQ127: - | AR127: - | AS127: - | AT127: - | AU127: 3 | AV127: - | AW127: - | AX127: - | AY127: 3 | AZ127: - | BA127: - | BB127: - | BC127: - | BD127: - | BE127: 3 | BF127: - | BG127: - | BH127: - | BI127: 3 | BJ127: - | BK127: - | BL127: - | BM127: - | BN127: - | BO127: No previous inspection
A128: =IF(C128 <> "", HYPERLINK(CONCATENATE("http://reports.ofsted.gov.uk/inspection-reports/find-inspection-report/provider/ELS/",C128),"Report"),"") -> Report | B128: Stem Academy | C128: 139793 | D128: Free School - 16-19 | E128: London | F128: Islington | G128: Free School - 16-19 | H128: 16-19 academy - full inspection | I128: 452500 | J128: 2015-01-27 | K128: 2015-01-30 | L128: Published | M128: 2015-03-26 | N128: NULL | O128: NULL | P128: NULL | Q128: 4 | R128: - | S128: - | T128: - | U128: 4 | V128: - | W128: - | X128: - | Y128: - | Z128: - | AA128: 4 | AB128: - | AC128: - | AD128: - | AE128: 4 | AF128: - | AG128: - | AH128: - | AI128: - | AJ128: - | AK128: 4 | AL128: - | AM128: - | AN128: - | AO128: 4 | AP128: - | AQ128: - | AR128: - | AS128: - | AT128: - | AU128: 4 | AV128: - | AW128: - | AX128: - | AY128: 4 | AZ128: - | BA128: - | BB128: - | BC128: - | BD128: - | BE128: 3 | BF128: - | BG128: - | BH128: - | BI128: 3 | BJ128: - | BK128: - | BL128: - | BM128: - | BN128: - | BO128: =IF(P128="Null","No previous inspection",IF(Q128>P128,"Declined", IF(Q128=P128,"Same",IF(Q128<P128,"Improved")))) -> No previous inspection
A129: Report | B129: Anderson Stockley Accredited Training Ltd | C129: 50410 | D129: Independent Learning Provider | E129: East Midlands | F129: Northamptonshire | G129: Independent Learning Provider | H129: Work Based Learning - full (national) | I129: 452600 | J129: 2015-02-03 | K129: 2015-02-05 | L129: Published | M129: 2015-03-12 | N129: 329928 | O129: 2008-10-24 | P129: 3 | Q129: 3 | R129: - | S129: - | T129: - | U129: - | V129: - | W129: 3 | X129: - | Y129: - | Z129: - | AA129: 3 | AB129: - | AC129: - | AD129: - | AE129: - | AF129: - | AG129: 3 | AH129: - | AI129: - | AJ129: - | AK129: 3 | AL129: - | AM129: - | AN129: - | AO129: - | AP129: - | AQ129: 3 | AR129: - | AS129: - | AT129: - | AU129: 3 | AV129: - | AW129: - | AX129: - | AY129: - | AZ129: - | BA129: 3 | BB129: - | BC129: - | BD129: - | BE129: 3 | BF129: - | BG129: - | BH129: - | BI129: - | BJ129: - | BK129: 3 | BL129: - | BM129: - | BN129: - | BO129: Same
A130: Report | B130: lookfantastic Training Limited | C130: 53697 | D130: Independent Learning Provider | E130: South East | F130: Brighton and Hove | G130: Independent Learning Provider | H130: Work Based Learning - full (national) | I130: 452613 | J130: 2015-02-02 | K130: 2015-02-06 | L130: Published | M130: 2015-03-16 | N130: 382484 | O130: 2011-06-24 | P130: 2 | Q130: 3 | R130: - | S130: - | T130: - | U130: - | V130: 3 | W130: 3 | X130: - | Y130: - | Z130: - | AA130: 3 | AB130: - | AC130: - | AD130: - | AE130: - | AF130: 3 | AG130: 3 | AH130: - | AI130: - | AJ130: - | AK130: 2 | AL130: - | AM130: - | AN130: - | AO130: - | AP130: 2 | AQ130: 2 | AR130: - | AS130: - | AT130: - | AU130: 3 | AV130: - | AW130: - | AX130: - | AY130: - | AZ130: 3 | BA130: 3 | BB130: - | BC130: - | BD130: - | BE130: 3 | BF130: - | BG130: - | BH130: - | BI130: - | BJ130: 3 | BK130: 3 | BL130: - | BM130: - | BN130: - | BO130: Declined
A131: Report | B131: Nottingham City Council | C131: 53664 | D131: Community Learning and Skills | E131: East Midlands | F131: Nottingham | G131: ACL Local Authority | H131: Adult and Community - full (regional) | I131: 423419 | J131: 2015-02-04 | K131: 2015-02-06 | L131: Published | M131: 2015-03-13 | N131: 329892 | O131: 2008-11-28 | P131: 2 | Q131: 2 | R131: - | S131: - | T131: - | U131: - | V131: - | W131: - | X131: 2 | Y131: - | Z131: - | AA131: 2 | AB131: - | AC131: - | AD131: - | AE131: - | AF131: - | AG131: - | AH131: 2 | AI131: - | AJ131: - | AK131: 2 | AL131: - | AM131: - | AN131: - | AO131: - | AP131: - | AQ131: - | AR131: 2 | AS131: - | AT131: - | AU131: 2 | AV131: - | AW131: - | AX131: - | AY131: - | AZ131: - | BA131: - | BB131: 2 | BC131: - | BD131: - | BE131: 2 | BF131: - | BG131: - | BH131: - | BI131: - | BJ131: - | BK131: - | BL131: 2 | BM131: - | BN131: - | BO131: Same
A132: Report | B132: Avanta Enterprise Limited | C132: 59173 | D132: Independent Learning Provider | E132: London | F132: Westminster | G132: Independent Learning Provider | H132: Work Based Learning - full (national) | I132: 452630 | J132: 2015-02-02 | K132: 2015-02-06 | L132: Published | M132: 2015-03-16 | N132: NULL | O132: NULL | P132: NULL | Q132: 2 | R132: - | S132: - | T132: - | U132: - | V132: - | W132: 2 | X132: - | Y132: - | Z132: 2 | AA132: 2 | AB132: - | AC132: - | AD132: - | AE132: - | AF132: - | AG132: 2 | AH132: - | AI132: - | AJ132: 2 | AK132: 2 | AL132: - | AM132: - | AN132: - | AO132: - | AP132: - | AQ132: 2 | AR132: - | AS132: - | AT132: 2 | AU132: 2 | AV132: - | AW132: - | AX132: - | AY132: - | AZ132: - | BA132: 2 | BB132: - | BC132: - | BD132: 2 | BE132: 2 | BF132: - | BG132: - | BH132: - | BI132: - | BJ132: - | BK132: 2 | BL132: - | BM132: - | BN132: 2 | BO132: No previous inspection
A133: Report | B133: Straight A Training Limited | C133: 54640 | D133: Independent Learning Provider | E133: South East | F133: Surrey | G133: Independent Learning Provider | H133: WBL - full (regional) | I133: 452981 | J133: 2015-02-03 | K133: 2015-02-06 | L133: Published | M133: 2015-03-16 | N133: 342602 | O133: 2009-12-11 | P133: 2 | Q133: 3 | R133: - | S133: - | T133: - | U133: - | V133: - | W133: 3 | X133: - | Y133: - | Z133: - | AA133: 2 | AB133: - | AC133: - | AD133: - | AE133: - | AF133: - | AG133: 2 | AH133: - | AI133: - | AJ133: - | AK133: 3 | AL133: - | AM133: - | AN133: - | AO133: - | AP133: - | AQ133: 3 | AR133: - | AS133: - | AT133: - | AU133: 3 | AV133: - | AW133: - | AX133: - | AY133: - | AZ133: - | BA133: 3 | BB133: - | BC133: - | BD133: - | BE133: 3 | BF133: - | BG133: - | BH133: - | BI133: - | BJ133: - | BK133: 3 | BL133: - | BM133: - | BN133: - | BO133: Declined
A134: Report | B134: Training 2000 Limited | C134: 55045 | D134: Community Learning and Skills | E134: North West | F134: Blackburn with Darwen | G134: ACL Voluntary organisation | H134: WBL - full (regional) | I134: 452982 | J134: 2015-02-02 | K134: 2015-02-06 | L134: Published | M134: 2015-03-12 | N134: 363206 | O134: 2011-03-25 | P134: 2 | Q134: 2 | R134: - | S134: - | T134: - | U134: 2 | V134: - | W134: 1 | X134: - | Y134: - | Z134: - | AA134: 2 | AB134: - | AC134: - | AD134: - | AE134: 2 | AF134: - | AG134: 2 | AH134: - | AI134: - | AJ134: - | AK134: 2 | AL134: - | AM134: - | AN134: - | AO134: 2 | AP134: - | AQ134: 1 | AR134: - | AS134: - | AT134: - | AU134: 1 | AV134: - | AW134: - | AX134: - | AY134: 2 | AZ134: - | BA134: 1 | BB134: - | BC134: - | BD134: - | BE134: 1 | BF134: - | BG134: - | BH134: - | BI134: 1 | BJ134: - | BK134: 1 | BL134: - | BM134: - | BN134: - | BO134: Same
A135: Report | B135: Hugh Baird College | C135: 130490 | D135: General Further Education/Tertiary College | E135: North West | F135: Sefton | G135: Further Education | H135: FE College - full inspection | I135: 452484 | J135: 2015-02-02 | K135: 2015-02-06 | L135: Published | M135: 2015-03-09 | N135: 343958 | O135: 2010-02-12 | P135: 2 | Q135: 2 | R135: - | S135: 2 | T135: - | U135: 2 | V135: 2 | W135: 2 | X135: - | Y135: - | Z135: - | AA135: 2 | AB135: - | AC135: 2 | AD135: - | AE135: 2 | AF135: 2 | AG135: 2 | AH135: - | AI135: - | AJ135: - | AK135: 2 | AL135: - | AM135: 2 | AN135: - | AO135: 2 | AP135: 2 | AQ135: 2 | AR135: - | AS135: - | AT135: - | AU135: 2 | AV135: - | AW135: 2 | AX135: - | AY135: 2 | AZ135: 2 | BA135: 2 | BB135: - | BC135: - | BD135: - | BE135: 1 | BF135: - | BG135: 1 | BH135: - | BI135: 1 | BJ135: 1 | BK135: 1 | BL135: - | BM135: - | BN135: - | BO135: Same
A136: Report | B136: LeSoCo | C136: 130415 | D136: General Further Education/Tertiary College | E136: London | F136: Lewisham | G136: Further Education | H136: FE College - reinspection | I136: 440233 | J136: 2015-02-02 | K136: 2015-02-06 | L136: Published | M136: 2015-04-01 | N136: 420390 | O136: 2013-11-29 | P136: 4 | Q136: 4 | R136: - | S136: - | T136: - | U136: 4 | V136: 4 | W136: 3 | X136: - | Y136: - | Z136: - | AA136: 4 | AB136: - | AC136: - | AD136: - | AE136: 4 | AF136: 3 | AG136: 4 | AH136: - | AI136: - | AJ136: - | AK136: 4 | AL136: - | AM136: - | AN136: - | AO136: 4 | AP136: 4 | AQ136: 3 | AR136: - | AS136: - | AT136: - | AU136: 4 | AV136: - | AW136: - | AX136: - | AY136: 4 | AZ136: 4 | BA136: 3 | BB136: - | BC136: - | BD136: - | BE136: 2 | BF136: - | BG136: - | BH136: - | BI136: 2 | BJ136: 2 | BK136: 2 | BL136: - | BM136: - | BN136: - | BO136: Same
A137: Report | B137: Midlands Training and Development | C137: 53693 | D137: Independent Learning Provider | E137: West Midlands | F137: Warwickshire | G137: Independent Learning Provider | H137: WBL - full (regional) | I137: 452612 | J137: 2015-02-10 | K137: 2015-02-12 | L137: Published | M137: 2015-03-06 | N137: 406792 | O137: 2012-10-26 | P137: 2 | Q137: 3 | R137: - | S137: - | T137: - | U137: 3 | V137: - | W137: - | X137: - | Y137: - | Z137: - | AA137: 3 | AB137: - | AC137: - | AD137: - | AE137: 3 | AF137: - | AG137: - | AH137: - | AI137: - | AJ137: - | AK137: 3 | AL137: - | AM137: - | AN137: - | AO137: 3 | AP137: - | AQ137: - | AR137: - | AS137: - | AT137: - | AU137: 3 | AV137: - | AW137: - | AX137: - | AY137: 3 | AZ137: - | BA137: - | BB137: - | BC137: - | BD137: - | BE137: 2 | BF137: - | BG137: - | BH137: - | BI137: 2 | BJ137: - | BK137: - | BL137: - | BM137: - | BN137: - | BO137: Declined
A138: Report | B138: New College Telford | C138: 130801 | D138: Sixth Form College | E138: West Midlands | F138: Telford and Wrekin | G138: Further Education | H138: SFC - full inspection | I138: 452492 | J138: 2015-02-10 | K138: 2015-02-13 | L138: Published | M138: 2015-03-19 | N138: 408451 | O138: 2013-03-22 | P138: 2 | Q138: 3 | R138: - | S138: - | T138: - | U138: 3 | V138: 3 | W138: - | X138: - | Y138: - | Z138: - | AA138: 3 | AB138: - | AC138: - | AD138: - | AE138: 3 | AF138: 3 | AG138: - | AH138: - | AI138: - | AJ138: - | AK138: 3 | AL138: - | AM138: - | AN138: - | AO138: 3 | AP138: 3 | AQ138: - | AR138: - | AS138: - | AT138: - | AU138: 3 | AV138: - | AW138: - | AX138: - | AY138: 3 | AZ138: 3 | BA138: - | BB138: - | BC138: - | BD138: - | BE138: 2 | BF138: - | BG138: - | BH138: - | BI138: 2 | BJ138: 2 | BK138: - | BL138: - | BM138: - | BN138: - | BO138: Declined
A139: Report | B139: Darlington College | C139: 130656 | D139: General Further Education/Tertiary College | E139: North East, Yorkshire & Humber | F139: Darlington | G139: Further Education | H139: FE College - full inspection | I139: 452549 | J139: 2015-02-09 | K139: 2015-02-13 | L139: Published | M139: 2015-03-20 | N139: 331026 | O139: 2009-03-06 | P139: 1 | Q139: 4 | R139: - | S139: - | T139: - | U139: 4 | V139: 3 | W139: 4 | X139: - | Y139: - | Z139: - | AA139: 4 | AB139: - | AC139: - | AD139: - | AE139: 4 | AF139: 3 | AG139: 4 | AH139: - | AI139: - | AJ139: - | AK139: 4 | AL139: - | AM139: - | AN139: - | AO139: 4 | AP139: 3 | AQ139: 4 | AR139: - | AS139: - | AT139: - | AU139: 4 | AV139: - | AW139: - | AX139: - | AY139: 4 | AZ139: 3 | BA139: 4 | BB139: - | BC139: - | BD139: - | BE139: 2 | BF139: - | BG139: - | BH139: - | BI139: 2 | BJ139: 2 | BK139: 2 | BL139: - | BM139: - | BN139: - | BO139: Declined
A140: Report | B140: METSKILL Limited | C140: 53330 | D140: Community Learning and Skills | E140: North East, Yorkshire & Humber | F140: Sheffield | G140: ACL Voluntary organisation | H140: Work Based Learning - full (national) | I140: 452609 | J140: 2015-02-09 | K140: 2015-02-13 | L140: Published | M140: 2015-03-24 | N140: 385747 | O140: 2012-02-10 | P140: 2 | Q140: 3 | R140: - | S140: - | T140: - | U140: - | V140: - | W140: 3 | X140: - | Y140: - | Z140: - | AA140: 3 | AB140: - | AC140: - | AD140: - | AE140: - | AF140: - | AG140: 3 | AH140: - | AI140: - | AJ140: - | AK140: 3 | AL140: - | AM140: - | AN140: - | AO140: - | AP140: - | AQ140: 3 | AR140: - | AS140: - | AT140: - | AU140: 3 | AV140: - | AW140: - | AX140: - | AY140: - | AZ140: - | BA140: 3 | BB140: - | BC140: - | BD140: - | BE140: 2 | BF140: - | BG140: - | BH140: - | BI140: - | BJ140: - | BK140: 2 | BL140: - | BM140: - | BN140: - | BO140: Declined
A141: Report | B141: LIGA (UK) LTD | C141: 59155 | D141: Independent Learning Provider | E141: South East | F141: Oxfordshire | G141: Independent Learning Provider | H141: Work Based Learning - full (national) | I141: 452628 | J141: 2015-02-11 | K141: 2015-02-13 | L141: Published | M141: 2015-03-20 | N141: NULL | O141: NULL | P141: NULL | Q141: 3 | R141: - | S141: - | T141: - | U141: - | V141: - | W141: 3 | X141: - | Y141: - | Z141: - | AA141: 3 | AB141: - | AC141: - | AD141: - | AE141: - | AF141: - | AG141: 3 | AH141: - | AI141: - | AJ141: - | AK141: 3 | AL141: - | AM141: - | AN141: - | AO141: - | AP141: - | AQ141: 3 | AR141: - | AS141: - | AT141: - | AU141: 3 | AV141: - | AW141: - | AX141: - | AY141: - | AZ141: - | BA141: 3 | BB141: - | BC141: - | BD141: - | BE141: 3 | BF141: - | BG141: - | BH141: - | BI141: - | BJ141: - | BK141: 3 | BL141: - | BM141: - | BN141: - | BO141: No previous inspection
A142: Report | B142: QDOS Training Limited | C142: 58397 | D142: Independent Learning Provider | E142: East Midlands | F142: Leicester | G142: Independent Learning Provider | H142: WBL - full (regional) | I142: 452989 | J142: 2015-02-10 | K142: 2015-02-13 | L142: Published | M142: 2015-04-09 | N142: 376203 | O142: 2011-10-06 | P142: 2 | Q142: 4 | R142: - | S142: - | T142: 4 | U142: - | V142: 4 | W142: 4 | X142: - | Y142: - | Z142: - | AA142: 2 | AB142: - | AC142: - | AD142: 2 | AE142: - | AF142: 2 | AG142: 2 | AH142: - | AI142: - | AJ142: - | AK142: 3 | AL142: - | AM142: - | AN142: 2 | AO142: - | AP142: 3 | AQ142: 2 | AR142: - | AS142: - | AT142: - | AU142: 4 | AV142: - | AW142: - | AX142: 4 | AY142: - | AZ142: 4 | BA142: 4 | BB142: - | BC142: - | BD142: - | BE142: 4 | BF142: - | BG142: - | BH142: 4 | BI142: - | BJ142: 4 | BK142: 4 | BL142: - | BM142: - | BN142: - | BO142: Declined
A143: Report | B143: The Real Apprenticeship Company Limited | C143: 59162 | D143: Independent Learning Provider | E143: West Midlands | F143: Warwickshire | G143: Independent Learning Provider | H143: Work Based Learning - full (national) | I143: 455608 | J143: 2015-02-17 | K143: 2015-02-20 | L143: Published | M143: 2015-03-20 | N143: NULL | O143: NULL | P143: NULL | Q143: 2 | R143: - | S143: - | T143: - | U143: - | V143: - | W143: 2 | X143: - | Y143: - | Z143: - | AA143: 2 | AB143: - | AC143: - | AD143: - | AE143: - | AF143: - | AG143: 2 | AH143: - | AI143: - | AJ143: - | AK143: 2 | AL143: - | AM143: - | AN143: - | AO143: - | AP143: - | AQ143: 2 | AR143: - | AS143: - | AT143: - | AU143: 2 | AV143: - | AW143: - | AX143: - | AY143: - | AZ143: - | BA143: 2 | BB143: - | BC143: - | BD143: - | BE143: 2 | BF143: - | BG143: - | BH143: - | BI143: - | BJ143: - | BK143: 2 | BL143: - | BM143: - | BN143: - | BO143: No previous inspection
A144: Report | B144: Sandwell Training Association Limited | C144: 54271 | D144: Community Learning and Skills | E144: West Midlands | F144: Sandwell | G144: ACL Voluntary organisation | H144: WBL - full (regional) | I144: 452616 | J144: 2015-02-16 | K144: 2015-02-20 | L144: Published | M144: 2015-03-20 | N144: 376201 | O144: 2011-10-14 | P144: 2 | Q144: 3 | R144: - | S144: - | T144: - | U144: - | V144: - | W144: 3 | X144: - | Y144: - | Z144: - | AA144: 3 | AB144: - | AC144: - | AD144: - | AE144: - | AF144: - | AG144: 3 | AH144: - | AI144: - | AJ144: - | AK144: 3 | AL144: - | AM144: - | AN144: - | AO144: - | AP144: - | AQ144: 3 | AR144: - | AS144: - | AT144: - | AU144: 3 | AV144: - | AW144: - | AX144: - | AY144: - | AZ144: - | BA144: 3 | BB144: - | BC144: - | BD144: - | BE144: 3 | BF144: - | BG144: - | BH144: - | BI144: - | BJ144: - | BK144: 3 | BL144: - | BM144: - | BN144: - | BO144: Declined
A145: Report | B145: John Laing Training Ltd | C145: 52638 | D145: Independent Learning Provider | E145: East of England | F145: Hertfordshire | G145: Independent Learning Provider | H145: Work Based Learning - full (national) | I145: 452605 | J145: 2015-02-17 | K145: 2015-02-20 | L145: Published | M145: 2015-03-25 | N145: 342621 | O145: 2009-11-20 | P145: 3 | Q145: 2 | R145: - | S145: - | T145: - | U145: - | V145: - | W145: 2 | X145: - | Y145: - | Z145: - | AA145: 2 | AB145: - | AC145: - | AD145: - | AE145: - | AF145: - | AG145: 2 | AH145: - | AI145: - | AJ145: - | AK145: 2 | AL145: - | AM145: - | AN145: - | AO145: - | AP145: - | AQ145: 2 | AR145: - | AS145: - | AT145: - | AU145: 2 | AV145: - | AW145: - | AX145: - | AY145: - | AZ145: - | BA145: 2 | BB145: - | BC145: - | BD145: - | BE145: 2 | BF145: - | BG145: - | BH145: - | BI145: - | BJ145: - | BK145: 2 | BL145: - | BM145: - | BN145: - | BO145: Improved
A146: Report | B146: Norfolk Training Services Limited | C146: 53550 | D146: Independent Learning Provider | E146: East of England | F146: Norfolk | G146: Independent Learning Provider | H146: WBL - full (regional) | I146: 452611 | J146: 2015-02-16 | K146: 2015-02-20 | L146: Published | M146: 2015-03-27 | N146: 366019 | O146: 2011-08-05 | P146: 2 | Q146: 3 | R146: - | S146: - | T146: - | U146: 3 | V146: 3 | W146: 3 | X146: - | Y146: - | Z146: - | AA146: 3 | AB146: - | AC146: - | AD146: - | AE146: 3 | AF146: 3 | AG146: 3 | AH146: - | AI146: - | AJ146: - | AK146: 3 | AL146: - | AM146: - | AN146: - | AO146: 3 | AP146: 3 | AQ146: 3 | AR146: - | AS146: - | AT146: - | AU146: 3 | AV146: - | AW146: - | AX146: - | AY146: 3 | AZ146: 3 | BA146: 3 | BB146: - | BC146: - | BD146: - | BE146: 3 | BF146: - | BG146: - | BH146: - | BI146: 3 | BJ146: 3 | BK146: 3 | BL146: - | BM146: - | BN146: - | BO146: Declined
A147: Report | B147: ID Training | C147: 57877 | D147: Independent Learning Provider | E147: North East, Yorkshire & Humber | F147: Newcastle Upon Tyne | G147: Independent Learning Provider | H147: WBL - full (regional) | I147: 452986 | J147: 2015-02-24 | K147: 2015-02-27 | L147: Published | M147: 2015-04-09 | N147: 330918 | O147: 2009-03-26 | P147: 3 | Q147: 2 | R147: - | S147: - | T147: - | U147: 2 | V147: - | W147: 2 | X147: - | Y147: - | Z147: 2 | AA147: 2 | AB147: - | AC147: - | AD147: - | AE147: 2 | AF147: - | AG147: 2 | AH147: - | AI147: - | AJ147: 2 | AK147: 2 | AL147: - | AM147: - | AN147: - | AO147: 2 | AP147: - | AQ147: 2 | AR147: - | AS147: - | AT147: 2 | AU147: 2 | AV147: - | AW147: - | AX147: - | AY147: 2 | AZ147: - | BA147: 2 | BB147: - | BC147: - | BD147: 2 | BE147: 2 | BF147: - | BG147: - | BH147: - | BI147: 2 | BJ147: - | BK147: 2 | BL147: - | BM147: - | BN147: 2 | BO147: Improved
A148: Report | B148: Herbert of Liverpool (Training) Ltd | C148: 50132 | D148: Independent Learning Provider | E148: North West | F148: Liverpool | G148: Independent Learning Provider | H148: WBL - requires improvement | I148: 455920 | J148: 2015-02-24 | K148: 2015-02-27 | L148: Published | M148: 2015-04-08 | N148: 424335 | O148: 2013-10-25 | P148: 3 | Q148: 4 | R148: - | S148: - | T148: - | U148: - | V148: - | W148: 4 | X148: - | Y148: - | Z148: - | AA148: 4 | AB148: - | AC148: - | AD148: - | AE148: - | AF148: - | AG148: 4 | AH148: - | AI148: - | AJ148: - | AK148: 4 | AL148: - | AM148: - | AN148: - | AO148: - | AP148: - | AQ148: 4 | AR148: - | AS148: - | AT148: - | AU148: 4 | AV148: - | AW148: - | AX148: - | AY148: - | AZ148: - | BA148: 4 | BB148: - | BC148: - | BD148: - | BE148: 3 | BF148: - | BG148: - | BH148: - | BI148: - | BJ148: - | BK148: 3 | BL148: - | BM148: - | BN148: - | BO148: Declined
A149: Report | B149: The Training & Recruitment Partnership Limited | C149: 55053 | D149: Independent Learning Provider | E149: London | F149: Merton | G149: Independent Learning Provider | H149: Work Based Learning - full (national) | I149: 452983 | J149: 2015-02-23 | K149: 2015-02-27 | L149: Published | M149: 2015-04-01 | N149: 364781 | O149: 2010-11-19 | P149: 2 | Q149: 3 | R149: - | S149: - | T149: - | U149: - | V149: 3 | W149: 3 | X149: - | Y149: - | Z149: - | AA149: 3 | AB149: - | AC149: - | AD149: - | AE149: - | AF149: 3 | AG149: 3 | AH149: - | AI149: - | AJ149: - | AK149: 3 | AL149: - | AM149: - | AN149: - | AO149: - | AP149: 3 | AQ149: 3 | AR149: - | AS149: - | AT149: - | AU149: 3 | AV149: - | AW149: - | AX149: - | AY149: - | AZ149: 3 | BA149: 3 | BB149: - | BC149: - | BD149: - | BE149: 3 | BF149: - | BG149: - | BH149: - | BI149: - | BJ149: 3 | BK149: 3 | BL149: - | BM149: - | BN149: - | BO149: Declined
A150: Report | B150: Priory Central Services Limited | C150: 59108 | D150: Employer | E150: East Midlands | F150: Leicestershire | G150: Employer | H150: WBL - requires improvement | I150: 434394 | J150: 2015-03-02 | K150: 2015-03-06 | L150: Published | M150: 2015-04-17 | N150: 423727 | O150: 2013-10-18 | P150: 3 | Q150: 4 | R150: - | S150: - | T150: - | U150: - | V150: - | W150: 4 | X150: - | Y150: - | Z150: - | AA150: 4 | AB150: - | AC150: - | AD150: - | AE150: - | AF150: - | AG150: 4 | AH150: - | AI150: - | AJ150: - | AK150: 4 | AL150: - | AM150: - | AN150: - | AO150: - | AP150: - | AQ150: 4 | AR150: - | AS150: - | AT150: - | AU150: 4 | AV150: - | AW150: - | AX150: - | AY150: - | AZ150: - | BA150: 4 | BB150: - | BC150: - | BD150: - | BE150: 3 | BF150: - | BG150: - | BH150: - | BI150: - | BJ150: - | BK150: 3 | BL150: - | BM150: - | BN150: - | BO150: Declined
A151: Report | B151: Babington Business College Limited | C151: 50586 | D151: Independent Learning Provider | E151: East Midlands | F151: Derby | G151: Independent Learning Provider | H151: Work Based Learning - full (national) | I151: 452977 | J151: 2015-03-02 | K151: 2015-03-06 | L151: Published | M151: 2015-04-07 | N151: 375547 | O151: 2011-11-18 | P151: 2 | Q151: 2 | R151: - | S151: - | T151: - | U151: - | V151: - | W151: 2 | X151: - | Y151: - | Z151: - | AA151: 2 | AB151: - | AC151: - | AD151: - | AE151: - | AF151: - | AG151: 2 | AH151: - | AI151: - | AJ151: - | AK151: 2 | AL151: - | AM151: - | AN151: - | AO151: - | AP151: - | AQ151: 2 | AR151: - | AS151: - | AT151: - | AU151: 2 | AV151: - | AW151: - | AX151: - | AY151: - | AZ151: - | BA151: 2 | BB151: - | BC151: - | BD151: - | BE151: 2 | BF151: - | BG151: - | BH151: - | BI151: - | BJ151: - | BK151: 2 | BL151: - | BM151: - | BN151: - | BO151: Same
A152: Report | B152: MidKent College | C152: 130726 | D152: General Further Education/Tertiary College | E152: South East | F152: Medway | G152: Further Education | H152: FE College - full inspection | I152: 452489 | J152: 2015-03-02 | K152: 2015-03-06 | L152: Published | M152: 2015-04-22 | N152: 330821 | O152: 2009-03-06 | P152: 2 | Q152: 3 | R152: - | S152: - | T152: - | U152: 3 | V152: 3 | W152: - | X152: - | Y152: - | Z152: - | AA152: 3 | AB152: - | AC152: - | AD152: - | AE152: 3 | AF152: 3 | AG152: - | AH152: - | AI152: - | AJ152: - | AK152: 3 | AL152: - | AM152: - | AN152: - | AO152: 3 | AP152: 3 | AQ152: - | AR152: - | AS152: - | AT152: - | AU152: 3 | AV152: - | AW152: - | AX152: - | AY152: 3 | AZ152: 3 | BA152: - | BB152: - | BC152: - | BD152: - | BE152: 2 | BF152: - | BG152: - | BH152: - | BI152: 2 | BJ152: 2 | BK152: - | BL152: - | BM152: - | BN152: - | BO152: Declined
A153: Report | B153: Sir Isaac Newton Sixth Form Free School | C153: 139896 | D153: Free School - 16-19 | E153: East of England | F153: Norfolk | G153: Free School - 16-19 | H153: 16-19 academy - full inspection | I153: 452502 | J153: 2015-03-03 | K153: 2015-03-06 | L153: Published | M153: 2015-03-31 | N153: NULL | O153: NULL | P153: NULL | Q153: 2 | R153: - | S153: - | T153: - | U153: 2 | V153: - | W153: - | X153: - | Y153: - | Z153: - | AA153: 2 | AB153: - | AC153: - | AD153: - | AE153: 2 | AF153: - | AG153: - | AH153: - | AI153: - | AJ153: - | AK153: 2 | AL153: - | AM153: - | AN153: - | AO153: 2 | AP153: - | AQ153: - | AR153: - | AS153: - | AT153: - | AU153: 2 | AV153: - | AW153: - | AX153: - | AY153: 2 | AZ153: - | BA153: - | BB153: - | BC153: - | BD153: - | BE153: 2 | BF153: - | BG153: - | BH153: - | BI153: 2 | BJ153: - | BK153: - | BL153: - | BM153: - | BN153: - | BO153: No previous inspection
A154: Report | B154: Romney Resource 2000 Ltd | C154: 58383 | D154: Community Learning and Skills | E154: South East | F154: Kent | G154: ACL Voluntary organisation | H154: WBL - requires improvement | I154: 434392 | J154: 2015-03-03 | K154: 2015-03-06 | L154: Published | M154: 2015-04-22 | N154: 423836 | O154: 2013-10-11 | P154: 3 | Q154: 3 | R154: - | S154: - | T154: - | U154: 3 | V154: - | W154: - | X154: - | Y154: - | Z154: - | AA154: 3 | AB154: - | AC154: - | AD154: - | AE154: 3 | AF154: - | AG154: - | AH154: - | AI154: - | AJ154: - | AK154: 3 | AL154: - | AM154: - | AN154: - | AO154: 3 | AP154: - | AQ154: - | AR154: - | AS154: - | AT154: - | AU154: 3 | AV154: - | AW154: - | AX154: - | AY154: 3 | AZ154: - | BA154: - | BB154: - | BC154: - | BD154: - | BE154: 3 | BF154: - | BG154: - | BH154: - | BI154: 3 | BJ154: - | BK154: - | BL154: - | BM154: - | BN154: - | BO154: Same
A155: Report | B155: Central Training Academy Limited | C155: 51072 | D155: Independent Learning Provider | E155: East of England | F155: Southend-On-Sea | G155: Independent Learning Provider | H155: Work Based Learning - full (national) | I155: 452978 | J155: 2015-03-02 | K155: 2015-03-06 | L155: Published | M155: 2015-04-14 | N155: 345936 | O155: 2010-05-28 | P155: 2 | Q155: 2 | R155: - | S155: - | T155: 2 | U155: 2 | V155: 3 | W155: 2 | X155: - | Y155: - | Z155: - | AA155: 2 | AB155: - | AC155: - | AD155: 2 | AE155: 2 | AF155: 3 | AG155: 2 | AH155: - | AI155: - | AJ155: - | AK155: 2 | AL155: - | AM155: - | AN155: 2 | AO155: 2 | AP155: 3 | AQ155: 2 | AR155: - | AS155: - | AT155: - | AU155: 2 | AV155: - | AW155: - | AX155: 2 | AY155: 2 | AZ155: 3 | BA155: 2 | BB155: - | BC155: - | BD155: - | BE155: 2 | BF155: - | BG155: - | BH155: 2 | BI155: 2 | BJ155: 2 | BK155: 2 | BL155: - | BM155: - | BN155: - | BO155: =IF(P155="Null","No previous inspection",IF(Q155>P155,"Declined", IF(Q155=P155,"Same",IF(Q155<P155,"Improved")))) -> Same
A156: Report | B156: Webs Training Limited | C156: 55294 | D156: Independent Learning Provider | E156: East Midlands | F156: Nottinghamshire | G156: Independent Learning Provider | H156: WBL - full (regional) | I156: 452618 | J156: 2015-03-03 | K156: 2015-03-06 | L156: Published | M156: 2015-04-09 | N156: 362863 | O156: 2010-11-26 | P156: 1 | Q156: 2 | R156: - | S156: - | T156: - | U156: 2 | V156: 2 | W156: 2 | X156: - | Y156: - | Z156: - | AA156: 2 | AB156: - | AC156: - | AD156: - | AE156: 2 | AF156: 2 | AG156: 2 | AH156: - | AI156: - | AJ156: - | AK156: 2 | AL156: - | AM156: - | AN156: - | AO156: 2 | AP156: 2 | AQ156: 2 | AR156: - | AS156: - | AT156: - | AU156: 2 | AV156: - | AW156: - | AX156: - | AY156: 2 | AZ156: 2 | BA156: 2 | BB156: - | BC156: - | BD156: - | BE156: 2 | BF156: - | BG156: - | BH156: - | BI156: 2 | BJ156: 2 | BK156: 2 | BL156: - | BM156: - | BN156: - | BO156: Declined
A157: Report | B157: Tameside College | C157: 130516 | D157: General Further Education/Tertiary College | E157: North West | F157: Tameside | G157: Further Education | H157: FE College - full inspection | I157: 452546 | J157: 2015-03-02 | K157: 2015-03-06 | L157: Published | M157: 2015-04-10 | N157: 332997 | O157: 2009-06-11 | P157: 2 | Q157: 3 | R157: 3 | S157: - | T157: - | U157: 3 | V157: 3 | W157: 1 | X157: - | Y157: - | Z157: - | AA157: 3 | AB157: 3 | AC157: - | AD157: - | AE157: 3 | AF157: 3 | AG157: 1 | AH157: - | AI157: - | AJ157: - | AK157: 3 | AL157: 2 | AM157: - | AN157: - | AO157: 3 | AP157: 3 | AQ157: 1 | AR157: - | AS157: - | AT157: - | AU157: 3 | AV157: 3 | AW157: - | AX157: - | AY157: 3 | AZ157: 3 | BA157: 1 | BB157: - | BC157: - | BD157: - | BE157: 2 | BF157: 2 | BG157: - | BH157: - | BI157: 2 | BJ157: 2 | BK157: 2 | BL157: - | BM157: - | BN157: - | BO157: Declined
A158: Report | B158: Prior Pursglove College | C158: 130575 | D158: Sixth Form College | E158: North East, Yorkshire & Humber | F158: Redcar and Cleveland | G158: Further Education | H158: SFC - reinspection | I158: 446543 | J158: 2015-03-03 | K158: 2015-03-06 | L158: Published | M158: 2015-04-09 | N158: 423378 | O158: 2013-12-06 | P158: 4 | Q158: 2 | R158: - | S158: - | T158: - | U158: 2 | V158: 2 | W158: 2 | X158: - | Y158: - | Z158: - | AA158: 2 | AB158: - | AC158: - | AD158: - | AE158: 2 | AF158: 2 | AG158: 2 | AH158: - | AI158: - | AJ158: - | AK158: 2 | AL158: - | AM158: - | AN158: - | AO158: 2 | AP158: 2 | AQ158: 2 | AR158: - | AS158: - | AT158: - | AU158: 2 | AV158: - | AW158: - | AX158: - | AY158: 2 | AZ158: 2 | BA158: 2 | BB158: - | BC158: - | BD158: - | BE158: 2 | BF158: - | BG158: - | BH158: - | BI158: 2 | BJ158: 2 | BK158: 2 | BL158: - | BM158: - | BN158: - | BO158: Improved
A159: Report | B159: London Vesta College Limited | C159: 59157 | D159: Independent Learning Provider | E159: London | F159: Tower Hamlets | G159: Independent Learning Provider | H159: WBL - full (regional) | I159: 455606 | J159: 2015-03-04 | K159: 2015-03-06 | L159: Published | M159: 2015-04-14 | N159: NULL | O159: NULL | P159: NULL | Q159: 3 | R159: - | S159: - | T159: - | U159: - | V159: - | W159: 3 | X159: - | Y159: - | Z159: - | AA159: 2 | AB159: - | AC159: - | AD159: - | AE159: - | AF159: - | AG159: 2 | AH159: - | AI159: - | AJ159: - | AK159: 3 | AL159: - | AM159: - | AN159: - | AO159: - | AP159: - | AQ159: 3 | AR159: - | AS159: - | AT159: - | AU159: 3 | AV159: - | AW159: - | AX159: - | AY159: - | AZ159: - | BA159: 3 | BB159: - | BC159: - | BD159: - | BE159: 2 | BF159: - | BG159: - | BH159: - | BI159: - | BJ159: - | BK159: 2 | BL159: - | BM159: - | BN159: - | BO159: No previous inspection
A160: Report | B160: The Communiversity | C160: 58913 | D160: Community Learning and Skills | E160: North West | F160: Liverpool | G160: ACL Voluntary organisation | H160: Adult and Community - full (regional) | I160: 455664 | J160: 2015-03-10 | K160: 2015-03-12 | L160: Published | M160: 2015-04-16 | N160: NULL | O160: NULL | P160: NULL | Q160: 3 | R160: - | S160: - | T160: - | U160: - | V160: - | W160: 3 | X160: - | Y160: - | Z160: - | AA160: 3 | AB160: - | AC160: - | AD160: - | AE160: - | AF160: - | AG160: 3 | AH160: - | AI160: - | AJ160: - | AK160: 3 | AL160: - | AM160: - | AN160: - | AO160: - | AP160: - | AQ160: 3 | AR160: - | AS160: - | AT160: - | AU160: 3 | AV160: - | AW160: - | AX160: - | AY160: - | AZ160: - | BA160: 3 | BB160: - | BC160: - | BD160: - | BE160: 3 | BF160: - | BG160: - | BH160: - | BI160: - | BJ160: - | BK160: 3 | BL160: - | BM160: - | BN160: - | BO160: No previous inspection
A161: Report | B161: Ministry of Defence (Navy) | C161: 58403 | D161: Employer | E161: South East | F161: Portsmouth | G161: Employer | H161: WBL - full (regional) | I161: 452622 | J161: 2015-03-09 | K161: 2015-03-13 | L161: Published | M161: 2015-04-21 | N161: 330255 | O161: 2009-02-06 | P161: 2 | Q161: 2 | R161: - | S161: - | T161: - | U161: - | V161: - | W161: 2 | X161: - | Y161: - | Z161: - | AA161: 2 | AB161: - | AC161: - | AD161: - | AE161: - | AF161: - | AG161: 2 | AH161: - | AI161: - | AJ161: - | AK161: 2 | AL161: - | AM161: - | AN161: - | AO161: - | AP161: - | AQ161: 2 | AR161: - | AS161: - | AT161: - | AU161: 2 | AV161: - | AW161: - | AX161: - | AY161: - | AZ161: - | BA161: 2 | BB161: - | BC161: - | BD161: - | BE161: 2 | BF161: - | BG161: - | BH161: - | BI161: - | BJ161: - | BK161: 2 | BL161: - | BM161: - | BN161: - | BO161: Same
A162: Report | B162: PERA Training Limited | C162: 59194 | D162: Independent Learning Provider | E162: East Midlands | F162: Leicestershire | G162: Independent Learning Provider | H162: Work Based Learning - full (national) | I162: 452632 | J162: 2015-03-09 | K162: 2015-03-13 | L162: Published | M162: 2015-04-17 | N162: NULL | O162: NULL | P162: NULL | Q162: 2 | R162: - | S162: - | T162: - | U162: - | V162: - | W162: 2 | X162: - | Y162: - | Z162: - | AA162: 2 | AB162: - | AC162: - | AD162: - | AE162: - | AF162: - | AG162: 2 | AH162: - | AI162: - | AJ162: - | AK162: 2 | AL162: - | AM162: - | AN162: - | AO162: - | AP162: - | AQ162: 2 | AR162: - | AS162: - | AT162: - | AU162: 2 | AV162: - | AW162: - | AX162: - | AY162: - | AZ162: - | BA162: 2 | BB162: - | BC162: - | BD162: - | BE162: 2 | BF162: - | BG162: - | BH162: - | BI162: - | BJ162: - | BK162: 2 | BL162: - | BM162: - | BN162: - | BO162: No previous inspection
A163: Report | B163: Wigan and Leigh College | C163: 130521 | D163: General Further Education/Tertiary College | E163: North West | F163: Wigan | G163: Further Education | H163: FE College - full inspection | I163: 446536 | J163: 2015-03-09 | K163: 2015-03-13 | L163: Published | M163: 2015-04-17 | N163: 343829 | O163: 2010-03-05 | P163: 2 | Q163: 3 | R163: - | S163: - | T163: - | U163: 3 | V163: 3 | W163: 3 | X163: - | Y163: - | Z163: - | AA163: 3 | AB163: - | AC163: - | AD163: - | AE163: 3 | AF163: 3 | AG163: 3 | AH163: - | AI163: - | AJ163: - | AK163: 3 | AL163: - | AM163: - | AN163: - | AO163: 3 | AP163: 3 | AQ163: 3 | AR163: - | AS163: - | AT163: - | AU163: 3 | AV163: - | AW163: - | AX163: - | AY163: 3 | AZ163: 3 | BA163: 3 | BB163: - | BC163: - | BD163: - | BE163: 2 | BF163: - | BG163: - | BH163: - | BI163: 2 | BJ163: 2 | BK163: 2 | BL163: - | BM163: - | BN163: - | BO163: Declined
A164: Report | B164: Strode's College | C164: 130833 | D164: Sixth Form College | E164: South East | F164: Surrey | G164: Further Education | H164: SFC - full inspection | I164: 452545 | J164: 2015-03-10 | K164: 2015-03-13 | L164: Published | M164: 2015-04-24 | N164: 332979 | O164: 2009-05-15 | P164: 2 | Q164: 3 | R164: - | S164: - | T164: - | U164: 3 | V164: - | W164: - | X164: - | Y164: - | Z164: - | AA164: 3 | AB164: - | AC164: - | AD164: - | AE164: 3 | AF164: - | AG164: - | AH164: - | AI164: - | AJ164: - | AK164: 3 | AL164: - | AM164: - | AN164: - | AO164: 3 | AP164: - | AQ164: - | AR164: - | AS164: - | AT164: - | AU164: 3 | AV164: - | AW164: - | AX164: - | AY164: 3 | AZ164: - | BA164: - | BB164: - | BC164: - | BD164: - | BE164: 3 | BF164: - | BG164: - | BH164: - | BI164: 3 | BJ164: - | BK164: - | BL164: - | BM164: - | BN164: - | BO164: Declined
A165: Report | B165: Warwickshire College Group | C165: 130835 | D165: General Further Education/Tertiary College | E165: West Midlands | F165: Warwickshire | G165: Further Education | H165: FE College - full inspection | I165: 461394 | J165: 2015-03-09 | K165: 2015-03-13 | L165: Published | M165: 2015-04-02 | N165: 318900 | O165: 2008-01-25 | P165: 1 | Q165: 2 | R165: - | S165: - | T165: - | U165: 2 | V165: 2 | W165: 2 | X165: - | Y165: - | Z165: - | AA165: 3 | AB165: - | AC165: - | AD165: - | AE165: 3 | AF165: 3 | AG165: 2 | AH165: - | AI165: - | AJ165: - | AK165: 2 | AL165: - | AM165: - | AN165: - | AO165: 2 | AP165: 2 | AQ165: 2 | AR165: - | AS165: - | AT165: - | AU165: 2 | AV165: - | AW165: - | AX165: - | AY165: 2 | AZ165: 2 | BA165: 2 | BB165: - | BC165: - | BD165: - | BE165: 2 | BF165: - | BG165: - | BH165: - | BI165: 2 | BJ165: 2 | BK165: 2 | BL165: - | BM165: - | BN165: - | BO165: Declined
A166: Report | B166: Big Creative Training LTD | C166: 51619 | D166: Independent Learning Provider | E166: London | F166: Waltham Forest | G166: Independent Learning Provider | H166: WBL - full (regional) | I166: 446600 | J166: 2015-03-09 | K166: 2015-03-13 | L166: Published | M166: 2015-04-22 | N166: 318277 | O166: 2008-01-25 | P166: 2 | Q166: 3 | R166: - | S166: - | T166: - | U166: 3 | V166: - | W166: - | X166: - | Y166: - | Z166: - | AA166: 3 | AB166: - | AC166: - | AD166: - | AE166: 3 | AF166: - | AG166: - | AH166: - | AI166: - | AJ166: - | AK166: 3 | AL166: - | AM166: - | AN166: - | AO166: 3 | AP166: - | AQ166: - | AR166: - | AS166: - | AT166: - | AU166: 3 | AV166: - | AW166: - | AX166: - | AY166: 3 | AZ166: - | BA166: - | BB166: - | BC166: - | BD166: - | BE166: 3 | BF166: - | BG166: - | BH166: - | BI166: 3 | BJ166: - | BK166: - | BL166: - | BM166: - | BN166: - | BO166: Declined
A167: Report | B167: BROADLAND DISTRICT COUNCIL | C167: 50098 | D167: Community Learning and Skills | E167: East of England | F167: Norfolk | G167: ACL Local Authority | H167: WBL - full (regional) | I167: 452973 | J167: 2015-03-09 | K167: 2015-03-13 | L167: Published | M167: 2015-04-21 | N167: 375545 | O167: 2011-10-28 | P167: 2 | Q167: 3 | R167: - | S167: - | T167: - | U167: 3 | V167: - | W167: 3 | X167: - | Y167: - | Z167: - | AA167: 3 | AB167: - | AC167: - | AD167: - | AE167: 3 | AF167: - | AG167: 3 | AH167: - | AI167: - | AJ167: - | AK167: 3 | AL167: - | AM167: - | AN167: - | AO167: 3 | AP167: - | AQ167: 3 | AR167: - | AS167: - | AT167: - | AU167: 3 | AV167: - | AW167: - | AX167: - | AY167: 3 | AZ167: - | BA167: 3 | BB167: - | BC167: - | BD167: - | BE167: 2 | BF167: - | BG167: - | BH167: - | BI167: 2 | BJ167: - | BK167: 2 | BL167: - | BM167: - | BN167: - | BO167: Declined
A168: Report | B168: Kimberley 16 - 19 Stem College | C168: 139798 | D168: Free School - 16-19 | E168: East of England | F168: Bedford | G168: Free School - 16-19 | H168: 16-19 academy - full inspection | I168: 452501 | J168: 2015-03-10 | K168: 2015-03-13 | L168: Published | M168: 2015-04-21 | N168: NULL | O168: NULL | P168: NULL | Q168: 3 | R168: - | S168: - | T168: - | U168: 3 | V168: - | W168: - | X168: - | Y168: - | Z168: - | AA168: 3 | AB168: - | AC168: - | AD168: - | AE168: 3 | AF168: - | AG168: - | AH168: - | AI168: - | AJ168: - | AK168: 3 | AL168: - | AM168: - | AN168: - | AO168: 3 | AP168: - | AQ168: - | AR168: - | AS168: - | AT168: - | AU168: 3 | AV168: - | AW168: - | AX168: - | AY168: 3 | AZ168: - | BA168: - | BB168: - | BC168: - | BD168: - | BE168: 2 | BF168: - | BG168: - | BH168: - | BI168: 2 | BJ168: - | BK168: - | BL168: - | BM168: - | BN168: - | BO168: No previous inspection
A169: Report | B169: Didac Limited | C169: 51550 | D169: Independent Learning Provider | E169: South West | F169: Bristol City of | G169: Independent Learning Provider | H169: Work Based Learning - full (national) | I169: 452601 | J169: 2015-03-10 | K169: 2015-03-13 | L169: Published | M169: 2015-04-21 | N169: 397718 | O169: 2012-06-14 | P169: 1 | Q169: 2 | R169: - | S169: - | T169: - | U169: 2 | V169: 2 | W169: 2 | X169: - | Y169: - | Z169: - | AA169: 3 | AB169: - | AC169: - | AD169: - | AE169: 2 | AF169: 2 | AG169: 3 | AH169: - | AI169: - | AJ169: - | AK169: 2 | AL169: - | AM169: - | AN169: - | AO169: 2 | AP169: 2 | AQ169: 2 | AR169: - | AS169: - | AT169: - | AU169: 2 | AV169: - | AW169: - | AX169: - | AY169: 2 | AZ169: 2 | BA169: 2 | BB169: - | BC169: - | BD169: - | BE169: 2 | BF169: - | BG169: - | BH169: - | BI169: 2 | BJ169: 2 | BK169: 2 | BL169: - | BM169: - | BN169: - | BO169: Declined
A170: Report | B170: Training Strategies Ltd. | C170: 59129 | D170: Independent Learning Provider | E170: North West | F170: Liverpool | G170: Independent Learning Provider | H170: WBL - requires improvement | I170: 433767 | J170: 2015-03-10 | K170: 2015-03-13 | L170: Published | M170: 2015-04-17 | N170: 423817 | O170: 2013-09-27 | P170: 3 | Q170: 2 | R170: - | S170: - | T170: - | U170: - | V170: 2 | W170: 2 | X170: - | Y170: - | Z170: - | AA170: 2 | AB170: - | AC170: - | AD170: - | AE170: - | AF170: 2 | AG170: 2 | AH170: - | AI170: - | AJ170: - | AK170: 2 | AL170: - | AM170: - | AN170: - | AO170: - | AP170: 2 | AQ170: 2 | AR170: - | AS170: - | AT170: - | AU170: 2 | AV170: - | AW170: - | AX170: - | AY170: - | AZ170: 2 | BA170: 2 | BB170: - | BC170: - | BD170: - | BE170: 3 | BF170: - | BG170: - | BH170: - | BI170: - | BJ170: 3 | BK170: 3 | BL170: - | BM170: - | BN170: - | BO170: Improved
A171: Report | B171: Solihull College | C171: 130481 | D171: General Further Education/Tertiary College | E171: West Midlands | F171: Solihull | G171: Further Education | H171: FE College - full inspection | I171: 452547 | J171: 2015-03-09 | K171: 2015-03-13 | L171: Published | M171: 2015-04-21 | N171: 346614 | O171: 2010-05-14 | P171: 2 | Q171: 3 | R171: - | S171: - | T171: - | U171: 3 | V171: 3 | W171: 2 | X171: - | Y171: - | Z171: - | AA171: 3 | AB171: - | AC171: - | AD171: - | AE171: 3 | AF171: 3 | AG171: 3 | AH171: - | AI171: - | AJ171: - | AK171: 3 | AL171: - | AM171: - | AN171: - | AO171: 3 | AP171: 3 | AQ171: 2 | AR171: - | AS171: - | AT171: - | AU171: 3 | AV171: - | AW171: - | AX171: - | AY171: 3 | AZ171: 3 | BA171: 2 | BB171: - | BC171: - | BD171: - | BE171: 2 | BF171: - | BG171: - | BH171: - | BI171: 2 | BJ171: 2 | BK171: 2 | BL171: - | BM171: - | BN171: - | BO171: Declined
A172: Report | B172: Bromley London Borough Council | C172: 53108 | D172: Community Learning and Skills | E172: London | F172: Bromley | G172: ACL Local Authority | H172: Adult and Community - full (regional) | I172: 452606 | J172: 2015-03-10 | K172: 2015-03-13 | L172: Published | M172: 2015-04-22 | N172: 342323 | O172: 2010-02-12 | P172: 2 | Q172: 3 | R172: - | S172: - | T172: - | U172: - | V172: 3 | W172: - | X172: 3 | Y172: - | Z172: - | AA172: 3 | AB172: - | AC172: - | AD172: - | AE172: - | AF172: 3 | AG172: - | AH172: 3 | AI172: - | AJ172: - | AK172: 2 | AL172: - | AM172: - | AN172: - | AO172: - | AP172: 2 | AQ172: - | AR172: 2 | AS172: - | AT172: - | AU172: 3 | AV172: - | AW172: - | AX172: - | AY172: - | AZ172: 3 | BA172: - | BB172: 3 | BC172: - | BD172: - | BE172: 2 | BF172: - | BG172: - | BH172: - | BI172: - | BJ172: 2 | BK172: - | BL172: 2 | BM172: - | BN172: - | BO172: Declined
A173: Report | B173: The Apprentice Academy Limited | C173: 59161 | D173: Independent Learning Provider | E173: North West | F173: Manchester | G173: Independent Learning Provider | H173: WBL - full (regional) | I173: 455607 | J173: 2015-03-10 | K173: 2015-03-13 | L173: Published | M173: 2015-04-15 | N173: NULL | O173: NULL | P173: NULL | Q173: 3 | R173: - | S173: - | T173: - | U173: - | V173: - | W173: 3 | X173: - | Y173: - | Z173: - | AA173: 3 | AB173: - | AC173: - | AD173: - | AE173: - | AF173: - | AG173: 3 | AH173: - | AI173: - | AJ173: - | AK173: 3 | AL173: - | AM173: - | AN173: - | AO173: - | AP173: - | AQ173: 3 | AR173: - | AS173: - | AT173: - | AU173: 3 | AV173: - | AW173: - | AX173: - | AY173: - | AZ173: - | BA173: 3 | BB173: - | BC173: - | BD173: - | BE173: 3 | BF173: - | BG173: - | BH173: - | BI173: - | BJ173: - | BK173: 3 | BL173: - | BM173: - | BN173: - | BO173: No previous inspection
A174: Report | B174: Health Education North East | C174: 59195 | D174: Independent Learning Provider | E174: North East, Yorkshire & Humber | F174: Newcastle Upon Tyne | G174: Independent Learning Provider | H174: WBL - full (regional) | I174: 452633 | J174: 2015-03-16 | K174: 2015-03-19 | L174: Published | M174: 2015-04-23 | N174: NULL | O174: NULL | P174: NULL | Q174: 2 | R174: - | S174: - | T174: - | U174: - | V174: 2 | W174: 2 | X174: - | Y174: - | Z174: - | AA174: 2 | AB174: - | AC174: - | AD174: - | AE174: - | AF174: 2 | AG174: 2 | AH174: - | AI174: - | AJ174: - | AK174: 2 | AL174: - | AM174: - | AN174: - | AO174: - | AP174: 2 | AQ174: 2 | AR174: - | AS174: - | AT174: - | AU174: 2 | AV174: - | AW174: - | AX174: - | AY174: - | AZ174: 2 | BA174: 2 | BB174: - | BC174: - | BD174: - | BE174: 2 | BF174: - | BG174: - | BH174: - | BI174: - | BJ174: 2 | BK174: 2 | BL174: - | BM174: - | BN174: - | BO174: No previous inspection
A175: Report | B175: Derby Skillbuild | C175: 51525 | D175: Community Learning and Skills | E175: East Midlands | F175: Derby | G175: ACL Voluntary organisation | H175: WBL - requires improvement | I175: 434401 | J175: 2015-03-17 | K175: 2015-03-19 | L175: Published | M175: 2015-04-24 | N175: 423742 | O175: 2013-10-25 | P175: 3 | Q175: 2 | R175: - | S175: - | T175: - | U175: 2 | V175: - | W175: - | X175: - | Y175: - | Z175: - | AA175: 2 | AB175: - | AC175: - | AD175: - | AE175: 2 | AF175: - | AG175: - | AH175: - | AI175: - | AJ175: - | AK175: 2 | AL175: - | AM175: - | AN175: - | AO175: 2 | AP175: - | AQ175: - | AR175: - | AS175: - | AT175: - | AU175: 2 | AV175: - | AW175: - | AX175: - | AY175: 2 | AZ175: - | BA175: - | BB175: - | BC175: - | BD175: - | BE175: 2 | BF175: - | BG175: - | BH175: - | BI175: 2 | BJ175: - | BK175: - | BL175: - | BM175: - | BN175: - | BO175: Improved
A176: Report | B176: City Gateway | C176: 58841 | D176: Community Learning and Skills | E176: London | F176: Tower Hamlets | G176: ACL Voluntary organisation | H176: WBL - full (regional) | I176: 452623 | J176: 2015-03-16 | K176: 2015-03-19 | L176: Published | M176: 2015-04-22 | N176: 364060 | O176: 2010-12-03 | P176: 1 | Q176: 2 | R176: - | S176: - | T176: - | U176: - | V176: 2 | W176: 2 | X176: - | Y176: - | Z176: - | AA176: 2 | AB176: - | AC176: - | AD176: - | AE176: - | AF176: 2 | AG176: 2 | AH176: - | AI176: - | AJ176: - | AK176: 2 | AL176: - | AM176: - | AN176: - | AO176: - | AP176: 1 | AQ176: 2 | AR176: - | AS176: - | AT176: - | AU176: 2 | AV176: - | AW176: - | AX176: - | AY176: - | AZ176: 1 | BA176: 2 | BB176: - | BC176: - | BD176: - | BE176: 1 | BF176: - | BG176: - | BH176: - | BI176: - | BJ176: 1 | BK176: 1 | BL176: - | BM176: - | BN176: - | BO176: Declined
A177: Report | B177: Focus Training (SW) Limited | C177: 50126 | D177: Independent Learning Provider | E177: South West | F177: Plymouth | G177: Independent Learning Provider | H177: WBL - full (regional) | I177: 452974 | J177: 2015-03-16 | K177: 2015-03-20 | L177: Published | M177: 2015-05-01 | N177: 376243 | O177: 2011-09-30 | P177: 2 | Q177: 2 | R177: - | S177: - | T177: 2 | U177: - | V177: - | W177: 2 | X177: - | Y177: - | Z177: 2 | AA177: 2 | AB177: - | AC177: - | AD177: 2 | AE177: - | AF177: - | AG177: 2 | AH177: - | AI177: - | AJ177: 2 | AK177: 2 | AL177: - | AM177: - | AN177: 2 | AO177: - | AP177: - | AQ177: 2 | AR177: - | AS177: - | AT177: 2 | AU177: 2 | AV177: - | AW177: - | AX177: 2 | AY177: - | AZ177: - | BA177: 2 | BB177: - | BC177: - | BD177: 2 | BE177: 2 | BF177: - | BG177: - | BH177: 2 | BI177: - | BJ177: - | BK177: 2 | BL177: - | BM177: - | BN177: 2 | BO177: Same
A178: Report | B178: Royal Borough of Kingston upon Thames Council | C178: 54196 | D178: Community Learning and Skills | E178: London | F178: Kingston Upon Thames | G178: ACL Local Authority | H178: ACL - requires improvement | I178: 434390 | J178: 2015-03-17 | K178: 2015-03-20 | L178: Published | M178: 2015-05-08 | N178: 423422 | O178: 2013-10-11 | P178: 3 | Q178: 2 | R178: - | S178: - | T178: - | U178: 2 | V178: 2 | W178: 2 | X178: 2 | Y178: - | Z178: - | AA178: 2 | AB178: - | AC178: - | AD178: - | AE178: 2 | AF178: 2 | AG178: 2 | AH178: 2 | AI178: - | AJ178: - | AK178: 2 | AL178: - | AM178: - | AN178: - | AO178: 2 | AP178: 2 | AQ178: 2 | AR178: 2 | AS178: - | AT178: - | AU178: 2 | AV178: - | AW178: - | AX178: - | AY178: 2 | AZ178: 2 | BA178: 2 | BB178: 2 | BC178: - | BD178: - | BE178: 2 | BF178: - | BG178: - | BH178: - | BI178: 2 | BJ178: 2 | BK178: 2 | BL178: 2 | BM178: - | BN178: - | BO178: Improved
A179: Report | B179: Hartpury College | C179: 130687 | D179: Specialist Further Education | E179: South West | F179: Gloucestershire | G179: Further Education | H179: FE College - full inspection | I179: 452550 | J179: 2015-03-17 | K179: 2015-03-20 | L179: Published | M179: 2015-04-29 | N179: 345455 | O179: 2009-11-27 | P179: 1 | Q179: 2 | R179: - | S179: - | T179: - | U179: 2 | V179: 2 | W179: 2 | X179: - | Y179: - | Z179: - | AA179: 2 | AB179: - | AC179: - | AD179: - | AE179: 2 | AF179: 2 | AG179: 2 | AH179: - | AI179: - | AJ179: - | AK179: 2 | AL179: - | AM179: - | AN179: - | AO179: 2 | AP179: 2 | AQ179: 2 | AR179: - | AS179: - | AT179: - | AU179: 2 | AV179: - | AW179: - | AX179: - | AY179: 2 | AZ179: 2 | BA179: 2 | BB179: - | BC179: - | BD179: - | BE179: 2 | BF179: - | BG179: - | BH179: - | BI179: 2 | BJ179: 2 | BK179: 2 | BL179: - | BM179: - | BN179: - | BO179: Declined
A180: Report | B180: Bolton College | C180: 130495 | D180: General Further Education/Tertiary College | E180: North West | F180: Bolton | G180: Further Education | H180: FE College - full inspection | I180: 455663 | J180: 2015-03-16 | K180: 2015-03-20 | L180: Published | M180: 2015-04-22 | N180: 345809 | O180: 2010-05-14 | P180: 2 | Q180: 3 | R180: - | S180: - | T180: - | U180: 3 | V180: 3 | W180: 4 | X180: 2 | Y180: - | Z180: - | AA180: 3 | AB180: - | AC180: - | AD180: - | AE180: 3 | AF180: 3 | AG180: 4 | AH180: 2 | AI180: - | AJ180: - | AK180: 2 | AL180: - | AM180: - | AN180: - | AO180: 2 | AP180: 2 | AQ180: 3 | AR180: 2 | AS180: - | AT180: - | AU180: 3 | AV180: - | AW180: - | AX180: - | AY180: 3 | AZ180: 3 | BA180: 3 | BB180: 2 | BC180: - | BD180: - | BE180: 2 | BF180: - | BG180: - | BH180: - | BI180: 2 | BJ180: 2 | BK180: 2 | BL180: 2 | BM180: - | BN180: - | BO180: Declined
A181: Report | B181: Stratford-upon-Avon College | C181: 130837 | D181: General Further Education/Tertiary College | E181: West Midlands | F181: Warwickshire | G181: Further Education | H181: FE College - requires improvement | I181: 433769 | J181: 2015-03-17 | K181: 2015-03-20 | L181: Published | M181: 2015-04-09 | N181: 423367 | O181: 2013-10-04 | P181: 3 | Q181: 2 | R181: - | S181: - | T181: - | U181: 2 | V181: 2 | W181: - | X181: - | Y181: - | Z181: - | AA181: 3 | AB181: - | AC181: - | AD181: - | AE181: 3 | AF181: 2 | AG181: - | AH181: - | AI181: - | AJ181: - | AK181: 2 | AL181: - | AM181: - | AN181: - | AO181: 2 | AP181: 2 | AQ181: - | AR181: - | AS181: - | AT181: - | AU181: 2 | AV181: - | AW181: - | AX181: - | AY181: 2 | AZ181: 2 | BA181: - | BB181: - | BC181: - | BD181: - | BE181: 2 | BF181: - | BG181: - | BH181: - | BI181: 2 | BJ181: 2 | BK181: - | BL181: - | BM181: - | BN181: - | BO181: Improved
A182: Report | B182: Cheshire West and Chester Council | C182: 58930 | D182: Community Learning and Skills | E182: North West | F182: Cheshire West and Chester | G182: ACL Local Authority | H182: Adult and community - full (national) | I182: 452624 | J182: 2015-03-17 | K182: 2015-03-20 | L182: Published | M182: 2015-04-22 | N182: 363137 | O182: 2011-01-21 | P182: 2 | Q182: 2 | R182: - | S182: - | T182: - | U182: - | V182: - | W182: - | X182: 2 | Y182: - | Z182: - | AA182: 2 | AB182: - | AC182: - | AD182: - | AE182: - | AF182: - | AG182: - | AH182: 2 | AI182: - | AJ182: - | AK182: 2 | AL182: - | AM182: - | AN182: - | AO182: - | AP182: - | AQ182: - | AR182: 2 | AS182: - | AT182: - | AU182: 2 | AV182: - | AW182: - | AX182: - | AY182: - | AZ182: - | BA182: - | BB182: 2 | BC182: - | BD182: - | BE182: 2 | BF182: - | BG182: - | BH182: - | BI182: - | BJ182: - | BK182: - | BL182: 2 | BM182: - | BN182: - | BO182: Same
A183: Report | B183: Weir Training Limited | C183: 55295 | D183: Independent Learning Provider | E183: South East | F183: Surrey | G183: Independent Learning Provider | H183: WBL - full (regional) | I183: 452984 | J183: 2015-03-16 | K183: 2015-03-20 | L183: Published | M183: 2015-04-23 | N183: 333250 | O183: 2009-07-23 | P183: 2 | Q183: 2 | R183: - | S183: - | T183: - | U183: - | V183: - | W183: 2 | X183: - | Y183: - | Z183: - | AA183: 2 | AB183: - | AC183: - | AD183: - | AE183: - | AF183: - | AG183: 2 | AH183: - | AI183: - | AJ183: - | AK183: 2 | AL183: - | AM183: - | AN183: - | AO183: - | AP183: - | AQ183: 2 | AR183: - | AS183: - | AT183: - | AU183: 2 | AV183: - | AW183: - | AX183: - | AY183: - | AZ183: - | BA183: 2 | BB183: - | BC183: - | BD183: - | BE183: 2 | BF183: - | BG183: - | BH183: - | BI183: - | BJ183: - | BK183: 2 | BL183: - | BM183: - | BN183: - | BO183: Same
A184: Report | B184: Furness College | C184: 130633 | D184: General Further Education/Tertiary College | E184: North West | F184: Cumbria | G184: Further Education | H184: FE College - full inspection | I184: 452487 | J184: 2015-03-24 | K184: 2015-03-27 | L184: Published | M184: 2015-05-01 | N184: 362659 | O184: 2010-12-10 | P184: 2 | Q184: 2 | R184: - | S184: - | T184: - | U184: 2 | V184: 2 | W184: 2 | X184: - | Y184: - | Z184: - | AA184: 2 | AB184: - | AC184: - | AD184: - | AE184: 2 | AF184: 2 | AG184: 2 | AH184: - | AI184: - | AJ184: - | AK184: 2 | AL184: - | AM184: - | AN184: - | AO184: 2 | AP184: 2 | AQ184: 2 | AR184: - | AS184: - | AT184: - | AU184: 2 | AV184: - | AW184: - | AX184: - | AY184: 2 | AZ184: 2 | BA184: 2 | BB184: - | BC184: - | BD184: - | BE184: 2 | BF184: - | BG184: - | BH184: - | BI184: 2 | BJ184: 2 | BK184: 2 | BL184: - | BM184: - | BN184: - | BO184: Same
A185: Report | B185: Open Door Adult Learning Centre | C185: 53746 | D185: Community Learning and Skills | E185: North East, Yorkshire & Humber | F185: Sheffield | G185: ACL Voluntary organisation | H185: Adult and Community - full (regional) | I185: 452615 | J185: 2015-03-24 | K185: 2015-03-27 | L185: Published | M185: 2015-05-01 | N185: 320075 | O185: 2008-01-25 | P185: 1 | Q185: 3 | R185: - | S185: - | T185: - | U185: - | V185: 3 | W185: - | X185: - | Y185: - | Z185: - | AA185: 3 | AB185: - | AC185: - | AD185: - | AE185: - | AF185: 3 | AG185: - | AH185: - | AI185: - | AJ185: - | AK185: 2 | AL185: - | AM185: - | AN185: - | AO185: - | AP185: 2 | AQ185: - | AR185: - | AS185: - | AT185: - | AU185: 3 | AV185: - | AW185: - | AX185: - | AY185: - | AZ185: 3 | BA185: - | BB185: - | BC185: - | BD185: - | BE185: 3 | BF185: - | BG185: - | BH185: - | BI185: - | BJ185: 3 | BK185: - | BL185: - | BM185: - | BN185: - | BO185: Declined
A186: Report | B186: Enfield London Borough Council | C186: 53116 | D186: Community Learning and Skills | E186: London | F186: Enfield | G186: ACL Local Authority | H186: Adult and community - full (national) | I186: 452607 | J186: 2015-03-24 | K186: 2015-03-27 | L186: Published | M186: 2015-05-08 | N186: 366693 | O186: 2011-04-01 | P186: 2 | Q186: 2 | R186: - | S186: - | T186: - | U186: 3 | V186: - | W186: 2 | X186: 2 | Y186: - | Z186: - | AA186: 2 | AB186: - | AC186: - | AD186: - | AE186: 3 | AF186: - | AG186: 2 | AH186: 2 | AI186: - | AJ186: - | AK186: 2 | AL186: - | AM186: - | AN186: - | AO186: 3 | AP186: - | AQ186: 2 | AR186: 2 | AS186: - | AT186: - | AU186: 2 | AV186: - | AW186: - | AX186: - | AY186: 3 | AZ186: - | BA186: 2 | BB186: 2 | BC186: - | BD186: - | BE186: 2 | BF186: - | BG186: - | BH186: - | BI186: 2 | BJ186: - | BK186: 2 | BL186: 2 | BM186: - | BN186: - | BO186: Same
A187: Report | B187: Redbridge Institute of Adult Education | C187: 53141 | D187: Community Learning and Skills | E187: London | F187: Redbridge | G187: ACL Local Authority | H187: Adult and Community - full (regional) | I187: 452608 | J187: 2015-03-23 | K187: 2015-03-27 | L187: Published | M187: 2015-05-08 | N187: 330815 | O187: 2009-03-13 | P187: 2 | Q187: 2 | R187: - | S187: - | T187: - | U187: - | V187: - | W187: - | X187: 2 | Y187: - | Z187: - | AA187: 2 | AB187: - | AC187: - | AD187: - | AE187: - | AF187: - | AG187: - | AH187: 2 | AI187: - | AJ187: - | AK187: 2 | AL187: - | AM187: - | AN187: - | AO187: - | AP187: - | AQ187: - | AR187: 2 | AS187: - | AT187: - | AU187: 2 | AV187: - | AW187: - | AX187: - | AY187: - | AZ187: - | BA187: - | BB187: 2 | BC187: - | BD187: - | BE187: 2 | BF187: - | BG187: - | BH187: - | BI187: - | BJ187: - | BK187: - | BL187: 2 | BM187: - | BN187: - | BO187: Same
A188: Report | B188: Thomas Cook Group UK Limited | C188: 58184 | D188: Employer | E188: East of England | F188: Peterborough | G188: Employer | H188: Work Based Learning - full (national) | I188: 452987 | J188: 2015-03-23 | K188: 2015-03-27 | L188: Published | M188: 2015-04-30 | N188: 332129 | O188: 2009-06-19 | P188: 2 | Q188: 1 | R188: - | S188: - | T188: - | U188: - | V188: - | W188: 1 | X188: - | Y188: - | Z188: - | AA188: 1 | AB188: - | AC188: - | AD188: - | AE188: - | AF188: - | AG188: 1 | AH188: - | AI188: - | AJ188: - | AK188: 1 | AL188: - | AM188: - | AN188: - | AO188: - | AP188: - | AQ188: 1 | AR188: - | AS188: - | AT188: - | AU188: 1 | AV188: - | AW188: - | AX188: - | AY188: - | AZ188: - | BA188: 1 | BB188: - | BC188: - | BD188: - | BE188: 2 | BF188: - | BG188: - | BH188: - | BI188: - | BJ188: - | BK188: 2 | BL188: - | BM188: - | BN188: - | BO188: Improved
A189: Report | B189: Astute Minds Ltd | C189: 59168 | D189: Independent Learning Provider | E189: London | F189: Camden | G189: Independent Learning Provider | H189: WBL - full (regional) | I189: 455611 | J189: 2015-03-24 | K189: 2015-03-27 | L189: Published | M189: 2015-04-27 | N189: NULL | O189: NULL | P189: NULL | Q189: 2 | R189: - | S189: - | T189: - | U189: - | V189: - | W189: 2 | X189: - | Y189: - | Z189: - | AA189: 3 | AB189: - | AC189: - | AD189: - | AE189: - | AF189: - | AG189: 3 | AH189: - | AI189: - | AJ189: - | AK189: 2 | AL189: - | AM189: - | AN189: - | AO189: - | AP189: - | AQ189: 2 | AR189: - | AS189: - | AT189: - | AU189: 2 | AV189: - | AW189: - | AX189: - | AY189: - | AZ189: - | BA189: 2 | BB189: - | BC189: - | BD189: - | BE189: 2 | BF189: - | BG189: - | BH189: - | BI189: - | BJ189: - | BK189: 2 | BL189: - | BM189: - | BN189: - | BO189: No previous inspection
A190: Report | B190: Strathmore College | C190: 132021 | D190: Independent Specialist College | E190: West Midlands | F190: Stoke-On-Trent | G190: Special College | H190: ISC - requires improvement | I190: 446033 | J190: 2015-03-25 | K190: 2015-03-27 | L190: Published | M190: 2015-04-29 | N190: 429195 | O190: 2014-02-27 | P190: 3 | Q190: 2 | R190: - | S190: - | T190: - | U190: 2 | V190: 2 | W190: - | X190: - | Y190: - | Z190: - | AA190: 2 | AB190: - | AC190: - | AD190: - | AE190: 2 | AF190: 2 | AG190: - | AH190: - | AI190: - | AJ190: - | AK190: 2 | AL190: - | AM190: - | AN190: - | AO190: 2 | AP190: 2 | AQ190: - | AR190: - | AS190: - | AT190: - | AU190: 2 | AV190: - | AW190: - | AX190: - | AY190: 2 | AZ190: 2 | BA190: - | BB190: - | BC190: - | BD190: - | BE190: 2 | BF190: - | BG190: - | BH190: - | BI190: 2 | BJ190: 2 | BK190: - | BL190: - | BM190: - | BN190: - | BO190: Improved
A191: Report | B191: New College Stamford | C191: 130760 | D191: General Further Education/Tertiary College | E191: East Midlands | F191: Lincolnshire | G191: Further Education | H191: FE College - full inspection | I191: 452490 | J191: 2015-03-24 | K191: 2015-03-27 | L191: Published | M191: 2015-04-29 | N191: 365901 | O191: 2011-05-20 | P191: 2 | Q191: 3 | R191: - | S191: - | T191: - | U191: 3 | V191: 3 | W191: 3 | X191: - | Y191: - | Z191: - | AA191: 3 | AB191: - | AC191: - | AD191: - | AE191: 3 | AF191: 3 | AG191: 3 | AH191: - | AI191: - | AJ191: - | AK191: 3 | AL191: - | AM191: - | AN191: - | AO191: 3 | AP191: 3 | AQ191: 3 | AR191: - | AS191: - | AT191: - | AU191: 3 | AV191: - | AW191: - | AX191: - | AY191: 3 | AZ191: 3 | BA191: 3 | BB191: - | BC191: - | BD191: - | BE191: 2 | BF191: - | BG191: - | BH191: - | BI191: 2 | BJ191: 2 | BK191: 2 | BL191: - | BM191: - | BN191: - | BO191: Declined
A192: =IF(C192 <> "", HYPERLINK(CONCATENATE("http://reports.ofsted.gov.uk/inspection-reports/find-inspection-report/provider/ELS/",C192),"Report"),"") -> Report | B192: YMCA Training | C192: 57598 | D192: Community Learning and Skills | E192: North West | F192: Stockport | G192: ACL Voluntary organisation | H192: Work Based Learning - full (national) | I192: 452735 | J192: 2015-03-23 | K192: 2015-03-27 | L192: Published | M192: 2015-04-29 | N192: 345914 | O192: 2010-05-28 | P192: 2 | Q192: 3 | R192: - | S192: - | T192: 2 | U192: 3 | V192: 2 | W192: 2 | X192: - | Y192: - | Z192: - | AA192: 3 | AB192: - | AC192: - | AD192: 2 | AE192: 3 | AF192: 2 | AG192: 2 | AH192: - | AI192: - | AJ192: - | AK192: 3 | AL192: - | AM192: - | AN192: 2 | AO192: 3 | AP192: 2 | AQ192: 2 | AR192: - | AS192: - | AT192: - | AU192: 3 | AV192: - | AW192: - | AX192: 3 | AY192: 3 | AZ192: 3 | BA192: 3 | BB192: - | BC192: - | BD192: - | BE192: 2 | BF192: - | BG192: - | BH192: 2 | BI192: 3 | BJ192: 2 | BK192: 2 | BL192: - | BM192: - | BN192: - | BO192: Declined
A193: Report | B193: Hudson & Hughes Training Limited | C193: 52396 | D193: Independent Learning Provider | E193: South West | F193: Somerset | G193: Independent Learning Provider | H193: WBL - full (regional) | I193: 452604 | J193: 2015-03-24 | K193: 2015-03-27 | L193: Published | M193: 2015-04-30 | N193: 365986 | O193: 2011-05-27 | P193: 2 | Q193: 2 | R193: - | S193: - | T193: 2 | U193: - | V193: 2 | W193: 2 | X193: - | Y193: - | Z193: - | AA193: 2 | AB193: - | AC193: - | AD193: 2 | AE193: - | AF193: 2 | AG193: 2 | AH193: - | AI193: - | AJ193: - | AK193: 2 | AL193: - | AM193: - | AN193: 2 | AO193: - | AP193: 2 | AQ193: 2 | AR193: - | AS193: - | AT193: - | AU193: 2 | AV193: - | AW193: - | AX193: 2 | AY193: - | AZ193: 2 | BA193: 2 | BB193: - | BC193: - | BD193: - | BE193: 3 | BF193: - | BG193: - | BH193: 3 | BI193: - | BJ193: 3 | BK193: 3 | BL193: - | BM193: - | BN193: - | BO193: Same
A194: =IF(C194 <> "", HYPERLINK(CONCATENATE("http://reports.ofsted.gov.uk/inspection-reports/find-inspection-report/provider/ELS/",C194),"Report"),"") -> Report | B194: Barrow-in-Furness Sixth Form College | C194: 130637 | D194: Sixth Form College | E194: North West | F194: Cumbria | G194: Further Education | H194: SFC - requires improvement | I194: 440399 | J194: 2015-04-14 | K194: 2015-04-17 | L194: Published | M194: 2015-05-21 | N194: 423381 | O194: 2013-11-15 | P194: 3 | Q194: 2 | R194: - | S194: - | T194: - | U194: 2 | V194: 2 | W194: - | X194: - | Y194: - | Z194: - | AA194: 2 | AB194: - | AC194: - | AD194: - | AE194: 2 | AF194: 2 | AG194: - | AH194: - | AI194: - | AJ194: - | AK194: 2 | AL194: - | AM194: - | AN194: - | AO194: 2 | AP194: 2 | AQ194: - | AR194: - | AS194: - | AT194: - | AU194: 2 | AV194: - | AW194: - | AX194: - | AY194: 2 | AZ194: 2 | BA194: - | BB194: - | BC194: - | BD194: - | BE194: 2 | BF194: - | BG194: - | BH194: - | BI194: 2 | BJ194: 2 | BK194: - | BL194: - | BM194: - | BN194: - | BO194: =IF(P194="Null","No previous inspection",IF(Q194>P194,"Declined", IF(Q194=P194,"Same",IF(Q194<P194,"Improved")))) -> Improved
A195: Report | B195: All Trades Training Limited | C195: 59124 | D195: Independent Learning Provider | E195: East of England | F195: Norfolk | G195: Independent Learning Provider | H195: WBL - requires improvement | I195: 440400 | J195: 2015-04-15 | K195: 2015-04-17 | L195: Published | M195: 2015-05-14 | N195: 423816 | O195: 2013-11-29 | P195: 3 | Q195: 2 | R195: - | S195: - | T195: - | U195: - | V195: - | W195: 2 | X195: - | Y195: - | Z195: - | AA195: 2 | AB195: - | AC195: - | AD195: - | AE195: - | AF195: - | AG195: 2 | AH195: - | AI195: - | AJ195: - | AK195: 2 | AL195: - | AM195: - | AN195: - | AO195: - | AP195: - | AQ195: 2 | AR195: - | AS195: - | AT195: - | AU195: 2 | AV195: - | AW195: - | AX195: - | AY195: - | AZ195: - | BA195: 2 | BB195: - | BC195: - | BD195: - | BE195: 2 | BF195: - | BG195: - | BH195: - | BI195: - | BJ195: - | BK195: 2 | BL195: - | BM195: - | BN195: - | BO195: Improved
A196: Report | B196: Calthorpe Vocational Trust | C196: 141435 | D196: Independent Specialist College | E196: West Midlands | F196: Birmingham | G196: Special College | H196: ISC - full inspection | I196: 455855 | J196: 2015-04-20 | K196: 2015-04-22 | L196: Published | M196: 2015-05-27 | N196: NULL | O196: NULL | P196: NULL | Q196: 2 | R196: - | S196: - | T196: - | U196: - | V196: 2 | W196: - | X196: - | Y196: - | Z196: - | AA196: 1 | AB196: - | AC196: - | AD196: - | AE196: - | AF196: 1 | AG196: - | AH196: - | AI196: - | AJ196: - | AK196: 2 | AL196: - | AM196: - | AN196: - | AO196: - | AP196: 2 | AQ196: - | AR196: - | AS196: - | AT196: - | AU196: 2 | AV196: - | AW196: - | AX196: - | AY196: - | AZ196: 2 | BA196: - | BB196: - | BC196: - | BD196: - | BE196: 2 | BF196: - | BG196: - | BH196: - | BI196: - | BJ196: 2 | BK196: - | BL196: - | BM196: - | BN196: - | BO196: No previous inspection
A197: Report | B197: Landau Forte Academy Tamworth Sixth Form | C197: 141491 | D197: Academy Converter | E197: West Midlands | F197: Staffordshire | G197: Academy 16-19 Sponsor Led | H197: 16-19 academy - full inspection | I197: 455817 | J197: 2015-04-21 | K197: 2015-04-24 | L197: Published | M197: 2015-07-10 | N197: NULL | O197: NULL | P197: NULL | Q197: 3 | R197: - | S197: - | T197: - | U197: 3 | V197: - | W197: - | X197: - | Y197: - | Z197: - | AA197: 3 | AB197: - | AC197: - | AD197: - | AE197: 3 | AF197: - | AG197: - | AH197: - | AI197: - | AJ197: - | AK197: 3 | AL197: - | AM197: - | AN197: - | AO197: 3 | AP197: - | AQ197: - | AR197: - | AS197: - | AT197: - | AU197: 3 | AV197: - | AW197: - | AX197: - | AY197: 3 | AZ197: - | BA197: - | BB197: - | BC197: - | BD197: - | BE197: 2 | BF197: - | BG197: - | BH197: - | BI197: 2 | BJ197: - | BK197: - | BL197: - | BM197: - | BN197: - | BO197: No previous inspection
A198: Report | B198: Kwik-Fit (GB) Limited | C198: 52896 | D198: Employer | E198: East Midlands | F198: Derby | G198: Employer | H198: WBL - requires improvement | I198: 434402 | J198: 2015-04-20 | K198: 2015-04-24 | L198: Published | M198: 2015-05-20 | N198: 423719 | O198: 2013-11-01 | P198: 3 | Q198: 1 | R198: - | S198: - | T198: - | U198: - | V198: - | W198: 1 | X198: - | Y198: - | Z198: - | AA198: 1 | AB198: - | AC198: - | AD198: - | AE198: - | AF198: - | AG198: 1 | AH198: - | AI198: - | AJ198: - | AK198: 1 | AL198: - | AM198: - | AN198: - | AO198: - | AP198: - | AQ198: 1 | AR198: - | AS198: - | AT198: - | AU198: 1 | AV198: - | AW198: - | AX198: - | AY198: - | AZ198: - | BA198: 1 | BB198: - | BC198: - | BD198: - | BE198: 1 | BF198: - | BG198: - | BH198: - | BI198: - | BJ198: - | BK198: 1 | BL198: - | BM198: - | BN198: - | BO198: Improved
A199: =IF(C199 <> "", HYPERLINK(CONCATENATE("http://reports.ofsted.gov.uk/inspection-reports/find-inspection-report/provider/ELS/",C199),"Report"),"") -> Report | B199: North West Training Council | C199: 53615 | D199: Community Learning and Skills | E199: North West | F199: Sefton | G199: ACL Voluntary organisation | H199: WBL - requires improvement | I199: 440402 | J199: 2015-04-20 | K199: 2015-04-24 | L199: Published | M199: 2015-06-02 | N199: 410920 | O199: 2013-11-15 | P199: 3 | Q199: 2 | R199: - | S199: - | T199: - | U199: - | V199: - | W199: 2 | X199: - | Y199: - | Z199: - | AA199: 2 | AB199: - | AC199: - | AD199: - | AE199: - | AF199: - | AG199: 2 | AH199: - | AI199: - | AJ199: - | AK199: 2 | AL199: - | AM199: - | AN199: - | AO199: - | AP199: - | AQ199: 2 | AR199: - | AS199: - | AT199: - | AU199: 2 | AV199: - | AW199: - | AX199: - | AY199: - | AZ199: - | BA199: 2 | BB199: - | BC199: - | BD199: - | BE199: 2 | BF199: - | BG199: - | BH199: - | BI199: - | BJ199: - | BK199: 2 | BL199: - | BM199: - | BN199: - | BO199: =IF(P199="Null","No previous inspection",IF(Q199>P199,"Declined", IF(Q199=P199,"Same",IF(Q199<P199,"Improved")))) -> Improved
A200: Report | B200: DV8 TRAINING (BRIGHTON) LIMITED | C200: 59191 | D200: Independent Learning Provider | E200: South East | F200: Brighton and Hove | G200: Independent Learning Provider | H200: WBL - full (regional) | I200: 455621 | J200: 2015-04-21 | K200: 2015-04-24 | L200: Published | M200: 2015-06-02 | N200: NULL | O200: NULL | P200: NULL | Q200: 3 | R200: - | S200: - | T200: - | U200: 3 | V200: - | W200: - | X200: - | Y200: - | Z200: - | AA200: 3 | AB200: - | AC200: - | AD200: - | AE200: 3 | AF200: - | AG200: - | AH200: - | AI200: - | AJ200: - | AK200: 3 | AL200: - | AM200: - | AN200: - | AO200: 3 | AP200: - | AQ200: - | AR200: - | AS200: - | AT200: - | AU200: 3 | AV200: - | AW200: - | AX200: - | AY200: 3 | AZ200: - | BA200: - | BB200: - | BC200: - | BD200: - | BE200: 2 | BF200: - | BG200: - | BH200: - | BI200: 2 | BJ200: - | BK200: - | BL200: - | BM200: - | BN200: - | BO200: No previous inspection
A201: Report | B201: Steps to Work (Walsall) Ltd | C201: 50202 | D201: Community Learning and Skills | E201: West Midlands | F201: Walsall | G201: ACL Voluntary organisation | H201: Adult and Community - full (regional) | I201: 455576 | J201: 2015-04-22 | K201: 2015-04-24 | L201: Published | M201: 2015-06-02 | N201: NULL | O201: NULL | P201: NULL | Q201: 3 | R201: - | S201: - | T201: - | U201: - | V201: - | W201: 3 | X201: - | Y201: - | Z201: - | AA201: 3 | AB201: - | AC201: - | AD201: - | AE201: - | AF201: - | AG201: 3 | AH201: - | AI201: - | AJ201: - | AK201: 3 | AL201: - | AM201: - | AN201: - | AO201: - | AP201: - | AQ201: 3 | AR201: - | AS201: - | AT201: - | AU201: 2 | AV201: - | AW201: - | AX201: - | AY201: - | AZ201: - | BA201: 2 | BB201: - | BC201: - | BD201: - | BE201: 1 | BF201: - | BG201: - | BH201: - | BI201: - | BJ201: - | BK201: 1 | BL201: - | BM201: - | BN201: - | BO201: No previous inspection
A202: Report | B202: City of Stoke-on-Trent Sixth Form College | C202: 130817 | D202: Sixth Form College | E202: West Midlands | F202: Stoke-On-Trent | G202: Further Education | H202: SFC - requires improvement 2nd inspection | I202: 446035 | J202: 2015-04-21 | K202: 2015-04-24 | L202: Published | M202: 2015-05-29 | N202: 429257 | O202: 2014-01-17 | P202: 3 | Q202: 2 | R202: - | S202: 2 | T202: - | U202: 2 | V202: 2 | W202: - | X202: - | Y202: - | Z202: - | AA202: 2 | AB202: - | AC202: 2 | AD202: - | AE202: 2 | AF202: 2 | AG202: - | AH202: - | AI202: - | AJ202: - | AK202: 2 | AL202: - | AM202: 2 | AN202: - | AO202: 2 | AP202: 2 | AQ202: - | AR202: - | AS202: - | AT202: - | AU202: 2 | AV202: - | AW202: 2 | AX202: - | AY202: 2 | AZ202: 2 | BA202: - | BB202: - | BC202: - | BD202: - | BE202: 2 | BF202: - | BG202: 2 | BH202: - | BI202: 2 | BJ202: 2 | BK202: - | BL202: - | BM202: - | BN202: - | BO202: Improved
A203: Report | B203: Veolia Environement Development Centre Limited | C203: 58179 | D203: Employer | E203: London | F203: Islington | G203: Employer | H203: WBL - requires improvement | I203: 440392 | J203: 2015-04-20 | K203: 2015-04-24 | L203: Published | M203: 2015-06-02 | N203: 423725 | O203: 2013-11-15 | P203: 3 | Q203: 3 | R203: - | S203: - | T203: - | U203: - | V203: - | W203: 3 | X203: - | Y203: - | Z203: - | AA203: 3 | AB203: - | AC203: - | AD203: - | AE203: - | AF203: - | AG203: 3 | AH203: - | AI203: - | AJ203: - | AK203: 3 | AL203: - | AM203: - | AN203: - | AO203: - | AP203: - | AQ203: 3 | AR203: - | AS203: - | AT203: - | AU203: 3 | AV203: - | AW203: - | AX203: - | AY203: - | AZ203: - | BA203: 3 | BB203: - | BC203: - | BD203: - | BE203: 3 | BF203: - | BG203: - | BH203: - | BI203: - | BJ203: - | BK203: 3 | BL203: - | BM203: - | BN203: - | BO203: Same
... 74 more rows

Sheet Pivot SSA (hidden)
A3: Count of Inspection Number | B3: Column Labels
A4: Row Labels | B4: 1 | C4: 2 | D4: 3 | E4: 4 | F4: Grand Total
A5: Agriculture, Horticulture and Animal Care | C5: 13 | D5: 5 | F5: 18
A6: Arts, Media and Publishing | B6: 11 | C6: 43 | D6: 15 | F6: 69
A7: Business, Administration and Law | B7: 5 | C7: 101 | D7: 74 | E7: 11 | F7: 191
A8: Community Development | D8: 1 | F8: 1
A9: Construction, Planning and the Built Environment | C9: 15 | D9: 13 | E9: 4 | F9: 32
A10: Education and Training | D10: 3 | F10: 3
A11: Engineering and Manufacturing Technologies | B11: 11 | C11: 34 | D11: 33 | E11: 2 | F11: 80
A12: Family Learning | B12: 1 | C12: 2 | D12: 1 | F12: 4
A13: Health, Public Services and Care | B13: 12 | C13: 65 | D13: 51 | E13: 2 | F13: 130
A14: Humanities | B14: 2 | C14: 2 | F14: 4
A15: Information and Communication Technology | B15: 4 | C15: 28 | D15: 7 | E15: 5 | F15: 44
A16: Languages, Literature and Culture | B16: 1 | C16: 9 | D16: 9 | E16: 2 | F16: 21
A17: Leisure, Travel and Tourism | B17: 10 | C17: 22 | D17: 3 | F17: 35
A18: Preparation for Life and Work | B18: 6 | C18: 91 | D18: 73 | E18: 18 | F18: 188
A19: Retail and Commercial Enterprise | B19: 4 | C19: 40 | D19: 19 | E19: 9 | F19: 72
A20: Science and Mathematics | B20: 1 | C20: 17 | D20: 28 | E20: 5 | F20: 51
A21: Social Sciences | C21: 3 | D21: 3 | E21: 2 | F21: 8
A22: Grand Total | B22: 68 | C22: 485 | D22: 338 | E22: 60 | F22: 951
A26: Count of Inspection Number | B26: Column Labels
A27: Row Labels | B27: 1 | C27: 2 | D27: 3 | E27: 4 | F27: Grand Total
A28: Accounting and Finance | B28: 2 | C28: 8 | D28: 8 | E28: 1 | F28: 19
A29: Administration | B29: 1 | C29: 47 | D29: 34 | E29: 2 | F29: 84
A30: Agriculture | C30: 2 | D30: 2 | F30: 4
A31: Animal care | C31: 2 | F31: 2
A32: Animal Care and Veterinary Science | C32: 5 | F32: 5
A33: Beauty Therapy | C33: 2 | F33: 2
A34: Building and Construction | C34: 6 | D34: 7 | E34: 3 | F34: 16
A35: Building Services | C35: 4 | D35: 1 | E35: 1 | F35: 6
A36: Business | B36: 1 | C36: 4 | D36: 4 | F36: 9
A37: Business Management | C37: 30 | D37: 23 | E37: 3 | F37: 56
A38: Call centre operations | E38: 1 | F38: 1
A39: Communications Technology | C39: 1 | F39: 1
A40: Community Development | D40: 1 | F40: 1
A41: Community Learning | C41: 7 | D41: 3 | E41: 1 | F41: 11
A42: Construction Crafts | C42: 5 | D42: 5 | F42: 10
A43: Customer service | C43: 6 | D43: 2 | E43: 4 | F43: 12
A44: Early Years and Playwork | B44: 5 | C44: 20 | D44: 16 | F44: 41
A45: Employability Training | B45: 2 | C45: 23 | D45: 17 | E45: 4 | F45: 46
A46: Engineering | B46: 5 | C46: 13 | D46: 12 | F46: 30
A47: English | B47: 1 | C47: 6 | D47: 8 | E47: 1 | F47: 16
A48: Environmental Conservation | D48: 1 | F48: 1
A49: Equine Studies | C49: 1 | D49: 1 | F49: 2
A50: ESOL | B50: 1 | C50: 11 | D50: 2 | E50: 1 | F50: 15
A51: Family Learning | B51: 1 | C51: 2 | D51: 1 | F51: 4
A52: Forestry | C52: 1 | F52: 1
A53: Foundation English | C53: 15 | D53: 21 | E53: 5 | F53: 41
A54: Foundation English and Mathematics | C54: 13 | D54: 7 | F54: 20
A55: Foundation mathematics | C55: 10 | D55: 17 | E55: 5 | F55: 32
A56: Hairdressing | B56: 1 | C56: 5 | D56: 2 | E56: 3 | F56: 11
A57: Hairdressing and beauty therapy | B57: 1 | C57: 10 | D57: 9 | E57: 1 | F57: 21
A58: Health and Social Care | B58: 5 | C58: 41 | D58: 30 | E58: 2 | F58: 78
A59: Health, Public Services and Care | C59: 1 | F59: 1
A60: History | B60: 1 | C60: 1 | F60: 2
A61: Horticulture | C61: 1 | F61: 1
A62: Horticulture and Forestry | C62: 1 | D62: 1 | F62: 2
A63: Hospitality and Catering | C63: 13 | D63: 2 | E63: 2 | F63: 17
A64: ICT for practitioners | B64: 3 | C64: 12 | D64: 3 | E64: 3 | F64: 21
A65: ICT for Users | B65: 1 | C65: 15 | D65: 4 | E65: 2 | F65: 22
A66: Independent living and leisure skills | B66: 3 | C66: 12 | D66: 6 | E66: 2 | F66: 23
A67: Law and Legal Services | B67: 1 | C67: 4 | D67: 2 | E67: 1 | F67: 8
A68: Leisure, Travel and Tourism | B68: 1 | F68: 1
A69: Manufacturing Technologies | B69: 3 | C69: 13 | D69: 7 | F69: 23
A70: Marketing and Sales | C70: 2 | D70: 1 | F70: 3
A71: Mathematics and Statistics | B71: 1 | C71: 4 | D71: 15 | E71: 1 | F71: 21
A72: Media and Communication | B72: 1 | C72: 6 | D72: 6 | F72: 13
A73: Modern foreign languages | C73: 3 | D73: 1 | E73: 1 | F73: 5
A74: Motor vehicle | B74: 1 | C74: 6 | D74: 10 | F74: 17
A75: Nursing and Dental Health | B75: 1 | C75: 1 | D75: 2 | F75: 4
A76: Performing Arts | B76: 3 | C76: 13 | D76: 3 | F76: 19
A77: Psychology | C77: 3 | E77: 1 | F77: 4
A78: Public Services | B78: 3 | C78: 7 | D78: 3 | F78: 13
A79: Retailing and Wholesaling | C79: 5 | D79: 2 | E79: 1 | F79: 8
A80: Science | C80: 11 | D80: 13 | E80: 3 | F80: 27
A81: Science and Mathematics | E81: 1 | F81: 1
A82: Service Enterprises | C82: 1 | E82: 1 | F82: 2
A83: Social Sciences | C83: 1 | D83: 3 | F83: 4
A84: Sociology and Social Policy | C84: 1 | E84: 1 | F84: 2
A85: Sport | B85: 4 | C85: 11 | D85: 2 | F85: 17
A86: Sport, Leisure and Recreation | B86: 2 | C86: 6 | F86: 8
A87: Teaching and Lecturing | D87: 2 | F87: 2
A88: Theology and Religious Studies | B88: 1 | C88: 1 | F88: 2
A89: Training to Provide Learning Support | D89: 1 | F89: 1
A90: Transportation operations and maintenance | B90: 2 | C90: 2 | D90: 4 | E90: 2 | F90: 10
A91: Travel and Tourism | B91: 1 | D91: 1 | F91: 2
A92: Visual Arts | B92: 7 | C92: 24 | D92: 6 | F92: 37
A93: Warehousing and Distribution | B93: 2 | C93: 4 | D93: 4 | F93: 10
A94: Grand Total | B94: 68 | C94: 485 | D94: 338 | E94: 60 | F94: 951

Sheet Sector subject area data
A1: Sector subject area judgements for further education and skills providers inspected since 1 September 2014
A3: Report | B3: Provider Name | C3: URN | D3: Local authority | E3: Ofsted region | F3: Provider type | G3: Inspection Type | H3: Inspection Number | I3: Inspection Start Date | J3: Inspection End Date | K3: Inspection Status | L3: Inspection Report Published | M3: SSA 1 code | N3: SSA 1 descriptor | O3: SSA 2 code | P3: SSA 2 descriptor | Q3: Outcome
A4: =IF(C4 <> "", HYPERLINK(CONCATENATE("http://reports.ofsted.gov.uk/inspection-reports/find-inspection-report/provider/ELS/",C4),"Report"),"") -> Report | B4: Canterbury College | C4: 130730 | D4: Kent | E4: South East | F4: General Further Education/Tertiary College | G4: FE College - requires improvement | H4: 440396 | I4: 2015-05-11 | J4: 2015-05-15 | K4: Published | L4: 2015-06-22 | M4: 1 | N4: Health, Public Services and Care | O4: 400 | P4: Public Services | Q4: 3
A5: Report | B5: Canterbury College | C5: 130730 | D5: Kent | E5: South East | F5: General Further Education/Tertiary College | G5: FE College - requires improvement | H5: 440396 | I5: 2015-05-11 | J5: 2015-05-15 | K5: Published | L5: 2015-06-22 | M5: 4 | N5: Engineering and Manufacturing Technologies | O5: 300 | P5: Motor vehicle | Q5: 3
A6: Report | B6: Canterbury College | C6: 130730 | D6: Kent | E6: South East | F6: General Further Education/Tertiary College | G6: FE College - requires improvement | H6: 440396 | I6: 2015-05-11 | J6: 2015-05-15 | K6: Published | L6: 2015-06-22 | M6: 6 | N6: Information and Communication Technology | O6: 200 | P6: ICT for Users | Q6: 4
A7: Report | B7: Canterbury College | C7: 130730 | D7: Kent | E7: South East | F7: General Further Education/Tertiary College | G7: FE College - requires improvement | H7: 440396 | I7: 2015-05-11 | J7: 2015-05-15 | K7: Published | L7: 2015-06-22 | M7: 7 | N7: Retail and Commercial Enterprise | O7: 301 | P7: Hairdressing and beauty therapy | Q7: 3
A8: Report | B8: Canterbury College | C8: 130730 | D8: Kent | E8: South East | F8: General Further Education/Tertiary College | G8: FE College - requires improvement | H8: 440396 | I8: 2015-05-11 | J8: 2015-05-15 | K8: Published | L8: 2015-06-22 | M8: 14 | N8: Preparation for Life and Work | O8: 112 | P8: Foundation English | Q8: 3
A9: Report | B9: Canterbury College | C9: 130730 | D9: Kent | E9: South East | F9: General Further Education/Tertiary College | G9: FE College - requires improvement | H9: 440396 | I9: 2015-05-11 | J9: 2015-05-15 | K9: Published | L9: 2015-06-22 | M9: 4 | N9: Engineering and Manufacturing Technologies | O9: 100 | P9: Engineering | Q9: 3
A10: Report | B10: Canterbury College | C10: 130730 | D10: Kent | E10: South East | F10: General Further Education/Tertiary College | G10: FE College - requires improvement | H10: 440396 | I10: 2015-05-11 | J10: 2015-05-15 | K10: Published | L10: 2015-06-22 | M10: 6 | N10: Information and Communication Technology | O10: 100 | P10: ICT for practitioners | Q10: 4
A11: Report | B11: Canterbury College | C11: 130730 | D11: Kent | E11: South East | F11: General Further Education/Tertiary College | G11: FE College - requires improvement | H11: 440396 | I11: 2015-05-11 | J11: 2015-05-15 | K11: Published | L11: 2015-06-22 | M11: 14 | N11: Preparation for Life and Work | O11: 113 | P11: Foundation mathematics | Q11: 3
A12: Report | B12: Canterbury College | C12: 130730 | D12: Kent | E12: South East | F12: General Further Education/Tertiary College | G12: FE College - requires improvement | H12: 440396 | I12: 2015-05-11 | J12: 2015-05-15 | K12: Published | L12: 2015-06-22 | M12: 9 | N12: Arts, Media and Publishing | O12: 200 | P12: Visual Arts | Q12: 1
A13: Report | B13: East Surrey College | C13: 130824 | D13: Surrey | E13: South East | F13: General Further Education/Tertiary College | G13: FE College - full inspection | H13: 446540 | I13: 2014-12-09 | J13: 2014-12-12 | K13: Published | L13: 2015-01-21 | M13: 14 | N13: Preparation for Life and Work | O13: 112 | P13: Foundation English | Q13: 2
A14: Report | B14: East Surrey College | C14: 130824 | D14: Surrey | E14: South East | F14: General Further Education/Tertiary College | G14: FE College - full inspection | H14: 446540 | I14: 2014-12-09 | J14: 2014-12-12 | K14: Published | L14: 2015-01-21 | M14: 1 | N14: Health, Public Services and Care | O14: 300 | P14: Health and Social Care | Q14: 1
A15: Report | B15: East Surrey College | C15: 130824 | D15: Surrey | E15: South East | F15: General Further Education/Tertiary College | G15: FE College - full inspection | H15: 446540 | I15: 2014-12-09 | J15: 2014-12-12 | K15: Published | L15: 2015-01-21 | M15: 1 | N15: Health, Public Services and Care | O15: 500 | P15: Early Years and Playwork | Q15: 1
A16: Report | B16: East Surrey College | C16: 130824 | D16: Surrey | E16: South East | F16: General Further Education/Tertiary College | G16: FE College - full inspection | H16: 446540 | I16: 2014-12-09 | J16: 2014-12-12 | K16: Published | L16: 2015-01-21 | M16: 9 | N16: Arts, Media and Publishing | O16: 300 | P16: Media and Communication | Q16: 1
A17: Report | B17: East Surrey College | C17: 130824 | D17: Surrey | E17: South East | F17: General Further Education/Tertiary College | G17: FE College - full inspection | H17: 446540 | I17: 2014-12-09 | J17: 2014-12-12 | K17: Published | L17: 2015-01-21 | M17: 15 | N17: Business, Administration and Law | O17: 100 | P17: Accounting and Finance | Q17: 2
A18: Report | B18: East Surrey College | C18: 130824 | D18: Surrey | E18: South East | F18: General Further Education/Tertiary College | G18: FE College - full inspection | H18: 446540 | I18: 2014-12-09 | J18: 2014-12-12 | K18: Published | L18: 2015-01-21 | M18: 5 | N18: Construction, Planning and the Built Environment | O18: 200 | P18: Building and Construction | Q18: 3
A19: Report | B19: East Surrey College | C19: 130824 | D19: Surrey | E19: South East | F19: General Further Education/Tertiary College | G19: FE College - full inspection | H19: 446540 | I19: 2014-12-09 | J19: 2014-12-12 | K19: Published | L19: 2015-01-21 | M19: 9 | N19: Arts, Media and Publishing | O19: 200 | P19: Visual Arts | Q19: 1
A20: Report | B20: East Surrey College | C20: 130824 | D20: Surrey | E20: South East | F20: General Further Education/Tertiary College | G20: FE College - full inspection | H20: 446540 | I20: 2014-12-09 | J20: 2014-12-12 | K20: Published | L20: 2015-01-21 | M20: 15 | N20: Business, Administration and Law | O20: 300 | P20: Business Management | Q20: 2
A21: Report | B21: King George V College | C21: 130492 | D21: Sefton | E21: North West | F21: Sixth Form College | G21: SFC - full inspection | H21: 446535 | I21: 2014-09-16 | J21: 2014-09-19 | K21: Published | L21: 2014-10-23 | M21: 12 | N21: Languages, Literature and Culture | O21: 202 | P21: Modern foreign languages | Q21: 4
A22: Report | B22: King George V College | C22: 130492 | D22: Sefton | E22: North West | F22: Sixth Form College | G22: SFC - full inspection | H22: 446535 | I22: 2014-09-16 | J22: 2014-09-19 | K22: Published | L22: 2014-10-23 | M22: 15 | N22: Business, Administration and Law | O22: 600 | P22: Business | Q22: 3
A23: Report | B23: King George V College | C23: 130492 | D23: Sefton | E23: North West | F23: Sixth Form College | G23: SFC - full inspection | H23: 446535 | I23: 2014-09-16 | J23: 2014-09-19 | K23: Published | L23: 2014-10-23 | M23: 15 | N23: Business, Administration and Law | O23: 500 | P23: Law and Legal Services | Q23: 4
A24: Report | B24: North Shropshire College | C24: 130797 | D24: Shropshire | E24: West Midlands | F24: General Further Education/Tertiary College | G24: FE College - requires improvement | H24: 430280 | I24: 2014-10-14 | J24: 2014-10-17 | K24: Published | L24: 2014-11-21 | M24: 8 | N24: Leisure, Travel and Tourism | O24: 100 | P24: Sport, Leisure and Recreation | Q24: 2
A25: Report | B25: North Shropshire College | C25: 130797 | D25: Shropshire | E25: West Midlands | F25: General Further Education/Tertiary College | G25: FE College - requires improvement | H25: 430280 | I25: 2014-10-14 | J25: 2014-10-17 | K25: Published | L25: 2014-11-21 | M25: 2 | N25: Science and Mathematics | O25: 200 | P25: Mathematics and Statistics | Q25: 3
A26: Report | B26: North Shropshire College | C26: 130797 | D26: Shropshire | E26: West Midlands | F26: General Further Education/Tertiary College | G26: FE College - requires improvement | H26: 430280 | I26: 2014-10-14 | J26: 2014-10-17 | K26: Published | L26: 2014-11-21 | M26: 14 | N26: Preparation for Life and Work | O26: 108 | P26: Independent living and leisure skills | Q26: 3
A27: Report | B27: North Shropshire College | C27: 130797 | D27: Shropshire | E27: West Midlands | F27: General Further Education/Tertiary College | G27: FE College - requires improvement | H27: 430280 | I27: 2014-10-14 | J27: 2014-10-17 | K27: Published | L27: 2014-11-21 | M27: 2 | N27: Science and Mathematics | O27: 100 | P27: Science | Q27: 3
A28: Report | B28: North Shropshire College | C28: 130797 | D28: Shropshire | E28: West Midlands | F28: General Further Education/Tertiary College | G28: FE College - requires improvement | H28: 430280 | I28: 2014-10-14 | J28: 2014-10-17 | K28: Published | L28: 2014-11-21 | M28: 3 | N28: Agriculture, Horticulture and Animal Care | O28: 100 | P28: Agriculture | Q28: 3
A29: Report | B29: New College Telford | C29: 130801 | D29: Telford and Wrekin | E29: West Midlands | F29: Sixth Form College | G29: SFC - full inspection | H29: 452492 | I29: 2015-02-10 | J29: 2015-02-13 | K29: Published | L29: 2015-03-19 | M29: 15 | N29: Business, Administration and Law | O29: 300 | P29: Business Management | Q29: 2
A30: Report | B30: New College Telford | C30: 130801 | D30: Telford and Wrekin | E30: West Midlands | F30: Sixth Form College | G30: SFC - full inspection | H30: 452492 | I30: 2015-02-10 | J30: 2015-02-13 | K30: Published | L30: 2015-03-19 | M30: 15 | N30: Business, Administration and Law | O30: 500 | P30: Law and Legal Services | Q30: 2
A31: Report | B31: New College Telford | C31: 130801 | D31: Telford and Wrekin | E31: West Midlands | F31: Sixth Form College | G31: SFC - full inspection | H31: 452492 | I31: 2015-02-10 | J31: 2015-02-13 | K31: Published | L31: 2015-03-19 | M31: 2 | N31: Science and Mathematics | O31: 100 | P31: Science | Q31: 2
A32: Report | B32: Milton Keynes College | C32: 130609 | D32: Milton Keynes | E32: South East | F32: General Further Education/Tertiary College | G32: FE College - requires improvement | H32: 447346 | I32: 2015-06-08 | J32: 2015-06-12 | K32: Published | L32: 2015-07-17 | M32: 8 | N32: Leisure, Travel and Tourism | O32: 101 | P32: Sport | Q32: 2
A33: Report | B33: Milton Keynes College | C33: 130609 | D33: Milton Keynes | E33: South East | F33: General Further Education/Tertiary College | G33: FE College - requires improvement | H33: 447346 | I33: 2015-06-08 | J33: 2015-06-12 | K33: Published | L33: 2015-07-17 | M33: 5 | N33: Construction, Planning and the Built Environment | O33: 202 | P33: Construction Crafts | Q33: 3
A34: Report | B34: Milton Keynes College | C34: 130609 | D34: Milton Keynes | E34: South East | F34: General Further Education/Tertiary College | G34: FE College - requires improvement | H34: 447346 | I34: 2015-06-08 | J34: 2015-06-12 | K34: Published | L34: 2015-07-17 | M34: 15 | N34: Business, Administration and Law | O34: 200 | P34: Administration | Q34: 2
A35: Report | B35: Milton Keynes College | C35: 130609 | D35: Milton Keynes | E35: South East | F35: General Further Education/Tertiary College | G35: FE College - requires improvement | H35: 447346 | I35: 2015-06-08 | J35: 2015-06-12 | K35: Published | L35: 2015-07-17 | M35: 8 | N35: Leisure, Travel and Tourism | O35: 102 | P35: Public Services | Q35: 2
A36: Report | B36: Milton Keynes College | C36: 130609 | D36: Milton Keynes | E36: South East | F36: General Further Education/Tertiary College | G36: FE College - requires improvement | H36: 447346 | I36: 2015-06-08 | J36: 2015-06-12 | K36: Published | L36: 2015-07-17 | M36: 4 | N36: Engineering and Manufacturing Technologies | O36: 100 | P36: Engineering | Q36: 3
A37: Report | B37: Milton Keynes College | C37: 130609 | D37: Milton Keynes | E37: South East | F37: General Further Education/Tertiary College | G37: FE College - requires improvement | H37: 447346 | I37: 2015-06-08 | J37: 2015-06-12 | K37: Published | L37: 2015-07-17 | M37: 4 | N37: Engineering and Manufacturing Technologies | O37: 300 | P37: Motor vehicle | Q37: 3
A38: Report | B38: Milton Keynes College | C38: 130609 | D38: Milton Keynes | E38: South East | F38: General Further Education/Tertiary College | G38: FE College - requires improvement | H38: 447346 | I38: 2015-06-08 | J38: 2015-06-12 | K38: Published | L38: 2015-07-17 | M38: 14 | N38: Preparation for Life and Work | O38: 113 | P38: Foundation mathematics | Q38: 3
A39: Report | B39: Milton Keynes College | C39: 130609 | D39: Milton Keynes | E39: South East | F39: General Further Education/Tertiary College | G39: FE College - requires improvement | H39: 447346 | I39: 2015-06-08 | J39: 2015-06-12 | K39: Published | L39: 2015-07-17 | M39: 15 | N39: Business, Administration and Law | O39: 300 | P39: Business Management | Q39: 2
A40: Report | B40: Trafford College | C40: 130519 | D40: Trafford | E40: North West | F40: General Further Education/Tertiary College | G40: FE College - full inspection | H40: 452485 | I40: 2015-01-19 | J40: 2015-01-23 | K40: Published | L40: 2015-03-02 | M40: 1 | N40: Health, Public Services and Care | O40: 500 | P40: Early Years and Playwork | Q40: 3
A41: Report | B41: Trafford College | C41: 130519 | D41: Trafford | E41: North West | F41: General Further Education/Tertiary College | G41: FE College - full inspection | H41: 452485 | I41: 2015-01-19 | J41: 2015-01-23 | K41: Published | L41: 2015-03-02 | M41: 2 | N41: Science and Mathematics | O41: 200 | P41: Mathematics and Statistics | Q41: 3
A42: Report | B42: Trafford College | C42: 130519 | D42: Trafford | E42: North West | F42: General Further Education/Tertiary College | G42: FE College - full inspection | H42: 452485 | I42: 2015-01-19 | J42: 2015-01-23 | K42: Published | L42: 2015-03-02 | M42: 7 | N42: Retail and Commercial Enterprise | O42: 303 | P42: Beauty Therapy | Q42: 2
A43: Report | B43: Trafford College | C43: 130519 | D43: Trafford | E43: North West | F43: General Further Education/Tertiary College | G43: FE College - full inspection | H43: 452485 | I43: 2015-01-19 | J43: 2015-01-23 | K43: Published | L43: 2015-03-02 | M43: 1 | N43: Health, Public Services and Care | O43: 300 | P43: Health and Social Care | Q43: 3
A44: Report | B44: South Essex College of Further and Higher Education | C44: 130672 | D44: Southend-On-Sea | E44: East of England | F44: General Further Education/Tertiary College | G44: FE College - requires improvement | H44: 440398 | I44: 2015-05-11 | J44: 2015-05-15 | K44: Published | L44: 2015-06-18 | M44: 2 | N44: Science and Mathematics | O44: 200 | P44: Mathematics and Statistics | Q44: 3
A45: Report | B45: South Essex College of Further and Higher Education | C45: 130672 | D45: Southend-On-Sea | E45: East of England | F45: General Further Education/Tertiary College | G45: FE College - requires improvement | H45: 440398 | I45: 2015-05-11 | J45: 2015-05-15 | K45: Published | L45: 2015-06-18 | M45: 8 | N45: Leisure, Travel and Tourism | O45: 100 | P45: Sport, Leisure and Recreation | Q45: 2
A46: Report | B46: South Essex College of Further and Higher Education | C46: 130672 | D46: Southend-On-Sea | E46: East of England | F46: General Further Education/Tertiary College | G46: FE College - requires improvement | H46: 440398 | I46: 2015-05-11 | J46: 2015-05-15 | K46: Published | L46: 2015-06-18 | M46: 15 | N46: Business, Administration and Law | O46: 200 | P46: Administration | Q46: 2
A47: Report | B47: South Essex College of Further and Higher Education | C47: 130672 | D47: Southend-On-Sea | E47: East of England | F47: General Further Education/Tertiary College | G47: FE College - requires improvement | H47: 440398 | I47: 2015-05-11 | J47: 2015-05-15 | K47: Published | L47: 2015-06-18 | M47: 4 | N47: Engineering and Manufacturing Technologies | O47: 100 | P47: Engineering | Q47: 3
A48: Report | B48: South Essex College of Further and Higher Education | C48: 130672 | D48: Southend-On-Sea | E48: East of England | F48: General Further Education/Tertiary College | G48: FE College - requires improvement | H48: 440398 | I48: 2015-05-11 | J48: 2015-05-15 | K48: Published | L48: 2015-06-18 | M48: 7 | N48: Retail and Commercial Enterprise | O48: 301 | P48: Hairdressing and beauty therapy | Q48: 2
A49: Report | B49: South Essex College of Further and Higher Education | C49: 130672 | D49: Southend-On-Sea | E49: East of England | F49: General Further Education/Tertiary College | G49: FE College - requires improvement | H49: 440398 | I49: 2015-05-11 | J49: 2015-05-15 | K49: Published | L49: 2015-06-18 | M49: 1 | N49: Health, Public Services and Care | O49: 500 | P49: Early Years and Playwork | Q49: 2
A50: Report | B50: South Essex College of Further and Higher Education | C50: 130672 | D50: Southend-On-Sea | E50: East of England | F50: General Further Education/Tertiary College | G50: FE College - requires improvement | H50: 440398 | I50: 2015-05-11 | J50: 2015-05-15 | K50: Published | L50: 2015-06-18 | M50: 2 | N50: Science and Mathematics | O50: 100 | P50: Science | Q50: 3
A51: Report | B51: South Essex College of Further and Higher Education | C51: 130672 | D51: Southend-On-Sea | E51: East of England | F51: General Further Education/Tertiary College | G51: FE College - requires improvement | H51: 440398 | I51: 2015-05-11 | J51: 2015-05-15 | K51: Published | L51: 2015-06-18 | M51: 14 | N51: Preparation for Life and Work | O51: 112 | P51: Foundation English | Q51: 3
A52: Report | B52: Wiltshire College | C52: 132779 | D52: Wiltshire | E52: South West | F52: General Further Education/Tertiary College | G52: FE College - requires improvement | H52: 447349 | I52: 2015-06-08 | J52: 2015-06-12 | K52: Published | L52: 2015-07-17 | M52: 3 | N52: Agriculture, Horticulture and Animal Care | O52: 100 | P52: Agriculture | Q52: 2
A53: Report | B53: Wiltshire College | C53: 132779 | D53: Wiltshire | E53: South West | F53: General Further Education/Tertiary College | G53: FE College - requires improvement | H53: 447349 | I53: 2015-06-08 | J53: 2015-06-12 | K53: Published | L53: 2015-07-17 | M53: 6 | N53: Information and Communication Technology | O53: 100 | P53: ICT for practitioners | Q53: 2
A54: Report | B54: Wiltshire College | C54: 132779 | D54: Wiltshire | E54: South West | F54: General Further Education/Tertiary College | G54: FE College - requires improvement | H54: 447349 | I54: 2015-06-08 | J54: 2015-06-12 | K54: Published | L54: 2015-07-17 | M54: 14 | N54: Preparation for Life and Work | O54: 112 | P54: Foundation English | Q54: 3
A55: Report | B55: Wiltshire College | C55: 132779 | D55: Wiltshire | E55: South West | F55: General Further Education/Tertiary College | G55: FE College - requires improvement | H55: 447349 | I55: 2015-06-08 | J55: 2015-06-12 | K55: Published | L55: 2015-07-17 | M55: 1 | N55: Health, Public Services and Care | O55: 500 | P55: Early Years and Playwork | Q55: 3
A56: Report | B56: Wiltshire College | C56: 132779 | D56: Wiltshire | E56: South West | F56: General Further Education/Tertiary College | G56: FE College - requires improvement | H56: 447349 | I56: 2015-06-08 | J56: 2015-06-12 | K56: Published | L56: 2015-07-17 | M56: 4 | N56: Engineering and Manufacturing Technologies | O56: 100 | P56: Engineering | Q56: 2
A57: Report | B57: Wiltshire College | C57: 132779 | D57: Wiltshire | E57: South West | F57: General Further Education/Tertiary College | G57: FE College - requires improvement | H57: 447349 | I57: 2015-06-08 | J57: 2015-06-12 | K57: Published | L57: 2015-07-17 | M57: 15 | N57: Business, Administration and Law | O57: 200 | P57: Administration | Q57: 2
A58: Report | B58: Wiltshire College | C58: 132779 | D58: Wiltshire | E58: South West | F58: General Further Education/Tertiary College | G58: FE College - requires improvement | H58: 447349 | I58: 2015-06-08 | J58: 2015-06-12 | K58: Published | L58: 2015-07-17 | M58: 4 | N58: Engineering and Manufacturing Technologies | O58: 300 | P58: Motor vehicle | Q58: 2
A59: Report | B59: Wiltshire College | C59: 132779 | D59: Wiltshire | E59: South West | F59: General Further Education/Tertiary College | G59: FE College - requires improvement | H59: 447349 | I59: 2015-06-08 | J59: 2015-06-12 | K59: Published | L59: 2015-07-17 | M59: 7 | N59: Retail and Commercial Enterprise | O59: 400 | P59: Hospitality and Catering | Q59: 2
A60: Report | B60: Wiltshire College | C60: 132779 | D60: Wiltshire | E60: South West | F60: General Further Education/Tertiary College | G60: FE College - requires improvement | H60: 447349 | I60: 2015-06-08 | J60: 2015-06-12 | K60: Published | L60: 2015-07-17 | M60: 9 | N60: Arts, Media and Publishing | O60: 200 | P60: Visual Arts | Q60: 2
A61: Report | B61: Wiltshire College | C61: 132779 | D61: Wiltshire | E61: South West | F61: General Further Education/Tertiary College | G61: FE College - requires improvement | H61: 447349 | I61: 2015-06-08 | J61: 2015-06-12 | K61: Published | L61: 2015-07-17 | M61: 3 | N61: Agriculture, Horticulture and Animal Care | O61: 300 | P61: Animal Care and Veterinary Science | Q61: 2
A62: Report | B62: Wiltshire College | C62: 132779 | D62: Wiltshire | E62: South West | F62: General Further Education/Tertiary College | G62: FE College - requires improvement | H62: 447349 | I62: 2015-06-08 | J62: 2015-06-12 | K62: Published | L62: 2015-07-17 | M62: 6 | N62: Information and Communication Technology | O62: 200 | P62: ICT for Users | Q62: 2
A63: Report | B63: Furness College | C63: 130633 | D63: Cumbria | E63: North West | F63: General Further Education/Tertiary College | G63: FE College - full inspection | H63: 452487 | I63: 2015-03-24 | J63: 2015-03-27 | K63: Published | L63: 2015-05-01 | M63: 4 | N63: Engineering and Manufacturing Technologies | O63: 200 | P63: Manufacturing Technologies | Q63: 2
A64: Report | B64: Furness College | C64: 130633 | D64: Cumbria | E64: North West | F64: General Further Education/Tertiary College | G64: FE College - full inspection | H64: 452487 | I64: 2015-03-24 | J64: 2015-03-27 | K64: Published | L64: 2015-05-01 | M64: 4 | N64: Engineering and Manufacturing Technologies | O64: 100 | P64: Engineering | Q64: 1
A65: Report | B65: Furness College | C65: 130633 | D65: Cumbria | E65: North West | F65: General Further Education/Tertiary College | G65: FE College - full inspection | H65: 452487 | I65: 2015-03-24 | J65: 2015-03-27 | K65: Published | L65: 2015-05-01 | M65: 14 | N65: Preparation for Life and Work | O65: 112 | P65: Foundation English | Q65: 3
A66: Report | B66: Furness College | C66: 130633 | D66: Cumbria | E66: North West | F66: General Further Education/Tertiary College | G66: FE College - full inspection | H66: 452487 | I66: 2015-03-24 | J66: 2015-03-27 | K66: Published | L66: 2015-05-01 | M66: 14 | N66: Preparation for Life and Work | O66: 113 | P66: Foundation mathematics | Q66: 2
A67: Report | B67: Barrow-in-Furness Sixth Form College | C67: 130637 | D67: Cumbria | E67: North West | F67: Sixth Form College | G67: SFC - requires improvement | H67: 440399 | I67: 2015-04-14 | J67: 2015-04-17 | K67: Published | L67: 2015-05-21 | M67: 15 | N67: Business, Administration and Law | O67: 500 | P67: Law and Legal Services | Q67: 1
A68: =IF(C68 <> "", HYPERLINK(CONCATENATE("http://reports.ofsted.gov.uk/inspection-reports/find-inspection-report/provider/ELS/",C68),"Report"),"") -> Report | B68: Barrow-in-Furness Sixth Form College | C68: 130637 | D68: Cumbria | E68: North West | F68: Sixth Form College | G68: SFC - requires improvement | H68: 440399 | I68: 2015-04-14 | J68: 2015-04-17 | K68: Published | L68: 2015-05-21 | M68: 2 | N68: Science and Mathematics | O68: 101 | P68: Psychology | Q68: 2
A69: Report | B69: Barrow-in-Furness Sixth Form College | C69: 130637 | D69: Cumbria | E69: North West | F69: Sixth Form College | G69: SFC - requires improvement | H69: 440399 | I69: 2015-04-14 | J69: 2015-04-17 | K69: Published | L69: 2015-05-21 | M69: 2 | N69: Science and Mathematics | O69: 100 | P69: Science | Q69: 2
A70: Report | B70: Barrow-in-Furness Sixth Form College | C70: 130637 | D70: Cumbria | E70: North West | F70: Sixth Form College | G70: SFC - requires improvement | H70: 440399 | I70: 2015-04-14 | J70: 2015-04-17 | K70: Published | L70: 2015-05-21 | M70: 15 | N70: Business, Administration and Law | O70: 300 | P70: Business Management | Q70: 2
A71: Report | B71: Darlington College | C71: 130656 | D71: Darlington | E71: North East, Yorkshire & Humber | F71: General Further Education/Tertiary College | G71: FE College - full inspection | H71: 452549 | I71: 2015-02-09 | J71: 2015-02-13 | K71: Published | L71: 2015-03-20 | M71: 8 | N71: Leisure, Travel and Tourism | O71: 101 | P71: Sport | Q71: 3
A72: Report | B72: Darlington College | C72: 130656 | D72: Darlington | E72: North East, Yorkshire & Humber | F72: General Further Education/Tertiary College | G72: FE College - full inspection | H72: 452549 | I72: 2015-02-09 | J72: 2015-02-13 | K72: Published | L72: 2015-03-20 | M72: 8 | N72: Leisure, Travel and Tourism | O72: 200 | P72: Travel and Tourism | Q72: 3
A73: Report | B73: Darlington College | C73: 130656 | D73: Darlington | E73: North East, Yorkshire & Humber | F73: General Further Education/Tertiary College | G73: FE College - full inspection | H73: 452549 | I73: 2015-02-09 | J73: 2015-02-13 | K73: Published | L73: 2015-03-20 | M73: 9 | N73: Arts, Media and Publishing | O73: 200 | P73: Visual Arts | Q73: 3
A74: Report | B74: Darlington College | C74: 130656 | D74: Darlington | E74: North East, Yorkshire & Humber | F74: General Further Education/Tertiary College | G74: FE College - full inspection | H74: 452549 | I74: 2015-02-09 | J74: 2015-02-13 | K74: Published | L74: 2015-03-20 | M74: 4 | N74: Engineering and Manufacturing Technologies | O74: 100 | P74: Engineering | Q74: 3
A75: Report | B75: Darlington College | C75: 130656 | D75: Darlington | E75: North East, Yorkshire & Humber | F75: General Further Education/Tertiary College | G75: FE College - full inspection | H75: 452549 | I75: 2015-02-09 | J75: 2015-02-13 | K75: Published | L75: 2015-03-20 | M75: 4 | N75: Engineering and Manufacturing Technologies | O75: 200 | P75: Manufacturing Technologies | Q75: 3
A76: Report | B76: Darlington College | C76: 130656 | D76: Darlington | E76: North East, Yorkshire & Humber | F76: General Further Education/Tertiary College | G76: FE College - full inspection | H76: 452549 | I76: 2015-02-09 | J76: 2015-02-13 | K76: Published | L76: 2015-03-20 | M76: 5 | N76: Construction, Planning and the Built Environment | O76: 200 | P76: Building and Construction | Q76: 3
A77: Report | B77: Darlington College | C77: 130656 | D77: Darlington | E77: North East, Yorkshire & Humber | F77: General Further Education/Tertiary College | G77: FE College - full inspection | H77: 452549 | I77: 2015-02-09 | J77: 2015-02-13 | K77: Published | L77: 2015-03-20 | M77: 9 | N77: Arts, Media and Publishing | O77: 300 | P77: Media and Communication | Q77: 3
A78: Report | B78: Darlington College | C78: 130656 | D78: Darlington | E78: North East, Yorkshire & Humber | F78: General Further Education/Tertiary College | G78: FE College - full inspection | H78: 452549 | I78: 2015-02-09 | J78: 2015-02-13 | K78: Published | L78: 2015-03-20 | M78: 14 | N78: Preparation for Life and Work | O78: 112 | P78: Foundation English | Q78: 4
A79: Report | B79: Darlington College | C79: 130656 | D79: Darlington | E79: North East, Yorkshire & Humber | F79: General Further Education/Tertiary College | G79: FE College - full inspection | H79: 452549 | I79: 2015-02-09 | J79: 2015-02-13 | K79: Published | L79: 2015-03-20 | M79: 15 | N79: Business, Administration and Law | O79: 200 | P79: Administration | Q79: 3
A80: Report | B80: Darlington College | C80: 130656 | D80: Darlington | E80: North East, Yorkshire & Humber | F80: General Further Education/Tertiary College | G80: FE College - full inspection | H80: 452549 | I80: 2015-02-09 | J80: 2015-02-13 | K80: Published | L80: 2015-03-20 | M80: 15 | N80: Business, Administration and Law | O80: 600 | P80: Business | Q80: 3
A81: Report | B81: System Group Limited | C81: 54726 | D81: Cumbria | E81: North West | F81: Independent Learning Provider | G81: Work Based Learning - full (national) | H81: 455589 | I81: 2015-06-15 | J81: 2015-06-19 | K81: Published | L81: 2015-07-22 | M81: 4 | N81: Engineering and Manufacturing Technologies | O81: 300 | P81: Motor vehicle | Q81: 3
A82: Report | B82: System Group Limited | C82: 54726 | D82: Cumbria | E82: North West | F82: Independent Learning Provider | G82: Work Based Learning - full (national) | H82: 455589 | I82: 2015-06-15 | J82: 2015-06-19 | K82: Published | L82: 2015-07-22 | M82: 14 | N82: Preparation for Life and Work | O82: 204 | P82: Employability Training | Q82: 2
A83: Report | B83: King George V College | C83: 130492 | D83: Sefton | E83: North West | F83: Sixth Form College | G83: SFC - full inspection | H83: 446535 | I83: 2014-09-16 | J83: 2014-09-19 | K83: Published | L83: 2014-10-23 | M83: 2 | N83: Science and Mathematics | O83: 100 | P83: Science | Q83: 4
A84: Report | B84: Kimberley 16 - 19 Stem College | C84: 139798 | D84: Bedford | E84: East of England | F84: Free School - 16-19 | G84: 16-19 academy - full inspection | H84: 452501 | I84: 2015-03-10 | J84: 2015-03-13 | K84: Published | L84: 2015-04-21 | M84: 2 | N84: Science and Mathematics | O84: 200 | P84: Mathematics and Statistics | Q84: 3
A85: Report | B85: Kimberley 16 - 19 Stem College | C85: 139798 | D85: Bedford | E85: East of England | F85: Free School - 16-19 | G85: 16-19 academy - full inspection | H85: 452501 | I85: 2015-03-10 | J85: 2015-03-13 | K85: Published | L85: 2015-04-21 | M85: 4 | N85: Engineering and Manufacturing Technologies | O85: 100 | P85: Engineering | Q85: 2
A86: Report | B86: Kimberley 16 - 19 Stem College | C86: 139798 | D86: Bedford | E86: East of England | F86: Free School - 16-19 | G86: 16-19 academy - full inspection | H86: 452501 | I86: 2015-03-10 | J86: 2015-03-13 | K86: Published | L86: 2015-04-21 | M86: 2 | N86: Science and Mathematics | O86: 100 | P86: Science | Q86: 3
A87: Report | B87: Hugh Baird College | C87: 130490 | D87: Sefton | E87: North West | F87: General Further Education/Tertiary College | G87: FE College - full inspection | H87: 452484 | I87: 2015-02-02 | J87: 2015-02-06 | K87: Published | L87: 2015-03-09 | M87: 7 | N87: Retail and Commercial Enterprise | O87: 301 | P87: Hairdressing and beauty therapy | Q87: 3
A88: Report | B88: Hugh Baird College | C88: 130490 | D88: Sefton | E88: North West | F88: General Further Education/Tertiary College | G88: FE College - full inspection | H88: 452484 | I88: 2015-02-02 | J88: 2015-02-06 | K88: Published | L88: 2015-03-09 | M88: 14 | N88: Preparation for Life and Work | O88: 112 | P88: Foundation English | Q88: 3
A89: Report | B89: Hugh Baird College | C89: 130490 | D89: Sefton | E89: North West | F89: General Further Education/Tertiary College | G89: FE College - full inspection | H89: 452484 | I89: 2015-02-02 | J89: 2015-02-06 | K89: Published | L89: 2015-03-09 | M89: 15 | N89: Business, Administration and Law | O89: 200 | P89: Administration | Q89: 2
A90: Report | B90: Hugh Baird College | C90: 130490 | D90: Sefton | E90: North West | F90: General Further Education/Tertiary College | G90: FE College - full inspection | H90: 452484 | I90: 2015-02-02 | J90: 2015-02-06 | K90: Published | L90: 2015-03-09 | M90: 15 | N90: Business, Administration and Law | O90: 300 | P90: Business Management | Q90: 2
A91: Report | B91: Hugh Baird College | C91: 130490 | D91: Sefton | E91: North West | F91: General Further Education/Tertiary College | G91: FE College - full inspection | H91: 452484 | I91: 2015-02-02 | J91: 2015-02-06 | K91: Published | L91: 2015-03-09 | M91: 1 | N91: Health, Public Services and Care | O91: 300 | P91: Health and Social Care | Q91: 2
A92: Report | B92: Hugh Baird College | C92: 130490 | D92: Sefton | E92: North West | F92: General Further Education/Tertiary College | G92: FE College - full inspection | H92: 452484 | I92: 2015-02-02 | J92: 2015-02-06 | K92: Published | L92: 2015-03-09 | M92: 5 | N92: Construction, Planning and the Built Environment | O92: 202 | P92: Construction Crafts | Q92: 2
A93: Report | B93: Hugh Baird College | C93: 130490 | D93: Sefton | E93: North West | F93: General Further Education/Tertiary College | G93: FE College - full inspection | H93: 452484 | I93: 2015-02-02 | J93: 2015-02-06 | K93: Published | L93: 2015-03-09 | M93: 14 | N93: Preparation for Life and Work | O93: 108 | P93: Independent living and leisure skills | Q93: 1
A94: Report | B94: Richmond Adult Community College | C94: 131095 | D94: Richmond Upon Thames | E94: London | F94: General Further Education/Tertiary College | G94: FE College - requires improvement | H94: 447348 | I94: 2015-05-19 | J94: 2015-05-22 | K94: Published | L94: 2015-06-29 | M94: 14 | N94: Preparation for Life and Work | O94: 103 | P94: ESOL | Q94: 2
A95: Report | B95: Richmond Adult Community College | C95: 131095 | D95: Richmond Upon Thames | E95: London | F95: General Further Education/Tertiary College | G95: FE College - requires improvement | H95: 447348 | I95: 2015-05-19 | J95: 2015-05-22 | K95: Published | L95: 2015-06-29 | M95: 14 | N95: Preparation for Life and Work | O95: 112 | P95: Foundation English | Q95: 2
A96: Report | B96: Richmond Adult Community College | C96: 131095 | D96: Richmond Upon Thames | E96: London | F96: General Further Education/Tertiary College | G96: FE College - requires improvement | H96: 447348 | I96: 2015-05-19 | J96: 2015-05-22 | K96: Published | L96: 2015-06-29 | M96: 15 | N96: Business, Administration and Law | O96: 300 | P96: Business Management | Q96: 3
A97: Report | B97: Richmond Adult Community College | C97: 131095 | D97: Richmond Upon Thames | E97: London | F97: General Further Education/Tertiary College | G97: FE College - requires improvement | H97: 447348 | I97: 2015-05-19 | J97: 2015-05-22 | K97: Published | L97: 2015-06-29 | M97: 9 | N97: Arts, Media and Publishing | O97: 100 | P97: Performing Arts | Q97: 2
A98: Report | B98: Richmond Adult Community College | C98: 131095 | D98: Richmond Upon Thames | E98: London | F98: General Further Education/Tertiary College | G98: FE College - requires improvement | H98: 447348 | I98: 2015-05-19 | J98: 2015-05-22 | K98: Published | L98: 2015-06-29 | M98: 15 | N98: Business, Administration and Law | O98: 100 | P98: Accounting and Finance | Q98: 3
A99: Report | B99: Richmond Adult Community College | C99: 131095 | D99: Richmond Upon Thames | E99: London | F99: General Further Education/Tertiary College | G99: FE College - requires improvement | H99: 447348 | I99: 2015-05-19 | J99: 2015-05-22 | K99: Published | L99: 2015-06-29 | M99: 9 | N99: Arts, Media and Publishing | O99: 200 | P99: Visual Arts | Q99: 2
A100: Report | B100: Wolverhampton Adult Education Service | C100: 55413 | D100: Wolverhampton | E100: West Midlands | F100: Community Learning and Skills | G100: Adult and Community - full (regional) | H100: 446669 | I100: 2014-12-08 | J100: 2014-12-12 | K100: Published | L100: 2015-01-15 | M100: 9 | N100: Arts, Media and Publishing | O100: 200 | P100: Visual Arts | Q100: 1
A101: Report | B101: Wolverhampton Adult Education Service | C101: 55413 | D101: Wolverhampton | E101: West Midlands | F101: Community Learning and Skills | G101: Adult and Community - full (regional) | H101: 446669 | I101: 2014-12-08 | J101: 2014-12-12 | K101: Published | L101: 2015-01-15 | M101: 14 | N101: Preparation for Life and Work | O101: 114 | P101: Foundation English and Mathematics | Q101: 2
A102: Report | B102: Wolverhampton Adult Education Service | C102: 55413 | D102: Wolverhampton | E102: West Midlands | F102: Community Learning and Skills | G102: Adult and Community - full (regional) | H102: 446669 | I102: 2014-12-08 | J102: 2014-12-12 | K102: Published | L102: 2015-01-15 | M102: 6 | N102: Information and Communication Technology | O102: 200 | P102: ICT for Users | Q102: 2
A103: Report | B103: Skills and Learning: Bournemouth, Dorset and Poole | C103: 53936 | D103: Poole | E103: South West | F103: Community Learning and Skills | G103: Adult and Community - full (regional) | H103: 455585 | I103: 2015-06-15 | J103: 2015-06-19 | K103: Published | L103: 2015-07-22 | M103: 1 | N103: Health, Public Services and Care | O103: 300 | P103: Health and Social Care | Q103: 2
A104: Report | B104: South Leicestershire College | C104: 130750 | D104: Leicestershire | E104: East Midlands | F104: General Further Education/Tertiary College | G104: FE College - requires improvement | H104: 430277 | I104: 2014-11-24 | J104: 2014-11-28 | K104: Published | L104: 2015-01-07 | M104: 15 | N104: Business, Administration and Law | O104: 300 | P104: Business Management | Q104: 2
A105: Report | B105: South Leicestershire College | C105: 130750 | D105: Leicestershire | E105: East Midlands | F105: General Further Education/Tertiary College | G105: FE College - requires improvement | H105: 430277 | I105: 2014-11-24 | J105: 2014-11-28 | K105: Published | L105: 2015-01-07 | M105: 4 | N105: Engineering and Manufacturing Technologies | O105: 200 | P105: Manufacturing Technologies | Q105: 2
A106: Report | B106: South Leicestershire College | C106: 130750 | D106: Leicestershire | E106: East Midlands | F106: General Further Education/Tertiary College | G106: FE College - requires improvement | H106: 430277 | I106: 2014-11-24 | J106: 2014-11-28 | K106: Published | L106: 2015-01-07 | M106: 5 | N106: Construction, Planning and the Built Environment | O106: 200 | P106: Building and Construction | Q106: 2
A107: Report | B107: South Leicestershire College | C107: 130750 | D107: Leicestershire | E107: East Midlands | F107: General Further Education/Tertiary College | G107: FE College - requires improvement | H107: 430277 | I107: 2014-11-24 | J107: 2014-11-28 | K107: Published | L107: 2015-01-07 | M107: 14 | N107: Preparation for Life and Work | O107: 112 | P107: Foundation English | Q107: 2
